Workbook

Sheet Plan1 (hidden)

Sheet Painel de Preços
A1: UNIVERSIDADE FEDERAL DE ALAGOAS - UFAL
A2: SUPERINTENDÊNCIA DE INFRAESTRUTURA - SINFRA
A3: GERENCIA DE PROJETOS,OBRAS E SERVIÇOS DE ENGENHARIA - GPOS
A5: COTAÇÕES DE PREÇO PARA OBRA DE REFORMA DO AUDITÓRIO GUEDES DE MIRANDA NO ESPAÇO CULTURAL DA UFAL.
A7: ORIENTAÇÕES PARA ELABORAÇÃO DE PLANILHAS ORÇAMENTÁRIAS DE OBRAS PÚBLICAS - TCU
A8: 14 – É válida a utilização de cotações de preços obtidas em jornais ou folhetos de propaganda, anúncios televisivos ou mediante pesquisa por telefone?
A9: Resposta: Sim. No caso de mídia impressa (jornais ou folhetos de propaganda) recomenda-se juntar aos autos do processo licitatório o original ou cópia do material para comprovar o preço pesquisado. Na hipótese dos demais canais, recomenda-se que o agente responsável pela consulta lavre e assine certidão informando os dados da pesquisa, tais como valor obtido, quantidade, marca, condições de pagamento e entrega, data e hora da pesquisa, nome, endereço e telefone do estabelecimento comercial e nome do vendedor.
A12: Ressalta-se que tal pesquisa tem validade jurídica, pois os atos praticados por agentes públicos (no caso a assinatura da certidão contendo as cotações de preços) em geral gozam de presunção de veracidade, conforme posicionamento doutrinário dominante, transferindo ao particular não apenas o ônus de impugnálo, mas também o de fazer prova de sua invalidade ou inveracidade.
A16: Pesquisa Painel de Preços | F16: 1
A17: ITEM | B17: DESCRIÇÃO | C17: Unidade | D17: QTD | E17: Cotação | F17: Fonte
A20: 1 | B20: CONTRATAÇÃO DE SERVIÇOS DE CONFECÇÃO E INSTALAÇÃO DE CORTINA COM FORNECIMENTO DE MATERIAIS. ESPECIFICAÇÃO DO TECIDO: TECIDO TIPO CETIM / OXFORD OU SIMILAR NA COR MARFIM 100% POLIÉSTER GRAMATURA DE 200 G/M2. RODÍZIO PARA A CORTINA, CONFECCIONADO EM AÇO BICROMATIZADO E ROLDANAS EM MATERIAL PLÁSTICO E TERMINAL EM METAL. ESPECIFICAÇÃO DO TRILHO: TRILHO DUPLO EM ALUMÍNIO, ALTURA DO TRILHO 1 CM. | C20: m² | D20: 1 | E20: 12.9 | F20: UASG 154358, PR 14/2017, LOTE 1, ITEM 02

Sheet Cotação 01
A1: UNIVERSIDADE FEDERAL DE ALAGOAS - UFAL
A2: SUPERINTENDÊNCIA DE INFRAESTRUTURA - SINFRA
A3: GERENCIA DE PROJETOS,OBRAS E SERVIÇOS DE ENGENHARIA - GPOS
A5: COTAÇÕES DE PREÇO PARA OBRA DE REFORMA DO AUDITÓRIO GUEDES DE MIRANDA NO ESPAÇO CULTURAL DA UFAL.
A7: ORIENTAÇÕES PARA ELABORAÇÃO DE PLANILHAS ORÇAMENTÁRIAS DE OBRAS PÚBLICAS - TCU
A8: 14 – É válida a utilização de cotações de preços obtidas em jornais ou folhetos de propaganda, anúncios televisivos ou mediante pesquisa por telefone?
A9: Resposta: Sim. No caso de mídia impressa (jornais ou folhetos de propaganda) recomenda-se juntar aos autos do processo licitatório o original ou cópia do material para comprovar o preço pesquisado. Na hipótese dos demais canais, recomenda-se que o agente responsável pela consulta lavre e assine certidão informando os dados da pesquisa, tais como valor obtido, quantidade, marca, condições de pagamento e entrega, data e hora da pesquisa, nome, endereço e telefone do estabelecimento comercial e nome do vendedor.
A12: Ressalta-se que tal pesquisa tem validade jurídica, pois os atos praticados por agentes públicos (no caso a assinatura da certidão contendo as cotações de preços) em geral gozam de presunção de veracidade, conforme posicionamento doutrinário dominante, transferindo ao particular não apenas o ônus de impugnálo, mas também o de fazer prova de sua invalidade ou inveracidade.
A16: COTAÇÃO Nº | M16: 01
A17: ITEM | B17: DESCRIÇÃO DO MATERIAL | C17: UND | D17: QUANTIDADE | E17: MARCA | F17: COND. PAGAMENTO | G17: ENTREGA | H17: DATA | I17: HORA | J17: VALOR MÉDIO (unit) | K17: EMPRESA
K18: A | L18: B | M18: C
K19: VALOR UNIT. | L19: VALOR UNIT. | M19: VALOR UNIT.
A20: 15.1 | B20: Luminária tipo Arandela LED 6W com foco bidirecional para cima e para baixo com caixa em alumínio epintura epóxidica na cor pereta- Fornecimento (Incluso frete) | C20: unid | D20: 2 | E20: Initial | F20: à vista | G20: 12 dias úteis | H20: 2017-08-30 | I20: 10h | J20: =(K20+L20+M20)/3 -> 108.1383333 | K20: =242.4/2 -> 121.2 | L20: =226.7/2 -> 113.35 | M20: =179.73/2 -> 89.865
A22: DADOS DA EMPRESA
A23: ITEM | B23: NOME | C23: ENDEREÇO | K23: CONTATO | L23: VENDEDOR | M23: CNPJ
A24: A | B24: LENHARO MEGASTORE | C24: http://www.lenharomegastore.com.br/luminaria-arandela-6w-super-led-aluminio-branco-frio.html | K24: (43)3055-9188 / 3276-2430 | L24: LojaVirtual | M24: 11.310.342/0001-24
A25: B | B25: L.P. COMERCIAL LTDA - ME | C25: https://www.iluminim.com.br/uminaria-arandela-led-6w-branco-quente-externa | K25: (11)4210-0494 / (21)2042-0247 | L25: Loja Virtual | M25: 26.192.660/0001­05
A26: C | B26: BEST DEAL COMERCIO DE PRODUTOS ELETRONICOS LTDA - EPP | C26: https://9led.commercesuite.com.br/arandelas/arandela-externa-led-6w-bq-3000k | K26: (11)3402-1581 | L26: Loja Virtual | M26: 16.979.746/0001-29
A28: COTAÇÃO Nº | M28: 02
A29: ITEM | B29: DESCRIÇÃO DO MATERIAL | C29: UND | D29: QUANTIDADE | E29: MARCA | F29: COND. PAGAMENTO | G29: ENTREGA | H29: DATA | I29: HORA | J29: VALOR MÉDIO (unit) | K29: EMPRESA
K30: A | L30: B | M30: C
K31: VALOR UNIT. | L31: VALOR UNIT. | M31: VALOR UNIT.
A32: 12.11 | B32: Extintor de incêndio de Pó ABC 12Kg capacidade extintora 6A-40BC | C32: unid | D32: 1 | E32: Resil/Aerotex/KIDDE | F32: em até 10x com juros | G32: 13 dias úteis | H32: 2017-09-28 | I32: 11h | J32: =(K32+L32+M32)/3 -> 231.9666667 | K32: =333.58 -> 333.58 | L32: 179.52 | M32: 182.8
A34: DADOS DA EMPRESA
A35: ITEM | B35: NOME | C35: ENDEREÇO | K35: CONTATO | L35: VENDEDOR | M35: CNPJ
A36: A | B36: B2W - Companhia Digital (SHOPTIME) | C36: https://www.shoptime.com.br/produto/22945896/extintor-de-incendio-resil-po-abc-12-kg?WT.srch=1&epar=bp_pl_00_go_pla_aut_geral_3p&gclid=CjwKCAjwu7LOBRBZEiwAQtfbGCnhoBohwBPgkq1HwrMrWJHnC_yr71l_cgWBTUv0XREqZ2Xy3nAsihoC1OIQAvD_BwE&opn=GOOGLEXML&sellerId=11079202000197 | K36: 4003-1020 | L36: LojaVirtual | M36: 00.776.574/0006-60
A37: B | B37: Aerotex Extintores Ltda Epp | C37: http://www.aerotexextintores.com.br/po-quimico-classe-abc-01-ano-de-garantia/244-extintor-po-abc-portatil-12kg-validade-1-ano-6a-40bc-en016-uso-comercial-industrial-residencial | K37: (12) 3922-1771 | L37: Loja Virtual | M37: 04.823.635/0001-40
A38: C | B38: SP EQUIPAMENTOS DE PROTECAO AO TRABALHO E MRO LTDA. | C38: http://www.epibrasil.com.br/extintor-de-incendio-abc-12kg-p5760/ | K38: sac@epibrasil.com.br | L38: Loja Virtual | M38: 59.609.123/0012-20
A40: COTAÇÃO Nº | M40: 03
A41: ITEM | B41: DESCRIÇÃO DO MATERIAL | C41: UND | D41: QUANTIDADE | E41: MARCA | F41: COND. PAGAMENTO | G41: ENTREGA | H41: DATA | I41: HORA | J41: VALOR MÉDIO (unit) | K41: EMPRESA
K42: A | L42: B | M42: C
K43: VALOR UNIT. | L43: VALOR UNIT. | M43: VALOR UNIT.
A44: 12.12 | B44: Placa direção saída de emergênciaFotoluminescente Sinalize Seta Reta P/ Direita 30x15cm | C44: unid | D44: 1 | E44: Sinalize | F44: em até 5x sem juros | G44: 15 dias úteis | H44: 2017-09-28 | I44: 13h | J44: =(K44+L44+M44)/3 -> 15.71 | K44: 14.24 | L44: 13.59 | M44: 19.3
A46: DADOS DA EMPRESA
A47: ITEM | B47: NOME | C47: ENDEREÇO | K47: CONTATO | L47: VENDEDOR | M47: CNPJ
A48: A | B48: B2W - Companhia Digital (Americanas)) | C48: https://www.americanas.com.br/produto/24707515/placa-fotoluminescente-sinalize-seta-reta-p-direita-30x15cm?WT.srch=1&epar=bp_pl_00_go_todos-os-produtos_geral_gmv&gclid=CjwKCAjwu7LOBRBZEiwAQtfbGEPO1EgSrOfvIGSs4uyVLC4kWdcZDId8K9w1BurOUG34biQPwPIHZRoCTkUQAvD_BwE&opn=YSMESP&sellerId=54651716000188 | K48: 40031000 | L48: LojaVirtual | M48: 00.776.574/0006-60
A49: B | B49: DUTRA MÁQUINAS COMERCIAL E TÉCNICA LTDA | C49: http://www.dutramaquinas.com.br/p/placa-sinalizadora-em-pvc-seta-reta-para-direita-315aa?gclid=CjwKCAjwu7LOBRBZEiwAQtfbGGdTtb9wztpfPLH8uVF0AIM5bp81r3xhssKkr_5EK1WcotGTU6QViRoClc0QAvD_BwE | K49: (11) 2795-8800 | L49: Loja Virtual | M49: 50.970.342/0001-02
A50: C | B50: Kalunga Comércio e Indústria Gráfica Ltda | C50: https://www.kalunga.com.br/prod/placa-p-sinaliz-15x30cm-fotolumi-saida-direita-315aa-sinalize/630223?pcID=39&adtype=pla&gclid=CjwKCAjwu7LOBRBZEiwAQtfbGMHGg8DDDSZZq_HkiNx3bpRWeL0VAJm_z3lAaVVOzhi28oySmDEEfhoClhcQAvD_BwE | K50: 0800-0195566 | L50: Loja Virtual | M50: 43.283.811/0023-65
A52: COTAÇÃO Nº | M52: 04
A53: ITEM | B53: DESCRIÇÃO DO MATERIAL | C53: UND | D53: QUANTIDADE | E53: MARCA | F53: COND. PAGAMENTO | G53: ENTREGA | H53: DATA | I53: HORA | J53: VALOR MÉDIO (unit) | K53: EMPRESA
K54: A | L54: B | M54: C
K55: VALOR UNIT. | L55: VALOR UNIT. | M55: VALOR UNIT.
A56: 12.12 | B56: Placa direção saída de emergênciaFotoluminescente Sinalize Seta Reta P/ Esquerda 30x15cm | C56: unid | D56: 1 | E56: Sinalize | F56: em até 5x sem juros | G56: 15 dias úteis | H56: 2017-09-28 | I56: 13h | J56: =(K56+L56+M56)/3 -> 15.71 | K56: 14.24 | L56: 13.59 | M56: 19.3
A58: DADOS DA EMPRESA
A59: ITEM | B59: NOME | C59: ENDEREÇO | K59: CONTATO | L59: VENDEDOR | M59: CNPJ
A60: A | B60: B2W - Companhia Digital (Americanas)) | C60: https://www.americanas.com.br/produto/24723299/placa-fotoluminescente-sinalize-seta-reta-p-esquerda-30x15cm?WT.srch=1&epar=bp_pl_00_go_todos-os-produtos_geral_gmv&gclid=CjwKCAjwu7LOBRBZEiwAQtfbGD7yuHqdbpX1uJq1rNiEuL6ucWDY4gWZ8ALOkQKaqaUv5D10ILkEBBoCGn0QAvD_BwE&opn=YSMESP&sellerId=54651716000188 | K60: 40031000 | L60: LojaVirtual | M60: 00.776.574/0006-60
A61: B | B61: DUTRA MÁQUINAS COMERCIAL E TÉCNICA LTDA | C61: http://www.dutramaquinas.com.br/p/placa-sinalizadora-em-pvc-seta-reta-para-esquerda-315ab | K61: (11) 2795-8800 | L61: Loja Virtual | M61: 50.970.342/0001-02
A62: C | B62: Kalunga Comércio e Indústria Gráfica Ltda | C62: https://www.kalunga.com.br/prod/placa-p-sinaliz-15x30cm-fotolumi-saida-esquerda-315ab-sinalize/630224?menuID=201&WT.svl=6 | K62: 0800-0195566 | L62: Loja Virtual | M62: 43.283.811/0023-65
A64: COTAÇÃO Nº | M64: 05
A65: ITEM | B65: DESCRIÇÃO DO MATERIAL | C65: UND | D65: QUANTIDADE | E65: MARCA | F65: COND. PAGAMENTO | G65: ENTREGA | H65: DATA | I65: HORA | J65: VALOR MÉDIO (unit) | K65: EMPRESA
K66: A | L66: B | M66: C
K67: VALOR UNIT. | L67: VALOR UNIT. | M67: VALOR UNIT.
A68: 12.12 | B68: Placa sinalizadora saída de emergênciaFotoluminescente 30x15cm | C68: unid | D68: 1 | E68: Sinalize | F68: à vista | G68: 16 dias úteis | H68: 2017-09-28 | I68: 13h | J68: =(K68+L68+M68)/3 -> 12.76333333 | K68: 5.4 | L68: 13.59 | M68: 19.3
A70: DADOS DA EMPRESA
A71: ITEM | B71: NOME | C71: ENDEREÇO | K71: CONTATO | L71: VENDEDOR | M71: CNPJ
A72: A | B72: B2W - Companhia Digital (Americanas)) | C72: https://www.americanas.com.br/produto/26852003/placa-em-ps-sinal-saida-emergencia-verde-15x30?WT.srch=1&epar=bp_pl_00_go_pla_rlsa_novos_gmv&gclid=CjwKCAjwu7LOBRBZEiwAQtfbGAembBJErHMSNomlsDe4R1IG5XyUmbtIXteMj1EPg05tf81GmTBjIBoCOicQAvD_BwE&opn=YSMESP&sellerId=90462003000130 | K72: 40031000 | L72: LojaVirtual | M72: 00.776.574/0006-60
A73: B | B73: DUTRA MÁQUINAS COMERCIAL E TÉCNICA LTDA | C73: http://www.dutramaquinas.com.br/p/placa-sinalizadora-em-pvc-saida-de-emergencia-315am | K73: (11) 2795-8800 | L73: Loja Virtual | M73: 50.970.342/0001-02
A74: C | B74: Kalunga Comércio e Indústria Gráfica Ltda | C74: https://www.kalunga.com.br/prod/placa-p-sinaliz-15x30cm-fotolumi-saida-emergen-315am-sinalize/630222?menuID=201&WT.svl=21 | K74: 0800-0195566 | L74: Loja Virtual | M74: 43.283.811/0023-65

Sheet COMPOSIÇÕES
B2: UNIVERSIDADE FEDERAL DE ALAGOAS - UFAL
B3: SUPERINTENDÊNCIA DE INFRAESTRUTURA - SINFRA
B4: GERENCIA DE PROJETOS,OBRAS E SERVIÇOS DE ENGENHARIA - GPOS
B6: COMPOSIÇÕES DE SERVIÇO PARA OBRA DE REFORMA DO AUDITÓRIO GUEDES DE MIRANDA NO ESPAÇO CULTURAL DA UFAL
B9: Composição 101 (m²)
B10: Remoção de telhamento com telhas de cimento amianto onduladas (Adaptada do ORSE)
B11: Descrição | C11: Fonte | D11: Código | E11: Unidade | F11: Quantidade | G11: Valor Unit. | H11: Valor Total
B12: CARPINTEIRO DE FORMAS COM ENCARGOS COMPLEMENTARES | C12: SINAPI | D12: 88262 | E12: h | F12: 0.22 | G12: 15.23 | H12: =F12*G12 -> 3.3506
B13: SERVENTE COM ENCARGOS COMPLEMENTARES | C13: SINAPI | D13: 88316 | E13: h | F13: 0.22 | G13: 12 | H13: =F13*G13 -> 2.64
B14: TOTAL | H14: =SUM(H12:H13) -> 5.9906
B16: Composição 102 (m²)
B17: Remoção de painéis verticais de madeira
B18: Descrição | C18: Fonte | D18: Código | E18: Unidade | F18: Quantidade | G18: Valor Unit. | H18: Valor Total
B19: SERVENTE COM ENCARGOS COMPLEMENTARES | C19: SINAPI | D19: 88316 | E19: h | F19: 0.25 | G19: 12 | H19: =F19*G19 -> 3
B20: TOTAL | H20: =SUM(H19:H19) -> 3
B22: Composição 103 (m²)
B23: Remoção de piso em assoalho de madeira (Adaptada do ORSE)
B24: Descrição | C24: Fonte | D24: Código | E24: Unidade | F24: Quantidade | G24: Valor Unit. | H24: Valor Total
B25: SERVENTE COM ENCARGOS COMPLEMENTARES | C25: SINAPI | D25: 88316 | E25: h | F25: 0.25 | G25: 12 | H25: =F25*G25 -> 3
B26: TOTAL | H26: =SUM(H25:H25) -> 3
B28: Composição 104 (m²)
B29: Demolição de piso cerâmico (Adaptada do ORSE)
B30: Descrição | C30: Fonte | D30: Código | E30: Unidade | F30: Quantidade | G30: Valor Unit. | H30: Valor Total
B31: PEDREIRO COM ENCARGOS COMPLEMENTARES | C31: SINAPI | D31: 88309 | E31: h | F31: 0.07 | G31: 15.32 | H31: =F31*G31 -> 1.0724
B32: SERVENTE COM ENCARGOS COMPLEMENTARES | C32: SINAPI | D32: 88316 | E32: h | F32: 0.7 | G32: 12 | H32: =F32*G32 -> 8.4
B33: TOTAL | H33: =SUM(H31:H32) -> 9.4724
B35: Composição 105 (m²)
B36: Remoção de estrutura metálica chumbada em concreto (alambrado, guarda-corpo) (Adaptada do ORSE)
B37: Descrição | C37: Fonte | D37: Código | E37: Unidade | F37: Quantidade | G37: Valor Unit. | H37: Valor Total
B38: SERVENTE COM ENCARGOS COMPLEMENTARES | C38: SINAPI | D38: 88316 | E38: h | F38: 3 | G38: 12 | H38: =F38*G38 -> 36
B39: TOTAL | H39: =SUM(H38:H38) -> 36
B41: Composição 106 (und)
B42: Remoção de poltronas (Adaptada do ORSE)
B43: Descrição | C43: Fonte | D43: Código | E43: Unidade | F43: Quantidade | G43: Valor Unit. | H43: Valor Total
B44: CARPINTEIRO DE FORMAS COM ENCARGOS COMPLEMENTARES | C44: SINAPI | D44: 88262 | E44: h | F44: 0.09 | G44: 15.23 | H44: =F44*G44 -> 1.3707
B45: SERVENTE COM ENCARGOS COMPLEMENTARES | C45: SINAPI | D45: 88316 | E45: h | F45: 0.9 | G45: 12 | H45: =F45*G45 -> 10.8
B46: TOTAL | H46: =SUM(H44:H45) -> 12.1707
B49: Composição 107 (und)
B50: Remoção de cortinas
B51: Descrição | C51: Fonte | D51: Código | E51: Unidade | F51: Quantidade | G51: Valor Unit. | H51: Valor Total
B52: SERVENTE COM ENCARGOS COMPLEMENTARES | C52: SINAPI | D52: 88316 | E52: h | F52: 1 | G52: 12 | H52: =F52*G52 -> 12
B53: TOTAL | H53: =SUM(H52:H52) -> 12
B55: Composição 108 (m²)
B56: Remoção de pintura látex (raspagem e/ou lixamento e/ou escovação) (Adaptado do ORSE)
B57: Descrição | C57: Fonte | D57: Código | E57: Unidade | F57: Quantidade | G57: Valor Unit. | H57: Valor Total
B58: SERVENTE COM ENCARGOS COMPLEMENTARES | C58: SINAPI | D58: 88316 | E58: h | F58: 0.8 | G58: 12 | H58: =F58*G58 -> 9.6
B59: TOTAL | H59: =SUM(H58:H58) -> 9.6
B61: Composição 109 (m³)
B62: Demolicao de alvenaria de tijolos macicos s/reaproveitamento (calçada) (Adaptado do ORSE)
B63: Descrição | C63: Fonte | D63: Código | E63: Unidade | F63: Quantidade | G63: Valor Unit. | H63: Valor Total
B64: PEDREIRO COM ENCARGOS COMPLEMENTARES | C64: SINAPI | D64: 88309 | E64: h | F64: 0.4 | G64: 15.32 | H64: =F64*G64 -> 6.128
B65: SERVENTE COM ENCARGOS COMPLEMENTARES | C65: SINAPI | D65: 88316 | E65: h | F65: 4 | G65: 12 | H65: =F65*G65 -> 48
B66: TOTAL | H66: =SUM(H64:H65) -> 54.128
B68: Composição 110 (m³)
B69: Escavação manual de vala ou cava em material de 1ª categoria, profundidade até 1,50m (Adaptada do ORSE)
B70: Descrição | C70: Fonte | D70: Código | E70: Unidade | F70: Quantidade | G70: Valor Unit. | H70: Valor Total
B71: SERVENTE COM ENCARGOS COMPLEMENTARES | C71: SINAPI | D71: 88316 | E71: h | F71: 3 | G71: 12 | H71: =F71*G71 -> 36
B72: TOTAL | H72: =SUM(H71:H71) -> 36
B74: Composição 111 (und)
B75: Caixa de alvenaria de tijolo maciço (0,10m) dimensões interna 30x30x30cm revestida internamente com argamassa 1:3 e tampa de concreto (Adaptada do ORSE)
B76: Descrição | C76: Fonte | D76: Código | E76: Unidade | F76: Quantidade | G76: Valor Unit. | H76: Valor Total
B77: FORMA TABUA P/CONCRETO EM FUNDACAO S/REAPROVEITAMENTO | C77: SINAPI | D77: 74074/004 | E77: m² | F77: 0.13 | G77: 72.96 | H77: =F77*G77 -> 9.4848
B78: CONCRETO FCK = 15MPA, TRAÇO 1:3,4:3,5 (CIMENTO/ AREIA MÉDIA/ BRITA 1) | C78: SINAPI | D78: 94969 | E78: m³ | F78: 0.013 | G78: 256.7 | H78: =F78*G78 -> 3.3371
B79: Lançamento de concreto simples fabricado na obra, inclusive adensamento e acabamento em peças da superestrutura | C79: COMPOSIÇÃO | D79: 1001 | E79: m³ | F79: 0.013 | G79: =H595 -> 31.5234 | H79: 0.4098042
B80: ARMAÇÃO UTILIZANDO AÇO CA-25 DE 6,3 MM - MONTAGEM. AF_12/2015 | C80: SINAPI | D80: 92882 | E80: kg | F80: 0.6 | G80: 9.46 | H80: 5.676
B81: ALVENARIA EM TIJOLO CERAMICO MACICO 5X10X20CM 1 VEZ (ESPESSURA 20CM), ASSENTADO COM ARGAMASSA TRACO 1:2:8 (CIMENTO, CAL E AREIA) | C81: SINAPI | D81: 72131 | E81: m² | F81: 0.36 | G81: 93.94 | H81: 33.8184
B82: Escavação manual de vala ou cava em material de 1ª categoria, profundidade até 1,50m | C82: COMPOSIÇÃO | D82: 110 | E82: m³ | F82: 0.06 | G82: =H72 -> 36 | H82: 2.16
B83: CHAPISCO APLICADO EM ALVENARIAS E ESTRUTURAS DE CONCRETO INTERNAS, COM COLHER DE PEDREIRO. ARGAMASSA TRAÇO 1:3 COM PREPARO MANUAL. AF_06/2014 | C83: SINAPI | D83: 87879 | E83: m² | F83: 0.48 | G83: 2.39 | H83: 1.1472
B84: Reboco especial de parede 2cm com argamassa traço t3 - 1:3 cimento / areia/impermeabilizante | C84: COMPOSIÇÃO | D84: 1002 | E84: m³ | F84: 0.48 | G84: =H603 -> 34.2392 | H84: 16.434816
B85: TOTAL | H85: =SUM(H77:H84) -> 72.4681202
B87: Composição 112 (und)
B88: Luminária de embutir no forro, c/ lâmpada LED 10w, formato tradicional, Forncecimento e Instalação (Laterais Plateia) (Adaptada do ORSE)
B89: Descrição | C89: Fonte | D89: Código | E89: Unidade | F89: Quantidade | G89: Valor Unit. | H89: Valor Total
B90: LAMPADA LED 10 W BIVOLT BRANCA, FORMATO TRADICIONAL (BASE E27) | C90: SINAPI (Insumos) | D90: 38194 | E90: und | F90: 1 | G90: 39.32 | H90: =F90*G90 -> 39.32
B91: Luminária de embutir no forro, em aluminio repuxado | C91: ORSE (Insumos) | D91: 7952 | E91: und | F91: 1 | G91: 66.39 | H91: =F91*G91 -> 66.39
B92: SERVENTE COM ENCARGOS COMPLEMENTARES | C92: SINAPI | D92: 88316 | E92: h | F92: 0.7 | G92: 12 | H92: =F92*G92 -> 8.4
B93: ELETRICISTA COM ENCARGOS COMPLEMENTARES | C93: SINAPI | D93: 88264 | E93: h | F93: 0.7 | G93: 18.56 | H93: =F93*G93 -> 12.992
B94: TOTAL | H94: =SUM(H90:H93) -> 127.102
B96: Composição 113 (und)
B97: Luminária de embutir aberta c/ 2 lâmpadas tubo led T8 2 x 18/20 w Base G13 (Palco e Camarim) (Adaptada do ORSE)
B98: Descrição | C98: Fonte | D98: Código | E98: Unidade | F98: Quantidade | G98: Valor Unit. | H98: Valor Total
B99: LAMPADA LED TUBULAR T8 BIVOLT 1,2m 18/20 W, BASE G13 | C99: SINAPI (Insumos) | D99: 39387 | E99: und | F99: 2 | G99: 69.73 | H99: =F99*G99 -> 139.46
B100: Luminária de embutir no forro aberta 2 x 40 w | C100: ORSE (Insumos) | D100: 1364 | E100: und | F100: 1 | G100: 128.01 | H100: =F100*G100 -> 128.01
B101: SERVENTE COM ENCARGOS COMPLEMENTARES | C101: SINAPI | D101: 88316 | E101: h | F101: 1 | G101: 12 | H101: =F101*G101 -> 12
B102: ELETRICISTA COM ENCARGOS COMPLEMENTARES | C102: SINAPI | D102: 88264 | E102: h | F102: 1 | G102: 18.56 | H102: =F102*G102 -> 18.56
B103: TOTAL | H103: =SUM(H99:H102) -> 298.03
B105: Composição 114 (und)
B106: Lâmpada LED Tubular T8 Bivolt 1,20m 18/20W, Base G13 (Plateia)
B107: Descrição | C107: Fonte | D107: Código | E107: Unidade | F107: Quantidade | G107: Valor Unit. | H107: Valor Total
B108: LAMPADA LED TUBULAR T8 BIVOLT 1,2m 18/20 W, BASE G13, 1900 lúmens | C108: SINAPI (Insumos) | D108: 39387 | E108: und | F108: 1 | G108: 69.73 | H108: =F108*G108 -> 69.73
B109: AUXILIAR DE ELETRICISTA COM ENCARGOS COMPLEMENTARES | C109: SINAPI | D109: 88247 | E109: h | F109: 0.1 | G109: 14.85 | H109: =F109*G109 -> 1.485
B110: TOTAL | H110: =SUM(H108:H109) -> 71.215
B112: Composição 115 (und)
B113: Luminária tipo Arandela LED 6W com foco bidirecional para cima e para baixo com caixa em alumínio e pintura epóxidica na cor pereta - Fornecimento (luz amarela)
B114: Descrição | C114: Fonte | D114: Código | E114: Unidade | F114: Quantidade | G114: Valor Unit. | H114: Valor Total
B115: Luminária tipo Arandela LED 6W com foco bidirecional para cima e para baixo com caixa em alumínio e pintura epóxidica na cor pereta - Fornecimento (luz amarela) | C115: COTAÇÃO | D115: 1 | E115: und | F115: 1 | G115: ='Cotação 01'!J20 -> 108.1383333 | H115: =F115*G115 -> 108.1383333
B116: AUXILIAR DE ELETRICISTA COM ENCARGOS COMPLEMENTARES | C116: SINAPI | D116: 88247 | E116: h | F116: 0.1 | G116: 14.85 | H116: =F116*G116 -> 1.485
B117: TOTAL | H117: =SUM(H115:H116) -> 109.6233333
B119: Composição 116 (und)
B120: Disjuntor termomagnetico tripolar 63 A, padrão DIN (Europeu - linha branca), curva C (Adaptado do ORSE)
B121: Descrição | C121: Fonte | D121: Código | E121: Unidade | F121: Quantidade | G121: Valor Unit. | H121: Valor Total
B122: Disjuntor tripolar 63 A, padrão DIN ( linha branca ), curva de disparo C, corrente de interrupção 5KA. | C122: ORSE (Insumos) | D122: 828 | E122: und | F122: 1 | G122: 61.4 | H122: =F122*G122 -> 61.4
B123: SERVENTE COM ENCARGOS COMPLEMENTARES | C123: SINAPI | D123: 88316 | E123: h | F123: 1 | G123: 12 | H123: =F123*G123 -> 12
B124: ELETRICISTA COM ENCARGOS COMPLEMENTARES | C124: SINAPI | D124: 88264 | E124: h | F124: 1 | G124: 18.56 | H124: =F124*G124 -> 18.56
B125: TOTAL | H125: =SUM(H122:H124) -> 91.96
B127: Composição 117 (und)
B128: Disjuntor termomagnetico tripolar 100 A, padrão DIN (Europeu - linha branca), 10KA (Adaptado do ORSE)
B129: Descrição | C129: Fonte | D129: Código | E129: Unidade | F129: Quantidade | G129: Valor Unit. | H129: Valor Total
B130: Disjuntor tripolar 100 A, padrão DIN ( linha branca ), corrente de interrupção 10KA. | C130: ORSE (Insumos) | D130: 8830 | E130: und | F130: 1 | G130: 284.84 | H130: =F130*G130 -> 284.84
B131: SERVENTE COM ENCARGOS COMPLEMENTARES | C131: SINAPI | D131: 88316 | E131: h | F131: 2 | G131: 12 | H131: =F131*G131 -> 24
B132: ELETRICISTA COM ENCARGOS COMPLEMENTARES | C132: SINAPI | D132: 88264 | E132: h | F132: 2 | G132: 18.56 | H132: =F132*G132 -> 37.12
B133: TOTAL | H133: =SUM(H130:H132) -> 345.96
B135: Composição 118 (und)
B136: Dispositivo de proteção contra surto de tensão DPS 60kA - 275v (Adaptado do ORSE)
B137: Descrição | C137: Fonte | D137: Código | E137: Unidade | F137: Quantidade | G137: Valor Unit. | H137: Valor Total
B138: Dispositivo de proteção contra surto de tensão DPS 60KA - 275v (para-raio) | C138: ORSE (insumos) | D138: 9225 | E138: und | F138: 1 | G138: 244.32 | H138: =F138*G138 -> 244.32
B139: ELETRICISTA COM ENCARGOS COMPLEMENTARES | C139: SINAPI | D139: 88264 | E139: h | F139: 0.3 | G139: 18.56 | H139: =F139*G139 -> 5.568
B140: SERVENTE COM ENCARGOS COMPLEMENTARES | C140: SINAPI | D140: 88316 | E140: h | F140: 0.3 | G140: 12 | H140: =F140*G140 -> 3.6
B141: TOTAL | H141: =SUM(H138:H140) -> 253.488
B143: Composição 119 (m²)
B144: Telhamento com telha de alumínio, ondulada, dupla, termoacustica, esp= 0,7 mm, com enchimento em poliuretano/lã de vidro, esp = 50 mm, inclusive elementos de fixação, pré-pintadas com pintura eletrostática a pó na cor branco, incluindo acabamento tapa onda (fornecimento e montagem)
B145: Descrição | C145: Fonte | D145: Código | E145: Unidade | F145: Quantidade | G145: Valor Unit. | H145: Valor Total
B146: Telhamento com telha de alumínio, ondulada, dupla, termoacustica, esp= 0,7 mm, com enchimento em poliuretano/lã de vidro, esp = 50 mm, inclusive elementos de fixação, pré-pintadas com pintura eletrostática a pó na cor branco, incluindo acabamento tapa onda (fornecimento e montagem) | C146: ORSE (insumos) | D146: 12894 | E146: m² | F146: 1.06 | G146: 123.6 | H146: =F146*G146 -> 131.016
B147: Massa 3M p/calafetação | C147: ORSE (insumos) | D147: 7696 | E147: kg | F147: 0.004 | G147: 101.09 | H147: =F147*G147 -> 0.40436
B148: Parafuso com rosca soberba galvanizado 110x8mm | C148: ORSE (insumos) | D148: 7884 | E148: und | F148: 0.82 | G148: 1.05 | H148: =F148*G148 -> 0.861
B149: MONTADOR DE ESTRUTURA METÁLICA COM ENCARGOS COMPLEMENTARES | C149: SINAPI | D149: 88278 | E149: h | F149: 0.22 | G149: 9.87 | H149: =F149*G149 -> 2.1714
B150: SERVENTE COM ENCARGOS COMPLEMENTARES | C150: SINAPI | D150: 88316 | E150: h | F150: 0.22 | G150: 12 | H150: =F150*G150 -> 2.64
B151: TOTAL | H151: =SUM(H146:H150) -> 137.09276
B153: Composição 120 (m³)
B154: Remoção de esquadria de madeira, com ou sem batente (Adaptado do ORSE)
B155: Descrição | C155: Fonte | D155: Código | E155: Unidade | F155: Quantidade | G155: Valor Unit. | H155: Valor Total
B156: CARPINTEIRO DE FORMAS COM ENCARGOS COMPLEMENTARES | C156: SINAPI | D156: 88262 | E156: h | F156: 0.08 | G156: 15.23 | H156: =F156*G156 -> 1.2184
B157: SERVENTE COM ENCARGOS COMPLEMENTARES | C157: SINAPI | D157: 88316 | E157: h | F157: 0.8 | G157: 12 | H157: =F157*G157 -> 9.6
B158: TOTAL | H158: =SUM(H156:H157) -> 10.8184
B160: Composição 121 (m²)
B161: Bancada em granito branco fortaleza, e = 2cm
B162: Descrição | C162: Fonte | D162: Código | E162: Unidade | F162: Quantidade | G162: Valor Unit. | H162: Valor Total
B163: Cantoneira alumínio anodizado natural, 1" x 1/8" - vara com 6m | C163: ORSE (insumos) | D163: 3116 | E163: m | F163: 0.6 | G163: 7.08 | H163: =F163*G163 -> 4.248
B164: Tampo para bancada em granito branco fortaleza, e=2cm | C164: ORSE (insumos) | D164: 12602 | E164: m² | F164: 1 | G164: 267.75 | H164: =F164*G164 -> 267.75
B165: PEDREIRO COM ENCARGOS COMPLEMENTARES | C165: SINAPI | D165: 88309 | E165: h | F165: 1 | G165: 15.32 | H165: =F165*G165 -> 15.32
B166: SERVENTE COM ENCARGOS COMPLEMENTARES | C166: SINAPI | D166: 88316 | E166: h | F166: 1 | G166: 12 | H166: =F166*G166 -> 12
B167: TOTAL | H167: =SUM(H163:H166) -> 299.318
B169: Composição 122 (m²)
B170: Laje pré-fabricada treliçada para piso ou cobertura, intereixo 38cm, h=12cm, el. enchimento em EPS h=8cm, inclusive escoramento em madeira e capeamento 4cm. (Adaptado do ORSE)
B171: Descrição | C171: Fonte | D171: Código | E171: Unidade | F171: Quantidade | G171: Valor Unit. | H171: Valor Total
B172: Laje pré-fabricada treliçada para piso ou cobertura, h=12cm, el. enchimento em bloco EPS, h=8cm | C172: ORSE (Insumos) | D172: 1286 | E172: m² | F172: 1 | G172: 27 | H172: =F172*G172 -> 27
B173: Madeira mista serrada (barrote) 6 x 6cm - 0,0036 m3/m (angelim, louro) | C173: ORSE (Insumos) | D173: 1569 | E173: m | F173: 1.71 | G173: 5.52 | H173: =F173*G173 -> 9.4392
B174: Madeira mista serrada (sarrafo) 2,2 x 5,5cm - 0,00121 m³/m | C174: ORSE (Insumos) | D174: 6995 | E174: m | F174: 0.97 | G174: 2.21 | H174: 2.1437
B175: AREIA GROSSA - POSTO JAZIDA/FORNECEDOR (RETIRADO NA JAZIDA, SEM TRANSPORTE) | C175: SINAPI (Insumos) | D175: 367 | E175: m³ | F175: 0.049 | G175: 60 | H175: 2.94
B176: CIMENTO PORTLAND COMPOSTO CP II-32 | C176: SINAPI (Insumos) | D176: 1379 | E176: kg | F176: 15 | G176: 0.43 | H176: 6.45
B177: PEDRA BRITADA N. 2 (19 A 38 MM) POSTO PEDREIRA/FORNECEDOR, SEM FRETE | C177: SINAPI (Insumos) | D177: 4718 | E177: m³ | F177: 0.033 | G177: 62.48 | H177: 2.06184
B178: PEDRA BRITADA N. 1 (9,5 a 19 MM) POSTO PEDREIRA/FORNECEDOR, SEM FRETE | C178: SINAPI (Insumos) | D178: 4721 | E178: m³ | F178: 0.011 | G178: 62.48 | H178: 0.68728
B179: PREGO DE ACO POLIDO COM CABECA 18 X 30 (2 3/4 X 10) | C179: SINAPI (Insumos) | D179: 5075 | E179: kg | F179: 0.03 | G179: 9.86 | H179: 0.2958
B180: TABUA MADEIRA 3A QUALIDADE 2,5 X 23,0CM (1 X 9") NAO APARELHADA | C180: SINAPI (Insumos) | D180: 10567 | E180: m | F180: 0.56 | G180: 8.56 | H180: =F180*G180 -> 4.7936
B181: Aço CA - 50 Ø 6,3 a 12,5mm, inclusive corte, dobragem, montagem e colocacao de ferragens nas formas, para superestruturas e fundações | C181: ORSE | D181: 140 | E181: kg | F181: 1.89 | G181: 6.3 | H181: =F181*G181 -> 11.907
B182: PEDREIRO COM ENCARGOS COMPLEMENTARES | C182: SINAPI | D182: 88309 | E182: h | F182: 0.44 | G182: 15.32 | H182: =F182*G182 -> 6.7408
B183: SERVENTE COM ENCARGOS COMPLEMENTARES | C183: SINAPI | D183: 88316 | E183: h | F183: 1.88 | G183: 12 | H183: 22.56
B184: TOTAL | H184: =SUM(H172:H183) -> 97.01922
B186: Composição 123 (m3)
B187: Concretagem de vigas com concreto simples com preparo mecânico em betoneira de 400 L, fck=25mpa, inclui lançamento, adensamento e acabamento
B188: Descrição | C188: Fonte | D188: Código | E188: Unidade | F188: Quantidade | G188: Valor Unit. | H188: Valor Total
B189: VIBRADOR DE IMERSÃO, DIÂMETRO DE PONTEIRA 45MM, MOTOR ELÉTRICO TRIFÁSICO POTÊNCIA DE 2 CV - CHP DIURNO. AF_06/2015 | C189: SINAPI | D189: 90586 | E189: CHP | F189: 0.615 | G189: 1.09 | H189: =F189*G189 -> 0.67035
B190: VIBRADOR DE IMERSÃO, DIÂMETRO DE PONTEIRA 45MM, MOTOR ELÉTRICO TRIFÁSICO POTÊNCIA DE 2 CV - CHI DIURNO. AF_06/2015 | C190: SINAPI | D190: 90587 | E190: CHI | F190: 0.575 | G190: 0.27 | H190: =F190*G190 -> 0.15525
B191: AREIA MEDIA - POSTO JAZIDA/FORNECEDOR (RETIRADO NA JAZIDA, SEM TRANSPORTE) | C191: SINAPI (Insumos) | D191: 370 | E191: M3 | F191: 0.751 | G191: 69.95 | H191: 52.53245
B192: CIMENTO PORTLAND COMPOSTO CP II-32 | C192: SINAPI (Insumos) | D192: 1379 | E192: KG | F192: 362.66 | G192: 0.43 | H192: 155.9438
B193: PEDRA BRITADA N. 1 (9,5 a 19 MM) POSTO PEDREIRA/FORNECEDOR, SEM FRETE | C193: SINAPI (Insumos) | D193: 4721 | E193: M3 | F193: 0.593 | G193: 62.48 | H193: 37.05064
B194: OPERADOR DE BETONEIRA ESTACIONÁRIA/MISTURADOR COM ENCARGOS COMPLEMENTARES | C194: SINAPI | D194: 88377 | E194: H | F194: 1.46 | G194: 13.14 | H194: 19.1844
B195: BETONEIRA CAPACIDADE NOMINAL DE 400 L, CAPACIDADE DE MISTURA 280 L, MOTOR ELÉTRICO TRIFÁSICO POTÊNCIA DE 2 CV, SEM CARREGADOR - CHP DIURNO. AF_10/2014 | C195: SINAPI | D195: 88830 | E195: CHP | F195: 0.75 | G195: 1.04 | H195: 0.78
B196: BETONEIRA CAPACIDADE NOMINAL DE 400 L, CAPACIDADE DE MISTURA 280 L, MOTOR ELÉTRICO TRIFÁSICO POTÊNCIA DE 2 CV, SEM CARREGADOR - CHI DIURNO. AF_10/2014 | C196: SINAPI | D196: 88831 | E196: CHI | F196: 0.71 | G196: 0.22 | H196: 0.1562
B197: CARPINTEIRO DE FORMAS COM ENCARGOS COMPLEMENTARES | C197: SINAPI | D197: 88262 | E197: h | F197: 1.19 | G197: 15.23 | H197: 18.1237
B198: PEDREIRO COM ENCARGOS COMPLEMENTARES | C198: SINAPI | D198: 88309 | E198: h | F198: 3.571 | G198: 15.32 | H198: 54.70772
B199: SERVENTE COM ENCARGOS COMPLEMENTARES | C199: SINAPI | D199: 88316 | E199: h | F199: =8.407+2.31 -> 10.717 | G199: 12 | H199: 128.604
B200: TOTAL | H200: =SUM(H189:H199) -> 467.90851
B202: Composição 124 (m²)
B203: Revisão de esquadria de madeira (Adaptado ORSE)
B204: Descrição | C204: Fonte | D204: Código | E204: Unidade | F204: Quantidade | G204: Valor Unit. | H204: Valor Total
B205: Batente (caixão) em madeira de lei, l=14cm, completo, c/02 jogos de alizar | C205: ORSE (Insumos) | D205: 487 | E205: m | F205: 0.9 | G205: 19.51 | H205: =F205*G205 -> 17.559
B206: Dobradiça aço laminado,tipo reforçado, 3.1/2" x 2.1/2, esp.2.4 mm (Lider ou similar) | C206: ORSE (Insumos) | D206: 843 | E206: und | F206: 0.54 | G206: 11.67 | H206: =F206*G206 -> 6.3018
B207: Fechadura Pado, linha Ecoinox, modelo Victória, maçaneta, roseta, testa e contra testa em em aço inoxável, cilindro em latão maciço, ref. 583-90 E, similar ou superior | C207: ORSE (Insumos) | D207: 944 | E207: und | F207: 0.18 | G207: 107.51 | H207: 19.3518
B208: Faixa de madeira de lei (muiracatiara) aparelhada 10 x 2,5cm (0,0025 m³/m) | C208: ORSE (Insumos) | D208: 1560 | E208: m | F208: 0.18 | G208: 9.73 | H208: 1.7514
B209: Parafuso de metal 2 " x 12 (sextavado) | C209: ORSE (Insumos) | D209: 1690 | E209: und | F209: 1.08 | G209: 2.65 | H209: 2.862
B210: SERVENTE COM ENCARGOS COMPLEMENTARES | C210: SINAPI | D210: 88316 | E210: h | F210: 0.18 | G210: 12 | H210: 2.16
B211: CARPINTEIRO DE FORMAS COM ENCARGOS COMPLEMENTARES | C211: SINAPI | D211: 88262 | E211: h | F211: 0.9 | G211: 15.23 | H211: 13.707
B212: TOTAL | H212: =SUM(H205:H211) -> 63.693
B214: Composição 125 (m²)
B215: Revisão de esquadria de ferro (Adaptado ORSE)
B216: Descrição | C216: Fonte | D216: Código | E216: Unidade | F216: Quantidade | G216: Valor Unit. | H216: Valor Total
B217: Alavanca redonda 6kg 1" x 1,5m | C217: ORSE (Insumos) | D217: 148 | E217: und | F217: 0.5 | G217: 89.9 | H217: =F217*G217 -> 44.95
B218: Chapa de aço galvanizado nº 24 - e=0,65mm - dimensões 2,00x1,00m (5,20 kg/m2) | C218: ORSE (Insumos) | D218: 580 | E218: m² | F218: 0.18 | G218: 25.08 | H218: =F218*G218 -> 4.5144
B219: Fechadura embutir com cilindro(imab - ref. luna, 1600, similar ou superior) | C219: ORSE (Insumos) | D219: 949 | E219: und | F219: 0.18 | G219: 53.61 | H219: =F219*G219 -> 9.6498
B220: SERRALHEIRO COM ENCARGOS COMPLEMENTARES | C220: SINAPI | D220: 88315 | E220: h | F220: 0.9 | G220: 14.6 | H220: =F220*G220 -> 13.14
B221: SERVENTE COM ENCARGOS COMPLEMENTARES | C221: SINAPI | D221: 88316 | E221: h | F221: 0.18 | G221: 12 | H221: =F221*G221 -> 2.16
B222: TOTAL | H222: =SUM(H217:H221) -> 74.4142
B224: Composição 126 (und)
B225: Porta de giro em madeira compensada 01 folha lisa (0,80m x 2,10m) em quadro estrutural de madeira, preenchido com lâminas em chapa de compensado 4mm de espessura, revestida com laminado melamínico madeirado (8mm), tonalidade idêntica ao painel da parede adjacente, inclui alizares. (tonalidade a ser definida pelo setor de Arquitetura da SINFRA) ( P2).
B226: Descrição | C226: Fonte | D226: Código | E226: Unidade | F226: Quantidade | G226: Valor Unit. | H226: Valor Total
B227: Porta de madeira para verniz, semi-oca (leve ou média), 80x210cm, espessura de 3,5cm, incluso dobradiças fornecimento e instalação. Af_08/2015 | C227: SINAPI | D227: 91011 | E227: und | F227: 1 | G227: 300.22 | H227: =F227*G227 -> 300.22
B228: ADUELA / MARCO / BATENTE PARA PORTA DE 80X210CM, PADRÃO POPULAR - FORNECIMENTO E MONTAGEM. AF_08/2015 | C228: SINAPI | D228: 91288 | E228: und | F228: 1 | G228: 122.43 | H228: =F228*G228 -> 122.43
B229: Cantoneira de madeira 3,0x3,0x1,0cm | C229: SINAPI | D229: 85015 | E229: m | F229: 2.4 | G229: 17.5 | H229: =F229*G229 -> 42
B230: Fechadura de embutir com cilindro, externa, completa, acabamento padrão popular, incluso execução de furo - fornecimento e instalação. | C230: SINAPI | D230: 91304 | E230: und | F230: 1 | G230: 58.13 | H230: =F230*G230 -> 58.13
... 369 more rows

Sheet ORÇAMENTO
A2: UNIVERSIDADE FEDERAL DE ALAGOAS - UFAL
A3: SUPERINTENDÊNCIA DE INFRAESTRUTURA - SINFRA
A4: GERENCIA DE PROJETOS,OBRAS E SERVIÇOS DE ENGENHARIA - GPOS
A6: ORÇAMENTO BÁSICO ESTIMATIVO PARA OBRA DE REFORMA DO AUDITÓRIO GUEDES DE MIRANDA NO ESPAÇO CULTURAL DA UFAL.
A8: ITEM | B8: DESCRIÇÃO DOS SERVIÇOS | C8: FONTE | D8: CÓDIGO | E8: UND | F8: QUANT. | G8: Custo UNIT. de Referência | H8: Custo TOTAL de Referência | I8: VARIAÇÃO ENTRE O Custo UNITÁRIO DE REFERÊNCIA E O Custo UNITÁRIO DA PROPOSTA (%) | J8: CUSTO UNITÁRIO DA PROPOSTA | K8: CUSTO TOTAL DA PROPOSTA | L8: CUSTO POR ITEM DA PROPOSTA
A9: 1 | B9: PROJETOS COMPLEMENTARES | H9: =SUM(H10:H10) -> 360.15 | L9: =SUM(K10:K10) -> 0 | M9: =H9/$H$223 -> 0.0006691395927
A10: 1.1 | B10: Projeto de "as built" | C10: ORSE (insumos) | D10: 7325 | E10: m² | F10: 514.5 | G10: 0.7 | H10: =F10*G10 -> 360.15 | I10: =IF(J10="",0,(J10-G10)/G10) -> 0 | K10: =J10*F10 -> 0 | M10: 0.0006691395927
M11: 0
A12: 2 | B12: SERVIÇOS PRELIMINARES | H12: =SUM(H13:H32) -> 44775.56685 | L12: =SUM(K13:K32) -> 0 | M12: 0.0831906277
A13: 2.1 | B13: Mobilização/Desmobilização: | M13: 0
A14: 2.1.1 | B14: EXECUÇÃO DE ESCRITÓRIO EM CANTEIRO DE OBRA EM CHAPA DE MADEIRA COMPENSADA, NÃO INCLUSO MOBILIÁRIO E EQUIPAMENTOS. AF_02/2016 | C14: SINAPI | D14: 93207 | E14: m² | F14: =2.2*3.4 -> 7.48 | G14: 582.19 | H14: =F14*G14 -> 4354.7812 | I14: =IF(J14="",0,(J14-G14)/G14) -> 0 | K14: =J14*F14 -> 0 | M14: 0.008090952432
A15: 2.1.2 | B15: EXECUÇÃO DE ALMOXARIFADO EM CANTEIRO DE OBRA EM CHAPA DE MADEIRA COMPENSADA, INCLUSO PRATELEIRAS. AF_02/2016 | C15: SINAPI | D15: 93208 | E15: m² | F15: 12.4 | G15: 443.11 | H15: =F15*G15 -> 5494.564 | I15: =IF(J15="",0,(J15-G15)/G15) -> 0 | K15: =J15*F15 -> 0 | M15: 0.0102086084
A16: 2.1.3 | B16: EXECUÇÃO DE SANITÁRIO E VESTIÁRIO EM CANTEIRO DE OBRA EM CHAPA DE MADEIRA COMPENSADA, NÃO INCLUSO MOBILIÁRIO. AF_02/2016 | C16: SINAPI | D16: 93212 | E16: m² | F16: 14.5 | G16: 547.77 | H16: =F16*G16 -> 7942.665 | I16: =IF(J16="",0,(J16-G16)/G16) -> 0 | K16: =J16*F16 -> 0 | M16: 0.01475705018
A17: 2.1.4 | B17: EXECUÇÃO DE REFEITÓRIO EM CANTEIRO DE OBRA EM CHAPA DE MADEIRA COMPENSADA, NÃO INCLUSO MOBILIÁRIO E EQUIPAMENTOS. AF_02/2016 | C17: SINAPI | D17: 93210 | E17: m² | F17: 19.9 | G17: 353.56 | H17: =F17*G17 -> 7035.844 | I17: =IF(J17="",0,(J17-G17)/G17) -> 0 | K17: =J17*F17 -> 0 | M17: 0.01307222487
A18: 2.1.5 | B18: Placa de obra em chapa zincada, instalada | C18: SINAPI | D18: 74209/001 | E18: m² | F18: 6 | G18: 316.6 | H18: 1899.6 | I18: 0 | K18: 0 | M18: 0.003529356019
A19: 2.2 | B19: Demolições/Retiradas/Remoções: | M19: 0
A20: 2.2.1 | B20: DEMOLICAO DE ALVENARIA DE TIJOLOS FURADOS S/REAPROVEITAMENTO | C20: SINAPI | D20: 73899/002 | E20: m³ | F20: 2.18 | G20: 67.66 | H20: 147.4988 | I20: 0 | K20: 0 | M20: 0.000274044945
A21: 2.2.2 | B21: Remoção de telhamento com telhas onduladas fibrocimento ou aluminio | C21: COMPOSIÇÃO | D21: 101 | E21: m² | F21: 857 | G21: =COMPOSIÇÕES!H14 -> 5.9906 | H21: 5133.9442 | I21: 0 | K21: 0 | M21: 0.009538595948
A22: 2.2.3 | B22: Remoção de painéis verticais de madeira | C22: COMPOSIÇÃO | D22: 102 | E22: m² | F22: 92.9 | G22: =COMPOSIÇÕES!H20 -> 3 | H22: =F22*G22 -> 278.7 | I22: 0 | M22: 0.0005178098139
A23: 2.2.4 | B23: Remoção de piso em assoalho de madeira | C23: COMPOSIÇÃO | D23: 103 | E23: m² | F23: 105 | G23: =COMPOSIÇÕES!H26 -> 3 | H23: 315 | I23: 0 | K23: 0 | M23: 0.000585253288
A24: 2.2.5 | B24: Demolição de piso cerâmico | C24: COMPOSIÇÃO | D24: 104 | E24: m² | F24: 21.81 | G24: =COMPOSIÇÕES!H33 -> 9.4724 | H24: =F24*G24 -> 206.593044 | I24: 0 | K24: 0 | M24: 0.0003838389152
A25: 2.2.6 | B25: RETIRADA DE FORRO EM REGUAS DE PVC, INCLUSIVE RETIRADA DE PERFIS | C25: SINAPI | D25: 72238 | E25: m² | F25: 365.03 | G25: 5.41 | H25: 1974.8123 | I25: 0 | K25: 0 | M25: 0.003669096482
A26: 2.2.7 | B26: Remoção de estrutura metálica chumbada em concreto (alambrado, guarda-corpo) | C26: COMPOSIÇÃO | D26: 105 | E26: m² | F26: 89.38 | G26: =COMPOSIÇÕES!H39 -> 36 | H26: 3217.68 | I26: 0 | K26: 0 | M26: 0.00597827873
A27: 2.2.8 | B27: Remoção de poltronas | C27: COMPOSIÇÃO | D27: 106 | E27: und | F27: 337 | G27: =COMPOSIÇÕES!H46 -> 12.1707 | H27: 4101.5259 | I27: 0 | K27: 0 | M27: 0.007620417521
A28: 2.2.9 | B28: Remoção de cortinas | C28: COMPOSIÇÃO | D28: 107 | E28: und | F28: 3 | G28: =COMPOSIÇÕES!H53 -> 12 | H28: 36 | I28: 0 | K28: 0 | M28: 6.688609006e-05
A29: 2.2.10 | B29: Remoção de pintura(raspagem e/ou lixamento e/ou escovação) | C29: COMPOSIÇÃO | D29: 108 | E29: m² | F29: 244.73 | G29: =COMPOSIÇÕES!H59 -> 9.6 | H29: =F29*G29 -> 2349.408 | I29: 0 | K29: 0 | M29: 0.004365075419
A30: 2.2.11 | B30: Demolicao de alvenaria de tijolos macicos s/reaproveitamento (Faixa de calçada para alocação da tubulação de esgoto) | C30: COMPOSIÇÃO | D30: 109 | E30: m³ | F30: 1.29 | G30: =COMPOSIÇÕES!H66 -> 54.128 | H30: =F30*G30 -> 69.82512 | I30: 0 | K30: 0 | M30: 0.0001297313685
A31: 2.3 | B31: Esquadrias: | M31: 0
A32: 2.3.1 | B32: Remoção de esquadria de madeira, com ou sem batente | C32: COMPOSIÇÃO | D32: 120 | E32: m² | F32: 20.07 | G32: =COMPOSIÇÕES!H158 -> 10.8184 | H32: =F32*G32 -> 217.125288 | I32: 0 | K32: 0 | M32: 0.0004034072658
M33: 0
A34: 3 | B34: MOVIMENTO DE TERRA | H34: =SUM(H35:H36) -> 1098.72 | L34: =SUM(K35:K36) -> 0 | M34: 0.002041363469
A35: 3.1 | B35: Escavação manual de vala ou cava em material de 1ª categoria, profundidade até 1,50m (Escavação para alocação da tubulação de esgoto na calçada) | C35: COMPOSIÇÃO | D35: 110 | E35: m³ | F35: 15.41 | G35: =COMPOSIÇÕES!H72 -> 36 | H35: =F35*G35 -> 554.76 | I35: =IF(J35="",0,(J35-G35)/G35) -> 0 | K35: =J35*F35 -> 0 | M35: 0.001030714648
A36: 3.2 | B36: REATERRO DE VALA COM COMPACTAÇÃO MANUAL | C36: SINAPI | D36: 73964/006 | E36: m³ | F36: 15.11 | G36: 36 | H36: =F36*G36 -> 543.96 | I36: =IF(J36="",0,(J36-G36)/G36) -> 0 | K36: =J36*F36 -> 0 | M36: 0.001010648821
M37: 0
A38: 4 | B38: INFRAESTRUTURA | H38: =SUM(H39:H41) -> 3556.837801 | L38: =SUM(K39:K41) -> 0 | M38: 0.00660841593
A39: 4.1 | B39: Caixa de alvenaria de tijolo maciço (0,10m) dimensões interna 30x30x30cm revestida internamente com argamassa 1:3 e tampa de concreto | C39: COMPOSIÇÃO | D39: 111 | E39: und | F39: 5 | G39: =COMPOSIÇÕES!H85 -> 72.4681202 | H39: =F39*G39 -> 362.340601 | I39: =IF(J39="",0,(J39-G39)/G39) -> 0 | K39: =J39*F39 -> 0 | M39: 0.0006732096131
A40: 4.2 | B40: ALVENARIA EM TIJOLO CERAMICO MACICO 5X10X20CM 1/2 VEZ (ESPESSURA 10CM), ASSENTADO COM ARGAMASSA TRACO 1:2:8 (CIMENTO, CAL E AREIA) (Recomposição da calçada escavada) | C40: SINAPI | D40: 72132 | E40: m² | F40: 12.84 | G40: 47.61 | H40: =F40*G40 -> 611.3124 | I40: =IF(J40="",0,(J40-G40)/G40) -> 0 | K40: =J40*F40 -> 0 | M40: 0.001135786007
A41: 4.3 | B41: CONTRAPISO EM ARGAMASSA TRAÇO 1:4 (CIMENTO E AREIA), PREPARO MECÂNICO COM BETONEIRA 400 L, APLICADO EM ÁREAS MOLHADAS SOBRE LAJE, ADERIDO, ESPESSURA 3CM. AF_06/2014 (contrapiso da calçada ao longo do trajeto da tubulação do esgoto) | C41: SINAPI | D41: 87745 | E41: m² | F41: 75.18 | G41: 34.36 | H41: =F41*G41 -> 2583.1848 | I41: =IF(J41="",0,(J41-G41)/G41) -> 0 | K41: 0 | M41: 0.004799420311
M42: 0
A43: 5 | B43: SUPERESTRUTURA | H43: =SUM(H44:H48) -> 272.1575917 | L43: =SUM(K44:K48) -> 0 | M43: 0.0005056543664
A44: 5.1 | B44: Laje pré-fabricada treliçada para piso ou cobertura, intereixo 38cm, h=12cm, el. enchimento em EPS h=8cm, inclusive escoramento em madeira e capeamento 4cm (Laje da entrada principal do auditório) | C44: COMPOSIÇÃO | D44: 122 | E44: m² | F44: 1.62 | G44: =COMPOSIÇÕES!H184 -> 97.01922 | H44: =F44*G44 -> 157.1711364 | I44: =IF(J44="",0,(J44-G44)/G44) -> 0 | K44: =J44*F44 -> 0 | M44: 0.0002920156329
A45: 5.2 | B45: Concretagem de vigas com concreto simples com preparo mecânico em betoneira de 400 L, fck=25mpa, inclui lançamento, adensamento e acabamento (cintas para apoio da laje da entrada principal do auditório) | C45: COMPOSIÇÃO | D45: 123 | E45: m³ | F45: 0.03 | G45: =COMPOSIÇÕES!H200 -> 467.90851 | H45: =F45*G45 -> 14.0372553 | I45: =IF(J45="",0,(J45-G45)/G45) -> 0 | K45: =J45*F45 -> 0 | M45: 2.608047562e-05
A46: 5.3 | B46: MONTAGEM E DESMONTAGEM DE FÔRMA DE VIGA, ESCORAMENTO METÁLICO, PÉ-DIREITO SIMPLES, EM CHAPA DE MADEIRA RESINADA, 2 UTILIZAÇÕES. AF_12/2015 | C46: SINAPI | D46: 92452 | E46: m² | F46: 0.72 | G46: 91.61 | H46: =F46*G46 -> 65.9592 | I46: =IF(J46="",0,(J46-G46)/G46) -> 0 | K46: =J46*F46 -> 0 | M46: 0.0001225486942
A47: 5.4 | B47: ARMAÇÃO DE PILAR OU VIGA DE UMA ESTRUTURA CONVENCIONAL DE CONCRETO ARMADO EM UM EDIFÍCIO DE MÚLTIPLOS PAVIMENTOS UTILIZANDO AÇO CA-60 DE 5,0MM - MONTAGEM. AF_12/2015 | C47: SINAPI | D47: 92759 | E47: kg | F47: 1 | G47: 9.43 | H47: =F47*G47 -> 9.43 | I47: =IF(J47="",0,(J47-G47)/G47) -> 0 | K47: =J47*F47 -> 0 | M47: 1.75204397e-05
A48: 5.5 | B48: ARMAÇÃO DE PILAR OU VIGA DE UMA ESTRUTURA CONVENCIONAL DE CONCRETO ARMADO EM UM EDIFÍCIO DE MÚLTIPLOS PAVIMENTOS UTILIZANDO AÇO CA-50 DE 8.0 MM - MONTAGEM. AF_12/2015 | C48: SINAPI | D48: 92761 | E48: kg | F48: 3 | G48: 8.52 | H48: =F48*G48 -> 25.56 | I48: =IF(J48="",0,(J48-G48)/G48) -> 0 | K48: =J48*F48 -> 0 | M48: 4.748912394e-05
M49: 0
M50: 0
A51: 6 | B51: ALVENARIA/VEDAÇÃO/DIVISÓRIA | H51: =SUM(H52:H54) -> 4507.883715 | L51: =SUM(K52:K54) -> 0 | M51: 0.008375408782
A52: 6.1 | B52: (COMPOSIÇÃO REPRESENTATIVA) DO SERVIÇO DE ALVENARIA DE VEDAÇÃO DE BLOCOS VAZADOS DE CERÂMICA DE 9X19X19CM (ESPESSURA 9CM), PARA EDIFICAÇÃO HABITACIONAL UNIFAMILIAR (CASA) E EDIFICAÇÃO PÚBLICA PADRÃO. AF_11/2014 | C52: SINAPI | D52: 89168 | E52: m² | F52: =9.19+3.05*9.4 -> 37.86 | G52: 51.62 | H52: =F52*G52 -> 1954.3332 | I52: =IF(J52="",0,(J52-G52)/G52) -> 0 | K52: =J52*F52 -> 0 | M52: 0.003631047401
A53: 6.2 | B53: PAREDE COM PLACAS DE GESSO ACARTONADO (DRYWALL), PARA USO INTERNO, COM DUAS FACES DUPLAS E ESTRUTURA METÁLICA COM GUIAS DUPLAS, COM VÃOS. AF_06/2017_P | C53: SINAPI | D53: 96369 | E53: m² | F53: 17.28 | G53: 120.85 | H53: =F53*G53 -> 2088.288 | I53: =IF(J53="",0,(J53-G53)/G53) -> 0 | K53: =J53*F53 -> 0 | M53: 0.003879928312
A54: 6.3 | B54: Parede de bloco de gesso (50 x 65cm) - fornecimento e execução (Fechamento das janelas da região do palco) | C54: ORSE | D54: 10565 | E54: m² | F54: =2.9*1.07+1.45*1.07+1.45*1+2.9*1 -> 9.0045 | G54: 51.67 | H54: =F54*G54 -> 465.262515 | I54: 0 | K54: 0 | M54: 0.0008644330689
M55: 0
A56: 7 | B56: ESQUADRIAS | H56: =SUM(H57:H67) -> 12084.88281 | L56: =SUM(K57:K66) -> 0 | M56: 0.02245307112
A57: 7.1 | B57: De madeira: | M57: 0
A58: 7.1.1 | B58: Porta de giro em madeira compensada 01 folha lisa (0,80m x 2,10m) em quadro estrutural de madeira, preenchido com lâminas em chapa de compensado 4mm de espessura, revestida com laminado melamínico madeirado (8mm), tonalidade idêntica ao painel da parede adjacente, inclui alizares. (tonalidade a ser definida pelo setor de Arquitetura da SINFRA) ( P2). | C58: COMPOSIÇÃO | D58: 126 | E58: und | F58: 1 | G58: =COMPOSIÇÕES!H236 -> 734.63886 | H58: 734.63886 | I58: =IF(J58="",0,(J58-G58)/G58) -> 0 | K58: =J58*F58 -> 0 | M58: 0.001364920026
A59: 7.1.2 | B59: Porta de giro em madeira compensada 01 folha lisa (0,92m x 2,10m) em quadro estrutural de madeira, preenchido com lâminas em chapa de compensado 4mm de espessura, revestida com laminado melamínico na cor branco, com bandeira fixa com vidro e madeira, inclui alizares . (tonalidade a ser definida pelo setor de Arquitetura da SINFRA) ( P3). | C59: COMPOSIÇÃO | D59: 127 | E59: und | F59: 1 | G59: =COMPOSIÇÕES!H251 -> 872.3930461 | H59: 872.3930461 | I59: =IF(J59="",0,(J59-G59)/G59) -> 0 | K59: 0 | M59: 0.001620859996
A60: 7.1.3 | B60: Porta de giro em madeira compensada 01 folha lisa (0,90m x 2,10m) em quadro estrutural de madeira, preenchido com lâminas em chapa de compensado 4mm de espessura, revestida com laminado melamínico madeirado (8mm), tonalidade idêntica ao painel da parede adjacente, com bandeira fixa com vidro e madeira, inclui alizares . (tonalidade a ser definida pelo setor de Arquitetura da SINFRA) ( P4). | C60: COMPOSIÇÃO | D60: 128 | E60: und | F60: 1 | G60: =COMPOSIÇÕES!H266 -> 866.762297 | H60: 866.762297 | I60: =IF(J60="",0,(J60-G60)/G60) -> 0 | K60: 0 | M60: 0.001610398363
A61: 7.1.4 | B61: Porta de giro em madeira compensada 01 folha lisa (0,90m x 2,10m) em quadro estrutural de madeira, preenchido com lâminas em chapa de compensado 4mm de espessura, revestida com laminado melamínico na cor branco (8mm), com bandeira fixa com vidro e madeira, inclui alizarees . ( P8). | C61: COMPOSIÇÃO | D61: 130 | E61: und | F61: 1 | G61: =COMPOSIÇÕES!H294 -> 866.762297 | H61: 866.762297 | I61: =IF(J61="",0,(J61-G61)/G61) -> 0 | K61: 0 | M61: 0.001610398363
A62: 7.1.5 | B62: Revisão de esquadria de madeira (P6 P7) | C62: COMPOSIÇÃO | D62: 124 | E62: m² | F62: 54.57 | G62: =COMPOSIÇÕES!H212 -> 63.693 | H62: =F62*G62 -> 3475.72701 | K62: 0 | M62: 0.006457716384
A63: 7.2 | B63: De ferro: | M63: 0
A64: 7.2.1 | B64: Revisão de esquadria de ferro | C64: COMPOSIÇÃO | D64: 125 | E64: m² | F64: 13.02 | G64: =COMPOSIÇÕES!H222 -> 74.4142 | H64: 968.872884 | I64: =IF(J64="",0,(J64-G64)/G64) -> 0 | K64: 0 | M64: 0.001800114416
A65: 7.3 | B65: Vidro: | I65: =IF(J65="",0,(J65-G65)/G65) -> 0 | M65: 0
A66: 7.3.1 | B66: PORTA DE VIDRO TEMPERADO, DE GIRO, COM 02 FOLHAS DE 1,115X2,10M, ESPESSURA 10MM, INCLUSIVE ACESSORIOS ( P5) | C66: COMPOSIÇÃO | D66: 129 | E66: und | F66: 1 | G66: =COMPOSIÇÕES!H277 -> 3708.63842 | H66: =F66*G66 -> 3708.63842 | I66: =IF(J66="",0,(J66-G66)/G66) -> 0 | K66: 0 | M66: 0.006890453427
A67: 7.3.2 | B67: Janela em alumínio, cor N/P/B, tipo moldura-vidro, de correr, 1F+1M, com vidro 4 mm (J6 da sala de som) | C67: COMPOSIÇÃO | D67: 161 | E67: und | F67: 1.6 | G67: =COMPOSIÇÕES!H565 -> 369.43 | H67: =F67*G67 -> 591.088 | I67: =IF(J67="",0,(J67-G67)/G67) -> 0 | K67: =J67*F67 -> 0 | M67: 0.001098210145
M68: 0
A69: 8 | B69: COBERTURA | H69: =SUM(H70:H71) -> 128578.2896 | L69: =SUM(K70:K71) -> 0 | M69: 0.2388916405
A70: 8.1 | B70: Telhamento com telha de alumínio, ondulada, dupla, termoacustica, esp= 0,7 mm, com enchimento em poliuretano/lã de vidro, esp = 50 mm, inclusive elementos de fixação, pré-pintadas com pintura eletrostática a pó na cor branco, incluindo acabamento tapa onda (fornecimento e montagem) | C70: COMPOSIÇÃO | D70: 119 | E70: m² | F70: 857 | G70: =COMPOSIÇÕES!H151 -> 137.09276 | H70: =F70*G70 -> 117488.4953 | I70: =IF(J70="",0,(J70-G70)/G70) -> 0 | K70: =J70*F70 -> 0 | M70: 0.2182873911
A71: 8.2 | B71: Imunização de madeira contra cupim, com aplicação de 01 demão de Pentox, similar ou qualidade superior | C71: COMPOSIÇÃO | D71: 139 | E71: m² | F71: =F70 -> 857 | G71: =COMPOSIÇÕES!H383 -> 12.94025 | H71: 11089.79425 | I71: =IF(J71="",0,(J71-G71)/G71) -> 0 | K71: =J71*F71 -> 0 | M71: 0.02060424936
M72: 0
A73: 9 | B73: INSTALAÇÕES ELÉTRICAS | H73: =SUM(H74:H120) -> 34955.15387 | L73: =SUM(K74:K120) -> 0 | M73: =H73/$H$223 -> 0.06494482138
A74: 9.1 | B74: CAIXA RETANGULAR 4" X 2" BAIXA (0,30 M DO PISO), PVC, INSTALADA EM PAREDE - FORNECIMENTO E INSTALAÇÃO. AF_12/2015 | C74: SINAPI | D74: 91941 | E74: und | F74: 18 | G74: 6.92 | H74: =F74*G74 -> 124.56 | I74: =IF(J74="",0,(J74-G74)/G74) -> 0 | K74: =J74*F74 -> 0 | M74: 0.0002314258716
A75: 9.2 | B75: CAIXA RETANGULAR 4" X 2" MÉDIA (1,30 M DO PISO), PVC, INSTALADA EM PAREDE - FORNECIMENTO E INSTALAÇÃO. AF_12/2015 | C75: SINAPI | D75: 91940 | E75: und | F75: 6 | G75: 10.32 | H75: 61.92 | I75: =IF(J75="",0,(J75-G75)/G75) -> 0 | K75: 0 | M75: 0.0001150440749
A76: 9.3 | B76: CAIXA RETANGULAR 4" X 2" ALTA (2,00 M DO PISO), PVC, INSTALADA EM PAREDE - FORNECIMENTO E INSTALAÇÃO. AF_12/2015 | C76: SINAPI | D76: 91939 | E76: und | F76: 10 | G76: 19.41 | H76: 194.1 | I76: =IF(J76="",0,(J76-G76)/G76) -> 0 | K76: 0 | M76: 0.0003606275023
A77: 9.4 | B77: TOMADA BAIXA DE EMBUTIR (1 MÓDULO), 2P+T 10 A, INCLUINDO SUPORTE E PLACA - FORNECIMENTO E INSTALAÇÃO. AF_12/2015 | C77: SINAPI | D77: 92000 | E77: und | F77: 14 | G77: 20.18 | H77: 282.52 | I77: =IF(J77="",0,(J77-G77)/G77) -> 0 | K77: 0 | M77: 0.0005249071712
A78: 9.5 | B78: TOMADA BAIXA DE EMBUTIR (2 MÓDULOS), 2P+T 10 A, INCLUINDO SUPORTE E PLACA - FORNECIMENTO E INSTALAÇÃO. AF_12/2015 | C78: SINAPI | D78: 92008 | E78: und | F78: 4 | G78: 32.41 | H78: 129.64 | I78: =IF(J78="",0,(J78-G78)/G78) -> 0 | K78: =J78*F78 -> 0 | M78: 0.0002408642421
A79: 9.6 | B79: TOMADA MÉDIA DE EMBUTIR (1 MÓDULO), 2P+T 10 A, INCLUINDO SUPORTE E PLACA - FORNECIMENTO E INSTALAÇÃO. AF_12/2015 | C79: SINAPI | D79: 91996 | E79: und | F79: 3 | G79: 22.62 | H79: =F79*G79 -> 67.86 | I79: =IF(J79="",0,(J79-G79)/G79) -> 0 | K79: =J79*F79 -> 0 | M79: 0.0001260802798
A80: 9.7 | B80: TOMADA MÉDIA DE EMBUTIR (2 MÓDULOS), 2P+T 10 A, INCLUINDO SUPORTE E PLACA - FORNECIMENTO E INSTALAÇÃO. AF_12/2015 | C80: SINAPI | D80: 92004 | E80: und | F80: 1 | G80: 37.29 | H80: 37.29 | I80: =IF(J80="",0,(J80-G80)/G80) -> 0 | K80: =J80*F80 -> 0 | M80: 6.928284162e-05
A81: 9.8 | B81: TOMADA ALTA DE EMBUTIR (1 MÓDULO), 2P+T 10 A, INCLUINDO SUPORTE E PLACA - FORNECIMENTO E INSTALAÇÃO. AF_12/2015 | C81: SINAPI | D81: 91992 | E81: und | F81: 5 | G81: 28.9 | H81: 144.5 | I81: =IF(J81="",0,(J81-G81)/G81) -> 0 | M81: 0.0002684733337
A82: 9.9 | B82: INTERRUPTOR SIMPLES (1 MÓDULO), 10A/250V, INCLUINDO SUPORTE E PLACA -FORNECIMENTO E INSTALAÇÃO. AF_12/2015 | C82: SINAPI | D82: 91953 | E82: und | F82: 1 | G82: 19.08 | H82: 19.08 | I82: =IF(J82="",0,(J82-G82)/G82) -> 0 | M82: 3.544962773e-05
A83: 9.10 | B83: INTERRUPTOR SIMPLES (2 MÓDULOS), 10A/250V, INCLUINDO SUPORTE E PLACA -FORNECIMENTO E INSTALAÇÃO. AF_12/2015 | C83: SINAPI | D83: 91959 | E83: und | F83: 1 | G83: 30.23 | H83: 30.23 | I83: =IF(J83="",0,(J83-G83)/G83) -> 0 | M83: 5.616573618e-05
A84: 9.11 | B84: Luminária de embutir no forro, c/ lâmpada LED 10w, formato tradicional, Forncecimento e Instalação (Laterais Plateia) | C84: COMPOSIÇÃO | D84: 112 | E84: und | F84: 18 | G84: =COMPOSIÇÕES!H94 -> 127.102 | H84: 2287.836 | I84: 0 | K84: 0 | M84: 0.00425067791
A85: 9.12 | B85: Luminária de embutir aberta c/ 2 lâmpadas tubo led T8 2 x 18/20 w Base G13 (Palco e Camarim) | C85: COMPOSIÇÃO | D85: 113 | E85: und | F85: 19 | G85: =COMPOSIÇÕES!H103 -> 298.03 | H85: 5662.57 | I85: 0 | K85: 0 | M85: 0.01052075464
A86: 9.13 | B86: Lâmpada LED Tubular T8 Bivolt 1,20m 18/20W, Base G13 (Iluminação indireta Platéia) | C86: COMPOSIÇÃO | D86: 114 | E86: und | F86: 168 | G86: =COMPOSIÇÕES!H110 -> 71.215 | H86: 11964.12 | I86: 0 | K86: 0 | M86: 0.02222870022
A87: 9.14 | B87: Luminária tipo Arandela LED 6W com foco bidirecional para cima e para baixo com caixa em alumínio e pintura epóxidica na cor pereta - Fornecimento (luz amarela) | C87: COMPOSIÇÃO | D87: 115 | E87: und | F87: 2 | G87: =COMPOSIÇÕES!H117 -> 109.6233333 | H87: 219.2466667 | I87: 0 | K87: 0 | M87: 0.0004073486748
A88: 9.15 | B88: CABO DE COBRE FLEXÍVEL ISOLADO, 1,5 MM², ANTI-CHAMA 0,6/1,0 KV, PARA CIRCUITOS TERMINAIS - FORNECIMENTO E INSTALAÇÃO. AF_12/2015 (AZUL CLARO) | C88: SINAPI | D88: 91925 | E88: m | F88: 65.8 | G88: 2.29 | H88: =F88*G88 -> 150.682 | I88: 0 | K88: 0 | M88: 0.0002799591617
A89: 9.16 | B89: CABO DE COBRE FLEXÍVEL ISOLADO, 1,5 MM², ANTI-CHAMA 0,6/1,0 KV, PARA CIRCUITOS TERMINAIS - FORNECIMENTO E INSTALAÇÃO. AF_12/2015 (BRANCO) | C89: SINAPI | D89: 91925 | E89: m | F89: =27.8+18.9 -> 46.7 | G89: 2.29 | H89: 106.943 | I89: 0 | K89: 0 | M89: 0.0001986944203
A90: 9.17 | B90: CABO DE COBRE FLEXÍVEL ISOLADO, 1,5 MM², ANTI-CHAMA 0,6/1,0 KV, PARA CIRCUITOS TERMINAIS - FORNECIMENTO E INSTALAÇÃO. AF_12/2015 (VERMELHO OU PRETO) | C90: SINAPI | D90: 91925 | E90: m | F90: 34.1 | G90: 2.29 | H90: 78.089 | I90: 0 | K90: 0 | M90: 0.0001450852191
A91: 9.18 | B91: CABO DE COBRE FLEXÍVEL ISOLADO, 2,5 MM², ANTI-CHAMA 0,6/1,0 KV, PARA CIRCUITOS TERMINAIS - FORNECIMENTO E INSTALAÇÃO. AF_12/2015 (AZUL CLARO) | C91: SINAPI | D91: 91927 | E91: m | F91: 691.6 | G91: 3.06 | H91: 2116.296 | I91: 0 | K91: 0 | M91: 0.00393196569
A92: 9.19 | B92: CABO DE COBRE FLEXÍVEL ISOLADO, 2,5 MM², ANTI-CHAMA 0,6/1,0 KV, PARA CIRCUITOS TERMINAIS - FORNECIMENTO E INSTALAÇÃO. AF_12/2015 (BRANCO) | C92: SINAPI | D92: 91927 | E92: m | F92: =203.6+4.3 -> 207.9 | G92: 3.06 | H92: 636.174 | I92: =IF(J92="",0,(J92-G92)/G92) -> 0 | K92: =J92*F92 -> 0 | M92: 0.001181977541
A93: 9.20 | B93: CABO DE COBRE FLEXÍVEL ISOLADO, 2,5 MM², ANTI-CHAMA 0,6/1,0 KV, PARA CIRCUITOS TERMINAIS - FORNECIMENTO E INSTALAÇÃO. AF_12/2015 (VERMELHO OU PRETO) | C93: SINAPI | D93: 91927 | E93: m | F93: =389.8+369.5 -> 759.3 | G93: 3.06 | H93: 2323.458 | I93: 0 | K93: 0 | M93: 0.004316861696
A94: 9.21 | B94: CABO DE COBRE FLEXÍVEL ISOLADO, 2,5 MM², ANTI-CHAMA 0,6/1,0 KV, PARA CIRCUITOS TERMINAIS - FORNECIMENTO E INSTALAÇÃO. AF_12/2015 (VERDE OU VERDE-AMARELO) | C94: SINAPI | D94: 91927 | E94: m | F94: 306.2 | G94: 3.06 | H94: 936.972 | I94: 0 | K94: 0 | M94: 0.001740844266
A95: 9.22 | B95: CABO DE COBRE FLEXÍVEL ISOLADO, 4 MM², ANTI-CHAMA 0,6/1,0 KV, PARA CIRCUITOS TERMINAIS - FORNECIMENTO E INSTALAÇÃO. AF_12/2015 (AZUL CLARO) | C95: SINAPI | D95: 91929 | E95: m | F95: 40.5 | G95: 4.3 | H95: 174.15 | I95: 0 | K95: =J95*F95 -> 0 | M95: 0.0003235614607
A96: 9.23 | B96: CABO DE COBRE FLEXÍVEL ISOLADO, 4 MM², ANTI-CHAMA 0,6/1,0 KV, PARA CIRCUITOS TERMINAIS - FORNECIMENTO E INSTALAÇÃO. AF_12/2015 (VERMELHO OU PRETO) | C96: SINAPI | D96: 91929 | E96: m | F96: =22.1+18.4 -> 40.5 | G96: 4.3 | H96: 174.15 | I96: 0 | K96: =J96*F96 -> 0 | M96: 0.0003235614607
A97: 9.24 | B97: CABO DE COBRE FLEXÍVEL ISOLADO, 4 MM², ANTI-CHAMA 0,6/1,0 KV, PARA CIRCUITOS TERMINAIS - FORNECIMENTO E INSTALAÇÃO. AF_12/2015 (VERDE OU VERDE-AMARELO) | C97: SINAPI | D97: 91929 | E97: m | F97: 40.5 | G97: 4.3 | H97: 174.15 | I97: 0 | K97: 0 | M97: 0.0003235614607
A98: 9.25 | B98: CABO DE COBRE FLEXÍVEL ISOLADO, 6 MM², ANTI-CHAMA 0,6/1,0 KV, PARA CIRCUITOS TERMINAIS - FORNECIMENTO E INSTALAÇÃO. AF_12/2015 (AZUL CLARO) | C98: SINAPI | D98: 91931 | E98: m | F98: 0.9 | G98: 5.78 | H98: 5.202 | I98: 0 | K98: 0 | M98: 9.665040014e-06
A99: 9.26 | B99: CABO DE COBRE FLEXÍVEL ISOLADO, 6 MM², ANTI-CHAMA 0,6/1,0 KV, PARA CIRCUITOS TERMINAIS - FORNECIMENTO E INSTALAÇÃO. AF_12/2015 (VERMELHO OU PRETO) | C99: SINAPI | D99: 91931 | E99: m | F99: 2.7 | G99: 5.78 | H99: 15.606 | I99: 0 | K99: 0 | M99: 2.899512004e-05
A100: 9.27 | B100: CABO DE COBRE FLEXÍVEL ISOLADO, 6 MM², ANTI-CHAMA 0,6/1,0 KV, PARA CIRCUITOS TERMINAIS - FORNECIMENTO E INSTALAÇÃO. AF_12/2015 (VERDE OU VERDE-AMARELO) | C100: SINAPI | D100: 91931 | E100: m | F100: 0.9 | G100: 5.78 | H100: 5.202 | I100: 0 | K100: 0 | M100: 9.665040014e-06
A101: 9.28 | B101: CABO DE COBRE FLEXÍVEL ISOLADO, 16 MM², ANTI-CHAMA 0,6/1,0 KV, PARA CIRCUITOS TERMINAIS - FORNECIMENTO E INSTALAÇÃO. AF_12/2015 (AZUL CLARO) | C101: SINAPI | D101: 91935 | E101: m | F101: 1.3 | G101: 13.77 | H101: 17.901 | I101: =IF(J101="",0,(J101-G101)/G101) -> 0 | K101: =J101*F101 -> 0 | M101: 3.325910828e-05
A102: 9.29 | B102: CABO DE COBRE FLEXÍVEL ISOLADO, 16 MM², ANTI-CHAMA 0,6/1,0 KV, PARA CIRCUITOS TERMINAIS - FORNECIMENTO E INSTALAÇÃO. AF_12/2015 (VERMELHO OU PRETO) | C102: SINAPI | D102: 91935 | E102: m | F102: 3.9 | G102: 13.77 | H102: 53.703 | I102: =IF(J102="",0,(J102-G102)/G102) -> 0 | K102: 0 | M102: 9.977732485e-05
A103: 9.30 | B103: CABO DE COBRE FLEXÍVEL ISOLADO, 16 MM², ANTI-CHAMA 0,6/1,0 KV, PARA CIRCUITOS TERMINAIS - FORNECIMENTO E INSTALAÇÃO. AF_12/2015 (VERDE OU VERDE-AMARELO) | C103: SINAPI | D103: 91935 | E103: m | F103: 1.3 | G103: 13.77 | H103: 17.901 | I103: =IF(J103="",0,(J103-G103)/G103) -> 0 | K103: 0 | M103: 3.325910828e-05
A104: 9.31 | B104: ELETRODUTO FLEXÍVEL CORRUGADO, PVC, DN 25 MM (3/4"), PARA CIRCUITOS TERMINAIS, INSTALADO EM PAREDE - FORNECIMENTO E INSTALAÇÃO. AF_12/2015 | C104: SINAPI | D104: 91854 | E104: m | F104: 50 | G104: 5.97 | H104: 298.5 | I104: =IF(J104="",0,(J104-G104)/G104) -> 0 | K104: 0 | M104: 0.0005545971634
A105: 9.32 | B105: ELETRODUTO FLEXÍVEL CORRUGADO, PVC, DN 32 MM (1"), PARA CIRCUITOS TERMINAIS, INSTALADO EM PAREDE - FORNECIMENTO E INSTALAÇÃO. AF_12/2015 | C105: SINAPI | D105: 91856 | E105: m | F105: 20 | G105: 7.48 | H105: 149.6 | I105: 0 | K105: 0 | M105: 0.0002779488631
A106: 9.33 | B106: ELETRODUTO RÍGIDO ROSCÁVEL, PVC, DN 40 MM (1 1/4"), PARA CIRCUITOS TERMINAIS, INSTALADO EM PAREDE - FORNECIMENTO E INSTALAÇÃO. AF_12/2015 | C106: SINAPI | D106: 91873 | E106: m | F106: 20 | G106: 12.03 | H106: 240.6 | I106: 0 | K106: 0 | M106: 0.0004470220352
A107: 9.34 | B107: DISJUNTOR MONOPOLAR TIPO DIN, CORRENTE NOMINAL DE 10A - FORNECIMENTO E INSTALAÇÃO. AF_04/2016 | C107: SINAPI | D107: 93653 | E107: und | F107: 17 | G107: 10.09 | H107: 171.53 | I107: =IF(J107="",0,(J107-G107)/G107) -> 0 | K107: 0 | M107: 0.0003186936397
A108: 9.35 | B108: DISJUNTOR MONOPOLAR TIPO DIN, CORRENTE NOMINAL DE 16A - FORNECIMENTO E INSTALAÇÃO. AF_04/2016 | C108: SINAPI | D108: 93654 | E108: und | F108: 4 | G108: 10.54 | H108: 42.16 | I108: 0 | K108: 0 | M108: 7.833104325e-05
A109: 9.36 | B109: DISJUNTOR MONOPOLAR TIPO DIN, CORRENTE NOMINAL DE 20A - FORNECIMENTO E INSTALAÇÃO. AF_04/2016 | C109: SINAPI | D109: 93655 | E109: und | F109: 2 | G109: 11.28 | H109: 22.56 | I109: 0 | K109: 0 | M109: 4.191528311e-05
A110: 9.37 | B110: DISJUNTOR TERMOMAGNÉTICO TRIPOLAR TIPO DIN, CORRENTE NOMINAL DE 16A - FORNECIMENTO E INSTALAÇÃO. AF_04/2016 | C110: SINAPI | D110: 93668 | E110: und | F110: 5 | G110: 65.77 | H110: 328.85 | I110: 0 | K110: =J110*F110 -> 0 | M110: 0.0006109858532
A111: 9.38 | B111: DISJUNTOR TERMOMAGNÉTICO TRIPOLAR TIPO DIN, CORRENTE NOMINAL DE 20A - FORNECIMENTO E INSTALAÇÃO. AF_04/2016 | C111: SINAPI | D111: 93669 | E111: und | F111: 1 | G111: 68.06 | H111: 68.06 | I111: 0 | K111: 0 | M111: 0.0001264518692
A112: 9.39 | B112: Disjuntor termomagnetico tripolar 63 A, padrão DIN (Europeu - linha branca), curva C | C112: COMPOSIÇÃO | D112: 116 | E112: und | F112: 1 | G112: =COMPOSIÇÕES!H125 -> 91.96 | H112: 91.96 | I112: 0 | K112: =J112*F112 -> 0 | M112: 0.0001708568012
A113: 9.40 | B113: Disjuntor termomagnetico tripolar 100 A, padrão DIN (Europeu - linha branca), 10KA | C113: COMPOSIÇÃO | D113: 117 | E113: und | F113: 1 | G113: =COMPOSIÇÕES!H133 -> 345.96 | H113: 345.96 | I113: 0 | M113: 0.0006427753255
A114: 9.41 | B114: Dispositivo de proteção contra surto de tensão DPS 60kA - 275v | C114: COMPOSIÇÃO | D114: 118 | E114: und | F114: 4 | G114: =COMPOSIÇÕES!H141 -> 253.488 | H114: 1013.952 | I114: 0 | M114: 0.001883869022
A115: 9.42 | B115: QUADRO DE DISTRIBUICAO DE ENERGIA DE EMBUTIR, EM CHAPA METALICA, PARA 18 DISJUNTORES TERMOMAGNETICOS MONOPOLARES, COM BARRAMENTO TRIFASICO E NEUTRO, FORNECIMENTO E INSTALACAO | C115: SINAPI | D115: 74131/004 | E115: und | F115: 1 | G115: 344.47 | H115: 344.47 | I115: 0 | K115: 0 | M115: 0.0006400069845
A116: 9.43 | B116: QUADRO DE DISTRIBUICAO DE ENERGIA DE EMBUTIR, EM CHAPA METALICA, PARA 24 DISJUNTORES TERMOMAGNETICOS MONOPOLARES, COM BARRAMENTO TRIFASICO E NEUTRO, FORNECIMENTO E INSTALACAO | C116: SINAPI | D116: 74131/005 | E116: und | F116: 2 | G116: 399.96 | H116: 799.92 | I116: 0 | K116: 0 | M116: 0.001486208921
A117: 9.44 | B117: QUADRO DE DISTRIBUICAO DE ENERGIA DE EMBUTIR, EM CHAPA METALICA, PARA 50 DISJUNTORES TERMOMAGNETICOS MONOPOLARES, COM BARRAMENTO TRIFASICO E NEUTRO, FORNECIMENTO E INSTALACAO | C117: SINAPI | D117: 74131/008 | E117: und | F117: 1 | G117: 956.59 | H117: =F117*G117 -> 956.59 | I117: =IF(J117="",0,(J117-G117)/G117) -> 0 | K117: =J117*F117 -> 0 | M117: 0.001777293469
A118: 9.45 | B118: LÂMPADA LED 6 W BIVOLT BRANCA, FORMATO TRADICIONAL (BASE E27) - FORNECIMENTO E INSTALAÇÃO (Espelhos camarim) | C118: SINAPI | D118: 93042 | E118: und | F118: 44 | G118: 30.56 | H118: 1344.64 | I118: 0 | K118: 0 | M118: 0.002498269782
A119: 9.46 | B119: Soquete ou bocal de porcelana E27 de tempo, ref.MT-2233, marca Decorlux, similar ou de qualidade superior (Espelhos camarim) | C119: COMPOSIÇÃO | D119: 156 | E119: und | F119: =F118 -> 44 | G119: =COMPOSIÇÕES!H526 -> 8.454 | H119: 371.976 | I119: 0 | K119: 0 | M119: 0.0006911116732
A120: 9.47 | B120: LAMPADA LED TUBULAR 9/10 W BASE G13 - FORNECIMENTO E INSTALACAO (Espelhos camarim) | C120: COMPOSIÇÃO | D120: 157 | E120: und | F120: 3 | G120: =COMPOSIÇÕES!H535 -> 50.5914 | H120: 151.7742 | I120: 0 | K120: 0 | M120: 0.0002819884114
M121: 0
A122: 10 | B122: INSTALAÇÕES HIDROSSANITÁRIAS | H122: =SUM(H123:H149) -> 3855.6212 | L122: =SUM(K123:K149) -> 0 | M122: 0.007163539634
A123: 10.1 | B123: Água Fria: | M123: 0
A124: 10.1.1 | B124: TUBO, PVC, SOLDÁVEL, DN 32MM, INSTALADO EM RAMAL DE DISTRIBUIÇÃO DE ÁGUA - FORNECIMENTO E INSTALAÇÃO. AF_12/2014_P | C124: SINAPI | D124: 89403 | E124: m | F124: =2+1.05+21.45+30.1 -> 54.6 | G124: 10.74 | H124: =F124*G124 -> 586.404 | I124: =IF(J124="",0,(J124-G124)/G124) -> 0 | K124: =J124*F124 -> 0 | M124: 0.001089507521
A125: 10.1.2 | B125: TUBO, PVC, SOLDÁVEL, DN 25MM, INSTALADO EM RAMAL OU SUB-RAMAL DE ÁGUA - FORNECIMENTO E INSTALAÇÃO. AF_12/2014_P | C125: SINAPI | D125: 89356 | E125: m | F125: =2.7+1.4 -> 4.1 | G125: 15.25 | H125: 62.525 | I125: 0 | K125: 0 | M125: 0.0001161681328
A126: 10.1.3 | B126: REGISTRO DE GAVETA COM CANOPLA Ø 25MM (1) - FORNECIMENTO E INSTALAÇÃO | C126: SINAPI | D126: 89353 | E126: und | F126: 1 | G126: 32.58 | H126: =F126*G126 -> 32.58 | I126: =IF(J126="",0,(J126-G126)/G126) -> 0 | K126: 0 | M126: 6.053191151e-05
A127: 10.1.4 | B127: JOELHO 90 GRAUS, PVC, SOLDÁVEL, DN 25MM, INSTALADO EM RAMAL OU SUB-RAMAL DE ÁGUA - FORNECIMENTO E INSTALAÇÃO. AF_12/2014_P | C127: SINAPI | D127: 89362 | E127: und | F127: 1 | G127: 6.06 | H127: 6.06 | I127: 0 | K127: 0 | M127: 1.125915849e-05
A128: 10.1.5 | B128: JOELHO 90 GRAUS COM BUCHA DE LATÃO, PVC, SOLDÁVEL, DN 25MM, X 3/4" INSTALADO EM RAMAL OU SUB-RAMAL DE ÁGUA - FORNECIMENTO E INSTALAÇÃO. AF_12/2014_P | C128: SINAPI | D128: 89366 | E128: und | F128: 1 | G128: 10.11 | H128: 10.11 | I128: 0 | K128: 0 | M128: 1.878384363e-05
A129: 10.1.6 | B129: JOELHO 90 GRAUS, PVC, SOLDÁVEL, DN 32MM, INSTALADO EM RAMAL DE DISTRIBUIÇÃO DE ÁGUA - FORNECIMENTO E INSTALAÇÃO. AF_12/2014_P | C129: SINAPI | D129: 89413 | E129: und | F129: 3 | G129: 5.6 | H129: =F129*G129 -> 16.8 | I129: =IF(J129="",0,(J129-G129)/G129) -> 0 | K129: 0 | M129: 3.12135087e-05
A130: 10.1.7 | B130: TÊ COM BUCHA DE LATÃO NA BOLSA CENTRAL, PVC, SOLDÁVEL, DN 25 MM X 3/4 , INSTALADO EM RESERVAÇÃO DE ÁGUA DE EDIFICAÇÃO QUE POSSUA RESERVATÓRIO DE FIBRA/FIBROCIMENTO FORNECIMENTO E INSTALAÇÃO. AF_06/2016 | C130: SINAPI | D130: 94689 | E130: und | F130: 1 | G130: 9.9 | H130: =F130*G130 -> 9.9 | I130: =IF(J130="",0,(J130-G130)/G130) -> 0 | K130: 0 | M130: 1.839367477e-05
A131: 10.1.8 | B131: LUVA DE REDUÇÃO, PVC, SOLDÁVEL, DN 32MM X 25MM, INSTALADO EM RAMAL OU SUB-RAMAL DE ÁGUA - FORNECIMENTO E INSTALAÇÃO. AF_12/2014 | C131: SINAPI | D131: 89380 | E131: und | F131: 1 | G131: 5.45 | H131: 5.45 | I131: 0 | K131: 0 | M131: 1.012581086e-05
A132: 10.1.9 | B132: ADAPTADOR CURTO COM BOLSA E ROSCA PARA REGISTRO, PVC, SOLDÁVEL, DN 25MM X 3/4, INSTALADO EM RAMAL OU SUB-RAMAL DE ÁGUA - FORNECIMENTO E INSTALAÇÃO. AF_12/2014 TALAÇÃO. AF_12/2014 | C132: SINAPI | D132: 89383 | E132: und | F132: 2 | G132: 4.41 | H132: 8.82 | I132: 0 | K132: 0 | M132: 1.638709207e-05
A133: 10.1.10 | B133: ADAPTADOR COM FLANGE E ANEL DE VEDAÇÃO, PVC, SOLDÁVEL, DN 32 MM X 1 , INSTALADO EM RESERVAÇÃO DE ÁGUA DE EDIFICAÇÃO QUE POSSUA RESERVATÓRIO DE FIBRA/FIBROCIMENTO FORNECIMENTO E INSTALAÇÃO. AF_06/2016 | C133: SINAPI | D133: 94704 | E133: und | F133: 1 | G133: 15.44 | H133: 15.44 | I133: 0 | K133: 0 | M133: 2.868670085e-05
A134: 10.1.11 | B134: REGISTRO DE ESFERA, PVC, SOLDÁVEL, DN 32 MM, INSTALADO EM RESERVAÇÃO DE ÁGUA DE EDIFICAÇÃO QUE POSSUA RESERVATÓRIO DE FIBRA/FIBROCIMENTO FORNECIMENTO E INSTALAÇÃO. AF_06/2016 | C134: SINAPI | D134: 94490 | E134: und | F134: 1 | G134: 28.72 | H134: 28.72 | I134: 0 | K134: 0 | M134: 5.336023629e-05
A135: 10.2 | B135: Louças, Metais e Acessórios: | M135: 0
A136: 10.2.1 | B136: Cuba de embutir oval em louça branca, 35 x 50cm ou equivalente, incluso válvula em metal cromado e sifão flexível em pvc - fornecimento e instalação. af_12/2013 | C136: SINAPI | D136: 86937 | E136: und | F136: 2 | G136: 132.9 | H136: =F136*G136 -> 265.8 | I136: 0 | K136: 0 | M136: 0.0004938422983
A137: 10.2.2 | B137: ENGATE FLEXÍVEL EM PLÁSTICO BRANCO, 1/2" X 30CM - FORNECIMENTO E INSTALAÇÃO. AF_12/2013 | C137: SINAPI | D137: 86884 | E137: und | F137: 2 | G137: 6.34 | H137: =F137*G137 -> 12.68 | I137: =IF(J137="",0,(J137-G137)/G137) -> 0 | K137: 0 | M137: =H137/$H$223 -> 2.355876728e-05
A138: 10.2.3 | B138: TORNEIRA CROMADA DE MESA, 1/2" OU 3/4", PARA LAVATÓRIO, PADRÃO MÉDIO - FORNECIMENTO E INSTALAÇÃO. | C138: SINAPI | D138: 86915 | E138: und | F138: 2 | G138: 72.61 | H138: 145.22 | I138: =IF(J138="",0,(J138-G138)/G138) -> 0 | K138: 0 | M138: 0.0002698110555
A139: 10.2.4 | B139: Fornecimento e colocação de gancho com bucha 4,4 x 70 - 8mm | C139: COMPOSIÇÃO | D139: 154 | E139: und | F139: 9 | G139: =COMPOSIÇÕES!H512 -> 8.754 | H139: 78.786 | I139: 0 | K139: 0 | M139: 0.0001463802081
A140: 10.2.5 | B140: Barra de apoio em aço inox polido, l=50, d=38.1 mm | C140: ORSE | D140: 2391 | E140: und | F140: 1 | G140: 68.39 | H140: 68.39 | I140: 0 | K140: 0 | M140: 0.0001270649916
A141: 10.2.6 | B141: Bancada em granito branco fortaleza, e = 2cm | C141: COMPOSIÇÃO | D141: 121 | E141: m² | F141: =1.3*0.5 -> 0.65 | G141: =COMPOSIÇÕES!H167 -> 299.318 | H141: 194.5567 | I141: 0 | K141: 0 | M141: 0.0003614760266
A142: 10.2.7 | B142: Testeira em granito branco fortaleza, l=10cm (colado), esp.=2cm - fornecimento e colocação | C142: ORSE | D142: 11825 | E142: m | F142: 1.3 | G142: 134.37 | H142: 174.681 | I142: 0 | K142: 0 | M142: 0.0003245480305
A143: 10.3 | B143: Esgoto e Água Pluvial: | M143: 0
A144: 10.3.1 | B144: JOELHO 90 GRAUS, PVC, SERIE NORMAL, ESGOTO PREDIAL, DN 40 MM, JUNTA SOLDÁVEL, FORNECIDO E INSTALADO EM RAMAL DE DESCARGA OU RAMAL DE ESGOTO SANITÁRIO. AF_12/2014_P | C144: SINAPI | D144: 89724 | E144: und | F144: =2+1+1+1 -> 5 | G144: 5.23 | H144: 26.15 | I144: 0 | K144: 0 | M144: 4.858531264e-05
A145: 10.3.2 | B145: TUBO PVC, SERIE NORMAL, ESGOTO PREDIAL, DN 40 MM, FORNECIDO E INSTALADO EM RAMAL DE DESCARGA OU RAMAL DE ESGOTO SANITÁRIO. AF_12/2014_P | C145: SINAPI | D145: 89711 | E145: m | F145: =0.6+0.6+6.11+5.5 -> 12.81 | G145: 13.65 | H145: 174.8565 | I145: 0 | K145: 0 | M145: 0.0003248741002
A146: 10.3.3 | B146: TUBO PVC, SERIE NORMAL, ESGOTO PREDIAL, DN 50 MM, FORNECIDO E INSTALADO EM RAMAL DE DESCARGA OU RAMAL DE ESGOTO SANITÁRIO. AF_12/2014_P | C146: SINAPI | D146: 89712 | E146: m | F146: 66.4 | G146: 19.93 | H146: 1323.352 | I146: 0 | K146: 0 | M146: 0.002458717807
A147: 10.3.4 | B147: RALO SIFONADO, PVC, DN 100 X 40 MM, JUNTA SOLDÁVEL, FORNECIDO E INSTALADO EM RAMAL DE DESCARGA OU EM RAMAL DE ESGOTO SANITÁRIO. AF_12/2014_P | C147: SINAPI | D147: 89709 | E147: und | F147: 1 | G147: 7.08 | H147: 7.08 | I147: 0 | K147: 0 | M147: 1.315426438e-05
A148: 10.3.5 | B148: CAIXA DE INSPEÇÃO EM ALVENARIA DE TIJOLO MACIÇO 60X60X60CM, REVESTIDA INTERNAMENTO COM BARRA LISA (CIMENTO E AREIA, TRAÇO 1:4) E=2,0CM, COMTAMPA PRÉ-MOLDADA DE CONCRETO E FUNDO DE CONCRETO 15MPA TIPO C - ESCAVAÇÃO E CONFECÇÃO | C148: SINAPI | D148: 74104/001 | E148: und | F148: 5 | G148: 118.67 | H148: 593.35 | I148: 0 | K148: 0 | M148: 0.001102412821
A149: 10.3.6 | B149: JUNÇÃO SIMPLES, PVC, SERIE NORMAL, ESGOTO PREDIAL, DN 40 MM, JUNTA SOLDÁVEL, FORNECIDO E INSTALADO EM RAMAL DE DESCARGA OU RAMAL DE ESGOTO SANITÁRIO. AF_12/2014 | C149: SINAPI | D149: 89783 | E149: und | F149: 1 | G149: 7.91 | H149: 7.91 | I149: 0 | K149: 0 | M149: 1.469636034e-05
M150: 0
A151: 11 | B151: IMPERMEABILIZAÇÃO | H151: =SUM(H152:H153) -> 13943.38 | L151: =SUM(K152:K153) -> 0 | M151: 0.02590606029
A152: 11.1 | B152: IMPERMEABILIZACAO DE SUPERFICIE COM MANTA ASFALTICA (COM POLIMEROS TIPO APP), E=4 MM (Calhas) | C152: SINAPI | D152: 83738 | E152: m² | F152: 122 | G152: 75.81 | H152: =F152*G152 -> 9248.82 | I152: =IF(J152="",0,(J152-G152)/G152) -> 0 | K152: =J152*F152 -> 0 | M152: 0.01718381687
A153: 11.2 | B153: PISO CIMENTADO TRACO 1:3 (CIMENTO E AREIA) ACABAMENTO LISO ESPESSURA 3,0CM, PREPARO MANUAL DA ARGAMASSA | C153: SINAPI | D153: 73922/005 | E153: m² | F153: 122 | G153: 38.48 | H153: =F153*G153 -> 4694.56 | I153: =IF(J153="",0,(J153-G153)/G153) -> 0 | K153: =J153*F153 -> 0 | M153: 0.008722243416
M154: 0
A155: 12 | B155: INSTALAÇÃO DE COMBATE E INCÊNDIO E PÂNICO | H155: =SUM(H156:H169) -> 11035.81742 | L155: =SUM(K156:K169) -> 0 | M155: 0.02050396328
A156: 12.1 | B156: EXTINTOR DE PQS 12KG, CLASSE BC - FORNECIMENTO E INSTALACAO | C156: COMPOSIÇÃO | D156: 144 | E156: und | F156: 2 | G156: =COMPOSIÇÕES!H428 -> 247.01 | H156: =F156*G156 -> 494.02 | I156: =IF(J156="",0,(J156-G156)/G156) -> 0 | K156: =J156*F156 -> 0 | M156: 0.0009178629503
A157: 12.2 | B157: EXTINTOR INCENDIO AGUA-PRESSURIZADA 10L INCL SUPORTE PAREDE, SINALIZAÇÃO, FORNECIMENTO E COLOCACÃO | C157: COMPOSIÇÃO | D157: 145 | E157: und | F157: 2 | G157: =COMPOSIÇÕES!H438 -> 165.48 | H157: 330.96 | I157: =IF(J157="",0,(J157-G157)/G157) -> 0 | K157: 0 | M157: 0.0006149061213
A158: 12.3 | B158: Luminária de emergência 2 x 8w, G-LIGHT, similar ou qualidade superior | C158: COMPOSIÇÃO | D158: 146 | E158: und | F158: 7 | G158: =COMPOSIÇÕES!H445 -> 33.18 | H158: 232.26 | I158: =IF(J158="",0,(J158-G158)/G158) -> 0 | K158: 0 | M158: 0.0004315267577
A159: 12.4 | B159: Porta corta fogo, de abrir, 02 folhas, em chapa de aço galvanizado nº24, batente em chapa nº18, classe 90, isolante em manta cerâmica incombustível e=5cm, dobradiças tipo helicoidal em aço 1010/1020, e fechadura reversível sem chave | C159: COMPOSIÇÃO | D159: 147 | E159: m² | F159: 5.04 | G159: =COMPOSIÇÕES!H456 -> 616.0956 | H159: 3105.121824 | I159: 0 | K159: 0 | M159: 0.00576915161
A160: 12.5 | B160: Barra antipânico simples sem chave para uma porta ref. MH2585, similar ou qualidade superior | C160: COMPOSIÇÃO | D160: 148 | E160: und | F160: 4 | G160: =COMPOSIÇÕES!H463 -> 702.369 | H160: 2809.476 | I160: 0 | K160: 0 | M160: 0.005219857355
A161: 12.6 | B161: Detector de fumaça óptico endereçável, modelo VRE-F, marca VERIN, similar ou de qualidade superior | C161: COMPOSIÇÃO | D161: 149 | E161: und | F161: 10 | G161: =COMPOSIÇÕES!H471 -> 85.48 | H161: 854.8 | I161: 0 | K161: 0 | M161: 0.00158817305
A162: 12.7 | B162: Central de alarme e detecção de incendio, capacidade: 8 laços, com 2 linhas, mod.VR-8L, Verin, similar ou de qualidade superior | C162: COMPOSIÇÃO | D162: 150 | E162: und | F162: 1 | G162: =COMPOSIÇÕES!H479 -> 760.93 | H162: 760.93 | I162: 0 | K162: 0 | M162: 0.00141376757
A163: 12.8 | B163: Acionador manual (botoeira) tipo quebra-vidro, p/instal. Incendio | C163: COMPOSIÇÃO | D163: 151 | E163: und | F163: 2 | G163: =COMPOSIÇÕES!H487 -> 108.84 | H163: 217.68 | I163: 0 | K163: 0 | M163: 0.0004044378912
A164: 12.9 | B164: Avisador sonoro tipo sirene para incêndio - Fornecimento | C164: ORSE | D164: 10446 | E164: und | F164: 2 | G164: 230.46 | H164: 460.92 | I164: 0 | K164: 0 | M164: 0.0008563649064
A165: 12.10 | B165: ELETRODUTO DE AÇO GALVANIZADO, CLASSE LEVE, DN 25 MM (1), APARENTE INSTALADO EM TETO - FORNECIMENTO E INSTALAÇÃO. AF_11/2016_P | C165: SINAPI | D165: 95746 | E165: m² | F165: 84.56 | G165: 12.91 | H165: 1091.6696 | I165: 0 | K165: 0 | M165: 0.0020282642
A166: 12.11 | B166: Extintor de incêndio de Pó ABC 12Kg capacidade extintora 6A-40BC | C166: COTAÇÃO | D166: 2 | E166: und | F166: 2 | G166: ='Cotação 01'!J32 -> 231.9666667 | H166: 463.9333333 | I166: 0 | K166: 0 | M166: 0.0008619635199
A167: 12.12 | B167: Placa direção saída de emergência Fotoluminescente Sinalize Seta Reta P/ Direita 30x15cm | C167: COTAÇÃO | D167: 3 | E167: und | F167: 8 | G167: ='Cotação 01'!J44 -> 15.71 | H167: 125.68 | I167: =IF(J167="",0,(J167-G167)/G167) -> 0 | K167: 0 | M167: 0.0002335067722
A168: 12.13 | B168: Placa direção saída de emergência Fotoluminescente Sinalize Seta Reta P/ Esquerda 30x15cm | C168: COTAÇÃO | D168: 4 | E168: und | F168: 4 | G168: ='Cotação 01'!J56 -> 15.71 | H168: =F168*G168 -> 62.84 | I168: =IF(J168="",0,(J168-G168)/G168) -> 0 | K168: 0 | M168: 0.0001167533861
A169: 12.14 | B169: Placa sinalizadora saída de emergência - Final Fotoluminescente 30x15cm | C169: COTAÇÃO | D169: 5 | E169: und | F169: 2 | G169: ='Cotação 01'!J68 -> 12.76333333 | H169: =F169*G169 -> 25.52666667 | I169: =IF(J169="",0,(J169-G169)/G169) -> 0 | K169: 0 | M169: 4.742719238e-05
M170: 0
A171: 13 | B171: REVESTIMENTOS | H171: =SUM(H172:H178) -> 61052.50555 | L171: =SUM(K172:K178) -> 0 | M171: 0.1134323163
A172: 13.1 | B172: Paredes: | M172: 0
A173: 13.1.1 | B173: Revestimento para parede em MDF com revestimento melamínico mdeirado, tipo lambri, colado, superfície polida | C173: COMPOSIÇÃO | D173: 136 | E173: m² | F173: 137.41 | G173: =COMPOSIÇÕES!H358 -> 109.0155 | H173: =F173*G173 -> 14979.81986 | I173: =IF(J173="",0,(J173-G173)/G173) -> 0 | K173: =J173*F173 -> 0 | M173: 0.02783171055
A174: 13.1.2 | B174: Painel acústico constituído de gradeamento em compensado naval 18mm, preenchido com lã de pet acústica 15mm dens = 15kg/m3 e acabamento em tecido ortofônico e alisar em madeira maciça 40mmx15mm boleada nas bordas tratada com seladora - aplicado | C174: ORSE (Insumos) | D174: 12779 | E174: m² | F174: 67.78 | G174: =134 -> 134 | H174: =F174*G174 -> 9082.52 | I174: 0 | K174: 0 | M174: 0.0168748403
A175: 13.1.3 | B175: CHAPISCO APLICADO EM ALVENARIA (COM PRESENÇA DE VÃOS) E ESTRUTURAS DE CONCRETO DE FACHADA, COM COLHER DE PEDREIRO. ARGAMASSA TRAÇO 1:3 COM PREPARO EM BETONEIRA 400L. AF_06/2014 | C175: SINAPI | D175: 87905 | E175: m² | F175: =12.47+3.05*9.4 -> 41.14 | G175: 5.13 | H175: =F175*G175 -> 211.0482 | I175: =IF(J175="",0,(J175-G175)/G175) -> 0 | K175: =J175*F175 -> 0 | M175: 0.0003921163587
A176: 13.1.4 | B176: MASSA ÚNICA, PARA RECEBIMENTO DE PINTURA, EM ARGAMASSA TRAÇO 1:2:8, PREPARO MECÂNICO COM BETONEIRA 400L, APLICADA MANUALMENTE EM FACES INTERNAS DE PAREDES, ESPESSURA DE 20MM, COM EXECUÇÃO DE TALISCAS. AF_06/2014 | C176: SINAPI | D176: 87529 | E176: m² | F176: =F175 -> 41.14 | G176: 24.94 | H176: =F176*G176 -> 1026.0316 | I176: =IF(J176="",0,(J176-G176)/G176) -> 0 | K176: 0 | M176: 0.001906312278
A177: 13.2 | B177: Teto: | M177: 0
A178: 13.2.1 | B178: Forro de gesso acartonado, acabamento em pintura PVA Latex na cor branco, com isolamento em lã de vidro 25mm, placa 625 x 625mm e perfil T, instalado | C178: COMPOSIÇÃO | D178: 137 | E178: m² | F178: 411.57 | G178: =COMPOSIÇÕES!H365 -> 86.87 | H178: =F178*G178 -> 35753.0859 | I178: =IF(J178="",0,(J178-G178)/G178) -> 0 | K178: =J178*F178 -> 0 | M178: 0.06642733676
M179: 0
A180: 14 | B180: PINTURA | H180: =SUM(H181:H186) -> 11139.2827 | L180: =SUM(K181:K185) -> 0 | M180: 0.02069619627
A181: 14.1 | B181: Emassamento de superfície, com aplicação de 02 demãos de massa corrida, lixamento e retoques (teto camarim, varanda e todo forro de gesso do auditório, inclusive sala de som) | C181: COMPOSIÇÃO | D181: 141 | E181: m² | F181: =(1.65*17)+(2.27*4.4)+411.57 -> 449.608 | G181: =COMPOSIÇÕES!H402 -> 8.757 | H181: =F181*G181 -> 3937.217256 | I181: =IF(J181="",0,(J181-G181)/G181) -> 0 | K181: =J181*F181 -> 0 | M181: 0.007315140777
A182: 14.2 | B182: Emassamento de superfície, com aplicação de 02 demãos de massa acrílica, lixamento e retoques (parede) | C182: COMPOSIÇÃO | D182: 142 | E182: m² | F182: =(23.44*3.47)-4.8+F185+12.47 -> 111.9318 | G182: =COMPOSIÇÕES!H411 -> 11.067 | H182: =F182*G182 -> 1238.749231 | I182: 0 | K182: 0 | M182: 0.00230153035
A183: 14.3 | B183: APLICAÇÃO MANUAL DE PINTURA COM TINTA LÁTEX PVA EM TETO, DUAS DEMÃOS AF_06/2014 (teto camarim, varanda e todo forro de gesso do auditório, inclusive sala de som) | C183: SINAPI | D183: 88486 | E183: m² | F183: =(1.65*17)+(2.27*4.4)+411.57 -> 449.608 | G183: 8.36 | H183: =F183*G183 -> 3758.72288 | I183: 0 | K183: 0 | M183: 0.006983507696
A184: 14.4 | B184: APLICAÇÃO MANUAL DE PINTURA COM TINTA LÁTEX ACRÍLICA EM PAREDES, DUAS DEMÃOS (Camarim e alvenarias executadas). | C184: SINAPI | D184: 88489 | E184: m² | F184: =(23.44*3.47)-4.8+12.47 -> 89.0068 | G184: 9.49 | H184: =F184*G184 -> 844.674532 | I184: =IF(J184="",0,(J184-G184)/G184) -> 0 | K184: =J184*F184 -> 0 | M184: 0.001569360467
A185: 14.5 | B185: Aplicação manual de pintura com tinta texturizada acrílica em paredes externas (Fachada) | C185: SINAPI | D185: 88423 | E185: m² | F185: =(1.75+4.8)*3.5 -> 22.925 | G185: 13.72 | H185: =F185*G185 -> 314.531 | I185: 0 | K185: 0 | M185: 0.0005843819109
A186: 14.6 | B186: APLICAÇÃO DE FUNDO SELADOR LÁTEX PVA EM TETO, UMA DEMÃO. AF_06/2014 (Forro de gesso acartonado) | C186: SINAPI | D186: 88482 | E186: m² | F186: 411.57 | G186: 2.54 | H186: =F186*G186 -> 1045.3878 | I186: =IF(J186="",0,(J186-G186)/G186) -> 0 | K186: =J186*F186 -> 0 | M186: 0.001942275071
M187: 0
A188: 15 | B188: CLIMATIZAÇÃO/REFRIGERAÇÃO | H188: =SUM(H189:H191) -> 43155.8 | L188: =SUM(K189:K191) -> 0 | M188: 0.08018118682
A189: 15.1 | B189: Condicionador de ar tipo split high wall, 9000 btu - FORNECIMENTO E INSTALACAO | C189: COMPOSIÇÃO | D189: 158 | E189: und | F189: 1 | G189: =COMPOSIÇÕES!H542 -> 1723.58 | H189: =F189*G189 -> 1723.58 | I189: =IF(J189="",0,(J189-G189)/G189) -> 0 | K189: =J189*F189 -> 0 | M189: 0.003202320197
A190: 15.2 | B190: Condicionador de ar tipo split piso-teto, 30000 btu - FORNECIMENTO E INSTALACAO | C190: COMPOSIÇÃO | D190: 159 | E190: und | F190: 2 | G190: =COMPOSIÇÕES!H549 -> 5199.83 | H190: 10399.66 | I190: 0 | K190: 0 | M190: 0.01932201654
A191: 15.3 | B191: Condicionador de ar tipo split piso-teto, 60000 btu - FORNECIMENTO E INSTALACAO | C191: COMPOSIÇÃO | D191: 160 | E191: und | F191: 4 | G191: =COMPOSIÇÕES!H556 -> 7758.14 | H191: 31032.56 | I191: 0 | K191: 0 | M191: 0.05765685008
M192: 0
A193: 16 | B193: PISO | H193: =SUM(H194:H201) -> 76189.19771 | L193: =SUM(K194:K200) -> 0 | M193: 0.1415554872
A194: 16.1 | B194: Piso em assoalho de madeira lei (Pau D´Arco, similar ou de qualidade superior) - Extra, réguas macho e fêmea 20cm x 3cm, elevado instalado em barrotes de madeira (palco em madeira) | C194: COMPOSIÇÃO | D194: 138 | E194: m² | F194: 129 | G194: =COMPOSIÇÕES!H375 -> 365.899 | H194: =F194*G194 -> 47200.971 | I194: =IF(J194="",0,(J194-G194)/G194) -> 0 | K194: =J194*F194 -> 0 | M194: 0.08769689993
A195: 16.2 | B195: CONTRAPISO EM ARGAMASSA TRAÇO 1:4 (CIMENTO E AREIA), PREPARO MECÂNICO COM BETONEIRA 400 L, APLICADO EM ÁREAS MOLHADAS SOBRE LAJE, ADERIDO, ESPESSURA 2CM. AF_06/2014 (piso da varanda do auditório e camarim) | C195: SINAPI | D195: 87735 | E195: m² | F195: =26.43+21.34 -> 47.77 | G195: 29.06 | H195: =F195*G195 -> 1388.1962 | I195: 0 | K195: 0 | M195: 0.00257919489
A196: 16.3 | B196: Restauro - Restauração do piso de madeira compreendendo substituição de peças de apoio até 20%, raspagem, calafetagem, enceramento e parquetagem (obs: usar para substituição as peças da área de ampliação do palco ) (restauro do piso da platéia) | C196: COMPOSIÇÃO | D196: 140 | E196: m² | F196: 232.5 | G196: =COMPOSIÇÕES!H393 -> 50.3425 | H196: =F196*G196 -> 11704.63125 | I196: 0 | K196: 0 | M196: 0.02174658389
A197: 16.4 | B197: Piso tátil direcional e/ou alerta, em borracha, p/deficientes visuais, dimensões 25x25cm, aplicado, rejuntado, exclusive regularização de base | C197: ORSE | D197: 7323 | E197: m² | F197: =(1.31+1.31+1.75+0.6+10.2+0.6+1.5+1.1+1.5+1.5+2.15+0.8+1.45+1.5+1.25)*0.25 -> 7.13 | G197: 210 | H197: =F197*G197 -> 1497.3 | I197: 0 | K197: 0 | M197: 0.002781903962
A198: 16.5 | B198: Imunização de madeira contra cupim, com aplicação de 01 demão de Pentox, similar ou qualidade superior | C198: COMPOSIÇÃO | D198: 139 | E198: m² | F198: =F194 -> 129 | G198: =COMPOSIÇÕES!H383 -> 12.94025 | H198: =F198*G198 -> 1669.29225 | I198: 0 | K198: 0 | M198: 0.003101456438
A199: 16.6 | B199: PISO EM GRANILITE, MARMORITE OU GRANITINA ESPESSURA 8 MM, INCLUSO JUNTAS DE DILATACAO PLASTICAS (Piso do corredor executar na mesma cor do piso existente e piso do camarim) | C199: SINAPI | D199: 84191 | E199: m² | F199: =21.81+F201 -> 74.966 | G199: 103.27 | H199: =F199*G199 -> 7741.73882 | I199: 0 | K199: 0 | M199: 0.01438374
A200: 16.7 | B200: RODAPE EM GRANILITE/MARMORITE, ALTURA 10CM | C200: SINAPI | D200: 73850/001 | E200: m | F200: 21.4 | G200: 18.76 | H200: =F200*G200 -> 401.464 | I200: 0 | K200: 0 | M200: 0.0007458988128
A201: 16.8 | B201: Contrapiso em argamassa traço 1:4 (cimento e areia), preparo manual, aplicado em áreas secas sobre bloco de EPS, aderido, espessura 6cm, inclui os blocos de EPS. af_06/2014 (ELEVAÇÃO DO PISO DO CORREDOR) | C201: COMPOSIÇÃO | D201: 153 | E201: m² | F201: =2.5*18.92+2.4*2.44 -> 53.156 | G201: =COMPOSIÇÕES!H504 -> 86.266916 | H201: =F201*G201 -> 4585.604187 | I201: 0 | K201: 0 | M201: =H201/$H$223 -> 0.008519809295
M202: 0
A203: 17 | B203: SERVIÇOS COMPLEMENTARES | H203: =SUM(H204:H216) -> 46676.87433 | L203: =SUM(K204:K211) -> 0 | M203: 0.08672315611
... 30 more rows

Sheet CRONOGRAMA
A1: UNIVERSIDADE FEDERAL DE ALAGOAS - UFAL
A2: SUPERINTENDÊNCIA DE INFRAESTRUTURA - SINFRA
A3: GERENCIA DE PROJETOS,OBRAS E SERVIÇOS DE ENGENHARIA - GPOS
A5: CRONOGRAMA FÍSICO-FINANCEIRO PARA OBRA DE REFORMA DO AUDITÓRIO GUEDES DE MIRANDA NO ESPAÇO CULTURAL DA UFAL.
A6: CRONOGRAMA FÍSICO-FINANCEIRO | E6: 1º MÊS | G6: 2º MÊS | I6: 3º MÊS | K6: 4º MÊS | M6: 5º MÊS | O6: 6º MÊS
A7: ITEM | B7: DESCRIÇÃO DO ITEM | C7: % | D7: VALOR TOTAL | E7: (%) | F7: R$ | G7: (%) | H7: R$ | I7: (%) | J7: R$ | K7: (%) | L7: R$ | M7: (%) | N7: R$ | O7: (%) | P7: R$ | R7: (%)
A9: 01. | B9: PROJETOS COMPLEMENTARES | C9: =D9/D63 -> 0.0006691395927 | D9: =ORÇAMENTO!H9 -> 360.15 | T9: =PRAZOS!K9 -> 0.1
F10: =$D9*E10 -> 0 | H10: =$D9*G10 -> 0 | J10: =$D9*I10 -> 0 | L10: =$D9*K10 -> 0 | N10: =$D9*M10 -> 0 | O10: 1 | P10: =$D9*O10 -> 360.15 | R10: =SUM(K10,I10,G10,E10,M10,O10) -> 1 | S10: =SUM(L10,J10,H10,F10,N10,P10) -> 360.15
A12: 02. | B12: SERVIÇOS PRELIMINARES | C12: =D12/D63 -> 0.0831906277 | D12: =ORÇAMENTO!H12 -> 44775.56685 | T12: =PRAZOS!K12 -> 2.7
E13: 0.85 | F13: =$D12*E13 -> 38059.23182 | G13: 0.1 | H13: =$D12*G13 -> 4477.556685 | I13: 0.05 | J13: =$D12*I13 -> 2238.778343 | L13: =$D12*K13 -> 0 | N13: =$D12*M13 -> 0 | P13: =$D12*O13 -> 0 | R13: =SUM(K13,I13,G13,E13,M13,O13) -> 1 | S13: =SUM(L13,J13,H13,F13,N13,P13) -> 44775.56685
A15: 03. | B15: MOVIMENTO DE TERRA | C15: =D15/D63 -> 0.002041363469 | D15: =ORÇAMENTO!H34 -> 1098.72 | T15: =PRAZOS!K34 -> 0.4
F16: =$D15*E16 -> 0 | H16: =$D15*G16 -> 0 | I16: 1 | J16: =$D15*I16 -> 1098.72 | L16: =$D15*K16 -> 0 | N16: =$D15*M16 -> 0 | P16: =$D15*O16 -> 0 | R16: =SUM(K16,I16,G16,E16,M16,O16) -> 1 | S16: =SUM(L16,J16,H16,F16,N16,P16) -> 1098.72
A18: 04. | B18: INFRAESTRUTURA | C18: =D18/D63 -> 0.00660841593 | D18: =ORÇAMENTO!H38 -> 3556.837801 | T18: =PRAZOS!K38 -> 0.3
F19: =$D18*E19 -> 0 | H19: =$D18*G19 -> 0 | J19: =$D18*I19 -> 0 | K19: 1 | L19: =$D18*K19 -> 3556.837801 | N19: =$D18*M19 -> 0 | P19: =$D18*O19 -> 0 | R19: =SUM(K19,I19,G19,E19,M19,O19) -> 1 | S19: =SUM(L19,J19,H19,F19,N19,P19) -> 3556.837801
A21: 05. | B21: SUPERESTRUTURA | C21: =D21/D63 -> 0.0005056543664 | D21: =ORÇAMENTO!H43 -> 272.1575917 | T21: =PRAZOS!K43 -> 0.021
F22: =$D21*E22 -> 0 | H22: =$D21*G22 -> 0 | I22: 1 | J22: =$D21*I22 -> 272.1575917 | L22: =$D21*K22 -> 0 | N22: =$D21*M22 -> 0 | P22: =$D21*O22 -> 0 | R22: =SUM(K22,I22,G22,E22,M22,O22) -> 1 | S22: =SUM(L22,J22,H22,F22,N22,P22) -> 272.1575917
A24: 06. | B24: ALVENARIA/VEDAÇÃO/DIVISÓRIA | C24: =D24/D63 -> 0.008375408782 | D24: =ORÇAMENTO!H51 -> 4507.883715 | T24: =PRAZOS!K50 -> 0.4
F25: =$D24*E25 -> 0 | H25: =$D24*G25 -> 0 | I25: 1 | J25: =$D24*I25 -> 4507.883715 | L25: =$D24*K25 -> 0 | N25: =$D24*M25 -> 0 | P25: =$D24*O25 -> 0 | R25: =SUM(K25,I25,G25,E25,M25,O25) -> 1 | S25: =SUM(L25,J25,H25,F25,N25,P25) -> 4507.883715
A27: 07. | B27: ESQUADRIAS | C27: =D27/D63 -> 0.02245307112 | D27: =ORÇAMENTO!H56 -> 12084.88281 | T27: =PRAZOS!K55 -> 0.3
F28: =$D27*E28 -> 0 | H28: =$D27*G28 -> 0 | J28: =$D27*I28 -> 0 | K28: 0.2 | L28: =$D27*K28 -> 2416.976563 | M28: 0.4 | N28: =$D27*M28 -> 4833.953126 | O28: 0.4 | P28: =$D27*O28 -> 4833.953126 | R28: =SUM(K28,I28,G28,E28,M28,O28) -> 1 | S28: =SUM(L28,J28,H28,F28,N28,P28) -> 12084.88281
A30: 08. | B30: COBERTURA | C30: =D30/D63 -> 0.2388916405 | D30: =ORÇAMENTO!H69 -> 128578.2896 | T30: =PRAZOS!K68 -> 1.1
F31: =$D30*E31 -> 0 | G31: 0.4 | H31: =$D30*G31 -> 51431.31583 | I31: 0.6 | J31: =$D30*I31 -> 77146.97374 | L31: =$D30*K31 -> 0 | N31: =$D30*M31 -> 0 | P31: =$D30*O31 -> 0 | R31: =SUM(K31,I31,G31,E31,M31,O31) -> 1 | S31: =SUM(L31,J31,H31,F31,N31,P31) -> 128578.2896
A33: 09. | B33: INSTALAÇÕES ELÉTRICAS | C33: =D33/D63 -> 0.06494482138 | D33: =ORÇAMENTO!H73 -> 34955.15387 | T33: =PRAZOS!K72 -> 0.7
F34: =$D33*E34 -> 0 | H34: =$D33*G34 -> 0 | J34: =$D33*I34 -> 0 | K34: 0.4 | L34: =$D33*K34 -> 13982.06155 | M34: 0.4 | N34: =$D33*M34 -> 13982.06155 | O34: 0.2 | P34: =$D33*O34 -> 6991.030773 | R34: =SUM(K34,I34,G34,E34,M34,O34) -> 1 | S34: =SUM(L34,J34,H34,F34,N34,P34) -> 34955.15387
A36: 10. | B36: INSTALAÇÕES HIDRO-SANITÁRIAS | C36: =D36/D63 -> 0.007163539634 | D36: =ORÇAMENTO!H122 -> 3855.6212 | T36: =PRAZOS!K121 -> 0.2
F37: =$D36*E37 -> 0 | H37: =$D36*G37 -> 0 | I37: 0.5 | J37: =$D36*I37 -> 1927.8106 | K37: 0.5 | L37: =$D36*K37 -> 1927.8106 | N37: =$D36*M37 -> 0 | P37: =$D36*O37 -> 0 | R37: =SUM(K37,I37,G37,E37,M37,O37) -> 1 | S37: =SUM(L37,J37,H37,F37,N37,P37) -> 3855.6212
A39: 11. | B39: IMPERMEABILIZAÇÃO | C39: =D39/D63 -> 0.02590606029 | D39: =ORÇAMENTO!H151 -> 13943.38 | T39: =PRAZOS!K150 -> 0.7
F40: =$D39*E40 -> 0 | G40: 0.2 | H40: =$D39*G40 -> 2788.676 | I40: 0.6 | J40: =$D39*I40 -> 8366.028 | K40: 0.2 | L40: =$D39*K40 -> 2788.676 | N40: =$D39*M40 -> 0 | P40: =$D39*O40 -> 0 | R40: =SUM(K40,I40,G40,E40,M40,O40) -> 1 | S40: =SUM(L40,J40,H40,F40,N40,P40) -> 13943.38
A42: 12. | B42: INSTALAÇÃO DE COMBATE E INCÊNDIO E PÂNICO | C42: =D41/D63 -> 0 | D42: =ORÇAMENTO!H155 -> 11035.81742 | T42: =PRAZOS!K154 -> 0.2
F43: =$D42*E43 -> 0 | H43: =$D42*G43 -> 0 | J43: =$D42*I43 -> 0 | L43: =$D42*K43 -> 0 | M43: 0.5 | N43: =$D42*M43 -> 5517.908712 | O43: 0.5 | P43: =$D42*O43 -> 5517.908712 | R43: =SUM(K43,I43,G43,E43,M43,O43) -> 1 | S43: =SUM(L43,J43,H43,F43,N43,P43) -> 11035.81742
A45: 13. | B45: REVESTIMENTOS | C45: =D45/D63 -> 0.1134323163 | D45: =ORÇAMENTO!H171 -> 61052.50555 | T45: =PRAZOS!K170 -> 3.2
F46: =$D45*E46 -> 0 | H46: =$D45*G46 -> 0 | I46: 0.05 | J46: =$D45*I46 -> 3052.625278 | K46: 0.6 | L46: =$D45*K46 -> 36631.50333 | M46: 0.35 | N46: =$D45*M46 -> 21368.37694 | P46: =$D45*O46 -> 0 | R46: =SUM(K46,I46,G46,E46,M46,O46) -> 1 | S46: =SUM(L46,J46,H46,F46,N46,P46) -> 61052.50555
A48: 14. | B48: PINTURA | C48: =D48/D63 -> 0.02069619627 | D48: =ORÇAMENTO!H180 -> 11139.2827 | T48: =PRAZOS!K179 -> 1.2
F49: =$D48*E49 -> 0 | H49: =$D48*G49 -> 0 | J49: =$D48*I49 -> 0 | L49: =$D48*K49 -> 0 | M49: 0.8 | N49: =$D48*M49 -> 8911.426159 | O49: 0.2 | P49: =$D48*O49 -> 2227.85654 | R49: =SUM(K49,I49,G49,E49,M49,O49) -> 1 | S49: =SUM(L49,J49,H49,F49,N49,P49) -> 11139.2827
A51: 15. | B51: =ORÇAMENTO!B188 -> CLIMATIZAÇÃO/REFRIGERAÇÃO | C51: =D51/D60 -> 1.052827517 | D51: =ORÇAMENTO!H188 -> 43155.8 | T51: =PRAZOS!K187 -> 0.117
F52: =$D51*E52 -> 0 | H52: =$D51*G52 -> 0 | J52: =$D51*I52 -> 0 | L52: =$D51*K52 -> 0 | M52: 0.1 | N52: =$D51*M52 -> 4315.58 | O52: 0.9 | P52: =$D51*O52 -> 38840.22 | R52: =SUM(K52,I52,G52,E52,M52,O52) -> 1 | S52: =SUM(L52,J52,H52,F52,N52,P52) -> 43155.8
A54: 16. | B54: PISO | C54: =D54/D63 -> 0.1415554872 | D54: =ORÇAMENTO!H193 -> 76189.19771 | T54: =PRAZOS!K192 -> 2.8
F55: =$D54*E55 -> 0 | H55: =$D54*G55 -> 0 | I55: 0.1 | J55: =$D54*I55 -> 7618.919771 | K55: 0.7 | L55: =$D54*K55 -> 53332.43839 | M55: 0.2 | N55: =$D54*M55 -> 15237.83954 | P55: =$D54*O55 -> 0 | R55: =SUM(K55,I55,G55,E55,M55,O55) -> 1 | S55: =SUM(L55,J55,H55,F55,N55,P55) -> 76189.19771
A57: 17. | B57: SERVIÇOS COMPLEMENTARES | C57: =D57/D63 -> 0.08672315611 | D57: =ORÇAMENTO!H203 -> 46676.87433 | T57: =PRAZOS!K202 -> 5.2
E58: 0.05 | F58: =$D57*E58 -> 2333.843716 | G58: 0.05 | H58: =$D57*G58 -> 2333.843716 | I58: 0.2 | J58: =$D57*I58 -> 9335.374865 | K58: 0.4 | L58: =$D57*K58 -> 18670.74973 | M58: 0.2 | N58: =$D57*M58 -> 9335.374865 | O58: 0.1 | P58: =$D57*O58 -> 4667.687433 | R58: =SUM(K58,I58,G58,E58,M58,O58) -> 1 | S58: =SUM(L58,J58,H58,F58,N58,P58) -> 46676.87433
A60: 18. | B60: ADMINISTRAÇÃO LOCAL DA OBRA | C60: =D60/D63 -> 0.07615795134 | D60: =ORÇAMENTO!H218 -> 40990.38
E61: =SUM(F9:F58)/($D63-$D60) -> 0.08123487284 | F61: =$D60*E61 -> 3329.848307 | G61: =SUM(H9:H58)/($D63-$D60) -> 0.1227407748 | H61: =$D60*G61 -> 5031.190999 | I61: =SUM(J9:J58)/($D63-$D60) -> 0.2324143443 | J61: =$D60*I61 -> 9526.752292 | K61: =SUM(L9:L58)/($D63-$D60) -> 0.2680949998 | L61: =$D60*K61 -> 10989.31592 | M61: =SUM(N9:N58)/($D63-$D60) -> 0.1679326611 | N61: =$D60*M61 -> 6883.623594 | O61: =SUM(P9:P58)/($D63-$D60) -> 0.1275823471 | P61: =$D60*O61 -> 5229.648891 | R61: =SUM(K61,I61,G61,E61,M61,O61) -> 1 | S61: =SUM(L61,J61,H61,F61,N61,P61) -> 40990.38
A63: SUBTOTAL | D63: =SUM(D8:D61) -> 538228.5011 | E63: =F63/$D$63 -> 0.08123487284 | F63: =SUM(F8:F61) -> 43722.92385 | G63: =H63/$D$63 -> 0.1227407748 | H63: =SUM(H8:H61) -> 66062.58323 | I63: =J63/$D$63 -> 0.2324143443 | J63: =SUM(J8:J61) -> 125092.0242 | K63: =L63/$D$63 -> 0.2680949998 | L63: =SUM(L8:L61) -> 144296.3699 | M63: =N63/$D$63 -> 0.1679326611 | N63: =SUM(N8:N61) -> 90386.14449 | O63: =P63/$D$63 -> 0.1275823471 | P63: =SUM(P8:P61) -> 68668.45547
A64: BDI 27% | D64: =D63*0.27 -> 145321.6953 | F64: =F63*0.27 -> 11805.18944 | H64: =H63*0.27 -> 17836.89747 | J64: =J63*0.27 -> 33774.84653 | L64: =L63*0.27 -> 38960.01987 | N64: =N63*0.27 -> 24404.25901 | P64: =P63*0.27 -> 18540.48298
A65: VALOR MENSAL | F65: =SUM(F63:F64) -> 55528.11329 | H65: =SUM(H63:H64) -> 83899.4807 | J65: =SUM(J63:J64) -> 158866.8707 | L65: =SUM(L63:L64) -> 183256.3898 | N65: =SUM(N63:N64) -> 114790.4035 | P65: =SUM(P63:P64) -> 87208.93845
A66: VALOR ACUMULADO | D66: =D63+D64 -> 683550.1964 | E66: =E63 -> 0.08123487284 | F66: =F65 -> 55528.11329 | G66: =G63+E66 -> 0.2039756476 | H66: =F66+H65 -> 139427.594 | I66: =I63+G66 -> 0.436389992 | J66: =H66+J65 -> 298294.4647 | K66: =K63+I66 -> 0.7044849917 | L66: =J66+L65 -> 481550.8545 | M66: =M63+K66 -> 0.8724176529 | N66: =L66+N65 -> 596341.258 | O66: =O63+M66 -> 1 | P66: =N66+P65 -> 683550.1964
B69: O orçamento foi estimado em R$ 683.232,58 (Seiscentos e oitenta e três mil, duzentos e trinta e dois reais e ciquenta e oito centavos)
B72: Referência: Orse - Julho /2017 e Sinapi/AL - Agosto /2017
B76: ____________________________________________
B77: Carlos Wilson da Silva Diniz
B78: Engenheiro Civil - DIP/GPOS/SINFRA/UFAL
B79: Siape Nº 2222799
B83: Maceió, ____ de ______________ de______

Sheet PRAZOS
A2: UNIVERSIDADE FEDERAL DE ALAGOAS - UFAL
A3: SUPERINTENDÊNCIA DE INFRAESTRUTURA - SINFRA
A4: GERENCIA DE PROJETOS,OBRAS E SERVIÇOS DE ENGENHARIA - GPOS
A6: PRAZO ESTIMATIVO PARA OBRA DE REFORMA DO AUDITÓRIO GUEDES DE MIRANDA NO ESPAÇO CULTURAL DA UFAL.
A8: ITEM | B8: DESCRIÇÃO DOS SERVIÇOS | C8: FONTE | D8: CÓDIGO | E8: UND | F8: QTD | G8: INDICE(h) | H8: Nº EQUIPES | I8: H/DIA (h) | J8: PRAZO(DIAS) | K8: PRAZO(MÊS)
A9: 1 | B9: PROJETOS COMPLEMENTARES | J9: =J10 -> 3.215625 | K9: =ROUND(J9/30,1) -> 0.1
A10: 1.1 | B10: Projeto de "as built" | C10: ORSE (insumos) | D10: 7325 | E10: m² | F10: 514.5 | G10: 0.1 | H10: 2 | I10: 8 | J10: =F10*G10/(H10*I10) -> 3.215625
A12: 2 | B12: SERVIÇOS PRELIMINARES | J12: =SUM(J13:J32) -> 80.04695 | K12: =ROUND(J12/30,1) -> 2.7
A13: 2.1 | B13: Mobilização/Desmobilização:
A14: 2.1.1 | B14: EXECUÇÃO DE ESCRITÓRIO EM CANTEIRO DE OBRA EM CHAPA DE MADEIRA COMPENSADA, NÃO INCLUSO MOBILIÁRIO E EQUIPAMENTOS. AF_02/2016 | C14: SINAPI | D14: 93207 | E14: m² | F14: =2.2*3.4 -> 7.48 | G14: 0.37 | H14: 1 | I14: 8 | J14: =F14*G14/(H14*I14) -> 0.34595
A15: 2.1.2 | B15: EXECUÇÃO DE ALMOXARIFADO EM CANTEIRO DE OBRA EM CHAPA DE MADEIRA COMPENSADA, INCLUSO PRATELEIRAS. AF_02/2016 | C15: SINAPI | D15: 93208 | E15: m² | F15: 12.4 | G15: 0.15 | H15: 1 | I15: 8 | J15: 0.2325
A16: 2.1.3 | B16: EXECUÇÃO DE SANITÁRIO E VESTIÁRIO EM CANTEIRO DE OBRA EM CHAPA DE MADEIRA COMPENSADA, NÃO INCLUSO MOBILIÁRIO. AF_02/2016 | C16: SINAPI | D16: 93212 | E16: m² | F16: 14.5 | G16: 0.37 | H16: 1 | I16: 8 | J16: 0.670625
A17: 2.1.4 | B17: EXECUÇÃO DE REFEITÓRIO EM CANTEIRO DE OBRA EM CHAPA DE MADEIRA COMPENSADA, NÃO INCLUSO MOBILIÁRIO E EQUIPAMENTOS. AF_02/2016 | C17: SINAPI | D17: 93210 | E17: m² | F17: 19.9 | G17: 0.6 | H17: 1 | I17: 8 | J17: 1.4925
A18: 2.1.5 | B18: Placa de obra em chapa zincada, instalada | C18: SINAPI | D18: 74209/001 | E18: m² | F18: 6 | G18: 0.7 | H18: 1 | I18: 8 | J18: 0.525
A19: 2.2 | B19: Demolições/Retiradas/Remoções: | H19: 1
A20: 2.2.1 | B20: DEMOLICAO DE ALVENARIA DE TIJOLOS FURADOS S/REAPROVEITAMENTO | C20: SINAPI | D20: 73899/002 | E20: m³ | F20: 2.18 | G20: 5 | H20: 1 | I20: 8 | J20: 1.3625
A21: 2.2.2 | B21: Remoção de telhamento com telhas onduladas fibrocimento ou aluminio | C21: COMPOSIÇÃO | D21: 101 | E21: m² | F21: 857 | G21: 0.22 | H21: 2 | I21: 8 | J21: 11.78375
A22: 2.2.3 | B22: Remoção de painéis verticais de madeira | C22: COMPOSIÇÃO | D22: 102 | E22: m² | F22: 92.9 | G22: 0.25 | H22: 1 | I22: 8 | J22: 2.903125
A23: 2.2.4 | B23: Remoção de piso em assoalho de madeira | C23: COMPOSIÇÃO | D23: 103 | E23: m² | F23: 105 | G23: 0.25 | H23: 1 | I23: 8 | J23: 3.28125
A24: 2.2.5 | B24: Demolição de piso cerâmico | C24: COMPOSIÇÃO | D24: 104 | E24: m² | F24: 21.81 | G24: 0.7 | H24: 1 | I24: 8 | J24: 1.908375
A25: 2.2.6 | B25: RETIRADA DE FORRO EM REGUAS DE PVC, INCLUSIVE RETIRADA DE PERFIS | C25: SINAPI | D25: 72238 | E25: m² | F25: 365.03 | G25: 0.2 | H25: 2 | I25: 8 | J25: 4.562875
A26: 2.2.7 | B26: Remoção de estrutura metálica chumbada em concreto (alambrado, guarda-corpo) | C26: COMPOSIÇÃO | D26: 105 | E26: m² | F26: 89.38 | G26: 3 | H26: 2 | I26: 8 | J26: 16.75875
A27: 2.2.8 | B27: Remoção de poltronas | C27: COMPOSIÇÃO | D27: 106 | E27: und | F27: 337 | G27: 0.9 | H27: 2 | I27: 8 | J27: =F27*G27/(H27*I27) -> 18.95625
A28: 2.2.9 | B28: Remoção de cortinas | C28: COMPOSIÇÃO | D28: 107 | E28: und | F28: 3 | G28: 1 | H28: 1 | I28: 8 | J28: 0.375
A29: 2.2.10 | B29: Remoção de pintura(raspagem e/ou lixamento e/ou escovação) | C29: COMPOSIÇÃO | D29: 108 | E29: m² | F29: 244.73 | G29: 0.8 | H29: 2 | I29: 8 | J29: 12.2365
A30: 2.2.11 | B30: Demolicao de alvenaria de tijolos macicos s/reaproveitamento (Faixa de calçada para alocação da tubulação de esgoto) | C30: COMPOSIÇÃO | D30: 109 | E30: m³ | F30: 1.29 | G30: 4 | H30: 1 | I30: 8 | J30: =F30*G30/(H30*I30) -> 0.645
A31: 2.3 | B31: Esquadrias: | H31: 1
A32: 2.3.1 | B32: Remoção de esquadria de madeira, com ou sem batente | C32: COMPOSIÇÃO | D32: 120 | E32: m² | F32: 20.07 | G32: 0.8 | H32: 1 | I32: 8 | J32: =F32*G32/(H32*I32) -> 2.007
A34: 3 | B34: MOVIMENTO DE TERRA | J34: =SUM(J35:J36) -> 11.445 | K34: =ROUND(J34/30,1) -> 0.4
A35: 3.1 | B35: Escavação manual de vala ou cava em material de 1ª categoria, profundidade até 1,50m (Escavação para alocação da tubulação de esgoto na calçada) | C35: COMPOSIÇÃO | D35: 110 | E35: m³ | F35: 15.41 | G35: 3 | H35: 1 | I35: 8 | J35: =F35*G35/(H35*I35) -> 5.77875
A36: 3.2 | B36: REATERRO DE VALA COM COMPACTAÇÃO MANUAL | C36: SINAPI | D36: 73964/006 | E36: m³ | F36: 15.11 | G36: 3 | H36: 1 | I36: 8 | J36: 5.66625
A38: 4 | B38: INFRAESTRUTURA | J38: =SUM(J39:J41) -> 8.688887 | K38: =ROUND(J38/30,1) -> 0.3
A39: 4.1 | B39: Caixa de alvenaria de tijolo maciço (0,10m) dimensões interna 30x30x30cm revestida internamente com argamassa 1:3 e tampa de concreto | C39: COMPOSIÇÃO | D39: 111 | E39: und | F39: 5 | G39: 2.03 | H39: 1 | I39: 8 | J39: =F39*G39/(H39*I39) -> 1.26875
A40: 4.2 | B40: ALVENARIA EM TIJOLO CERAMICO MACICO 5X10X20CM 1/2 VEZ (ESPESSURA 10CM), ASSENTADO COM ARGAMASSA TRACO 1:2:8 (CIMENTO, CAL E AREIA) (Recomposição da calçada escavada) | C40: SINAPI | D40: 72132 | E40: m² | F40: 12.84 | G40: 0.9344 | H40: 1 | I40: 8 | J40: 1.499712
A41: 4.3 | B41: CONTRAPISO EM ARGAMASSA TRAÇO 1:4 (CIMENTO E AREIA), PREPARO MECÂNICO COM BETONEIRA 400 L, APLICADO EM ÁREAS MOLHADAS SOBRE LAJE, ADERIDO, ESPESSURA 3CM. AF_06/2014 (contrapiso da calçada ao longo do trajeto da tubulação do esgoto) | C41: SINAPI | D41: 87745 | E41: m² | F41: 75.18 | G41: 0.63 | H41: 1 | I41: 8 | J41: 5.920425
A43: 5 | B43: SUPERESTRUTURA | J43: =SUM(J44:J48) -> 0.62212375 | K43: =ROUND(J43/30,3) -> 0.021
A44: 5.1 | B44: Laje pré-fabricada treliçada para piso ou cobertura, intereixo 38cm, h=12cm, el. enchimento em EPS h=8cm, inclusive escoramento em madeira e capeamento 4cm (Laje da entrada principal do auditório) | C44: COMPOSIÇÃO | D44: 122 | E44: m² | F44: 1.62 | G44: 1.88 | H44: 1 | I44: 8 | J44: 0.3807
A45: 5.2 | B45: Concretagem de vigas com concreto simples com preparo mecânico em betoneira de 400 L, fck=25mpa, inclui lançamento, adensamento e acabamento (cintas para apoio da laje da entrada principal do auditório) | C45: COMPOSIÇÃO | D45: 123 | E45: m³ | F45: 0.03 | G45: 10.717 | H45: 1 | I45: 8 | J45: 0.04018875
A46: 5.3 | B46: MONTAGEM E DESMONTAGEM DE FÔRMA DE VIGA, ESCORAMENTO METÁLICO, PÉ-DIREITO SIMPLES, EM CHAPA DE MADEIRA RESINADA, 2 UTILIZAÇÕES. AF_12/2015 | C46: SINAPI | D46: 92452 | E46: m² | F46: 0.72 | G46: 1.769 | H46: 1 | I46: 8 | J46: 0.15921
A47: 5.4 | B47: ARMAÇÃO DE PILAR OU VIGA DE UMA ESTRUTURA CONVENCIONAL DE CONCRETO ARMADO EM UM EDIFÍCIO DE MÚLTIPLOS PAVIMENTOS UTILIZANDO AÇO CA-60 DE 5,0MM - MONTAGEM. AF_12/2015 | C47: SINAPI | D47: 92759 | E47: kg | F47: 1 | G47: 0.1241 | H47: 1 | I47: 8 | J47: 0.0155125
A48: 5.5 | B48: ARMAÇÃO DE PILAR OU VIGA DE UMA ESTRUTURA CONVENCIONAL DE CONCRETO ARMADO EM UM EDIFÍCIO DE MÚLTIPLOS PAVIMENTOS UTILIZANDO AÇO CA-50 DE 8.0 MM - MONTAGEM. AF_12/2015 | C48: SINAPI | D48: 92761 | E48: kg | F48: 3 | G48: 0.0707 | H48: 1 | I48: 8 | J48: 0.0265125
A50: 6 | B50: ALVENARIA/VEDAÇÃO/DIVISÓRIA | J50: =SUM(J51:J53) -> 12.7744965 | K50: =ROUND(J50/30,1) -> 0.4
A51: 6.1 | B51: (COMPOSIÇÃO REPRESENTATIVA) DO SERVIÇO DE ALVENARIA DE VEDAÇÃO DE BLOCOS VAZADOS DE CERÂMICA DE 9X19X19CM (ESPESSURA 9CM), PARA EDIFICAÇÃO HABITACIONAL UNIFAMILIAR (CASA) E EDIFICAÇÃO PÚBLICA PADRÃO. AF_11/2014 | C51: SINAPI | D51: 89168 | E51: m² | F51: =9.19+3.05*9.4 -> 37.86 | G51: 1.98 | H51: 1 | I51: 8 | J51: =F51*G51/(H51*I51) -> 9.37035
A52: 6.2 | B52: PAREDE COM PLACAS DE GESSO ACARTONADO (DRYWALL), PARA USO INTERNO, COM DUAS FACES DUPLAS E ESTRUTURA METÁLICA COM GUIAS DUPLAS, COM VÃOS. AF_06/2017_P | C52: SINAPI | D52: 96369 | E52: m² | F52: 17.28 | G52: 1.0549 | H52: 1 | I52: 8 | J52: 2.278584
A53: 6.3 | B53: Parede de bloco de gesso (50 x 65cm) - fornecimento e execução (Fechamento das janelas da região do palco) | C53: ORSE | D53: 10565 | E53: m² | F53: =2.9*1.07+1.45*1.07+1.45*1+2.9*1 -> 9.0045 | G53: 1 | H53: 1 | I53: 8 | J53: 1.1255625
A55: 7 | B55: ESQUADRIAS | J55: =SUM(J56:J65) -> 9.167375 | K55: =ROUND(J55/30,1) -> 0.3
A56: 7.1 | B56: De madeira:
A57: 7.1.1 | B57: Porta de giro em madeira compensada 01 folha lisa (0,80m x 2,10m) em quadro estrutural de madeira, preenchido com lâminas em chapa de compensado 4mm de espessura, revestida com laminado melamínico madeirado (8mm), tonalidade idêntica ao painel da parede adjacente, inclui alizares. (tonalidade a ser definida pelo setor de Arquitetura da SINFRA) ( P2). | C57: COMPOSIÇÃO | D57: 126 | E57: und | F57: 1 | G57: 2.977 | H57: 1 | I57: 8 | J57: 0.372125
A58: 7.1.2 | B58: Porta de giro em madeira compensada 01 folha lisa (0,92m x 2,10m) em quadro estrutural de madeira, preenchido com lâminas em chapa de compensado 4mm de espessura, revestida com laminado melamínico na cor branco, com bandeira fixa com vidro e madeira, inclui alizares . (tonalidade a ser definida pelo setor de Arquitetura da SINFRA) ( P3). | C58: COMPOSIÇÃO | D58: 127 | E58: und | F58: 1 | G58: 2.977 | H58: 1 | I58: 8 | J58: 0.372125
A59: 7.1.3 | B59: Porta de giro em madeira compensada 01 folha lisa (0,90m x 2,10m) em quadro estrutural de madeira, preenchido com lâminas em chapa de compensado 4mm de espessura, revestida com laminado melamínico madeirado (8mm), tonalidade idêntica ao painel da parede adjacente, com bandeira fixa com vidro e madeira, inclui alizares . (tonalidade a ser definida pelo setor de Arquitetura da SINFRA) ( P4). | C59: COMPOSIÇÃO | D59: 128 | E59: und | F59: 1 | G59: 2.977 | H59: 1 | I59: 8 | J59: 0.372125
A60: 7.1.4 | B60: Porta de giro em madeira compensada 01 folha lisa (0,90m x 2,10m) em quadro estrutural de madeira, preenchido com lâminas em chapa de compensado 4mm de espessura, revestida com laminado melamínico na cor branco (8mm), com bandeira fixa com vidro e madeira, inclui alizarees . ( P8). | C60: COMPOSIÇÃO | D60: 130 | E60: und | F60: 1 | G60: 2.977 | H60: 1 | I60: 8 | J60: 0.372125
A61: 7.1.5 | B61: Revisão de esquadria de madeira (P6 P7) | C61: COMPOSIÇÃO | D61: 124 | E61: m² | F61: 54.57 | G61: 0.9 | H61: 1 | I61: 8 | J61: 6.139125
A62: 7.2 | B62: De ferro: | H62: 1
A63: 7.2.1 | B63: Revisão de esquadria de ferro | C63: COMPOSIÇÃO | D63: 125 | E63: m² | F63: 13.02 | G63: 0.9 | H63: 1 | I63: 8 | J63: 1.46475
A64: 7.3 | B64: Vidro: | H64: 1
A65: 7.3.1 | B65: PORTA DE VIDRO TEMPERADO, DE GIRO, COM 02 FOLHAS DE 1,115X2,10M, ESPESSURA 10MM, INCLUSIVE ACESSORIOS ( P5) | C65: COMPOSIÇÃO | D65: 129 | E65: und | F65: 1 | G65: 0.6 | H65: 1 | I65: 8 | J65: 0.075
A66: 7.3.2 | B66: Janela em alumínio, cor N/P/B, tipo moldura-vidro, de correr, 1F+1M, com vidro 4 mm (J6 da sala de som) | C66: COMPOSIÇÃO | D66: 161 | E66: und | F66: 1.6 | G66: 1 | H66: 1 | I66: 8 | J66: =F66*G66/(H66*I66) -> 0.2
A68: 8 | B68: COBERTURA | J68: =SUM(J69:J70) -> 33.20875 | K68: =ROUND(J68/30,1) -> 1.1
A69: 8.1 | B69: Telhamento com telha de alumínio, ondulada, dupla, termoacustica, esp= 0,7 mm, com enchimento em poliuretano/lã de vidro, esp = 50 mm, inclusive elementos de fixação, pré-pintadas com pintura eletrostática a pó na cor branco, incluindo acabamento tapa onda (fornecimento e montagem) | C69: COMPOSIÇÃO | D69: 119 | E69: m² | F69: 857 | G69: 0.22 | H69: 2 | I69: 8 | J69: 11.78375
A70: 8.2 | B70: Imunização de madeira contra cupim, com aplicação de 01 demão de Pentox, similar ou qualidade superior | C70: COMPOSIÇÃO | D70: 139 | E70: m² | F70: =F69 -> 857 | G70: 0.4 | H70: 2 | I70: 8 | J70: =F70*G70/(H70*I70) -> 21.425
A72: 9 | B72: INSTALAÇÕES ELÉTRICAS | J72: =SUM(J73:J116) -> 21.3906125 | K72: =ROUND(J72/30,1) -> 0.7
A73: 9.1 | B73: CAIXA RETANGULAR 4" X 2" BAIXA (0,30 M DO PISO), PVC, INSTALADA EM PAREDE - FORNECIMENTO E INSTALAÇÃO. AF_12/2015 | C73: SINAPI | D73: 91941 | E73: und | F73: 18 | G73: 0.145 | H73: 1 | I73: 8 | J73: 0.32625
A74: 9.2 | B74: CAIXA RETANGULAR 4" X 2" MÉDIA (1,30 M DO PISO), PVC, INSTALADA EM PAREDE - FORNECIMENTO E INSTALAÇÃO. AF_12/2015 | C74: SINAPI | D74: 91940 | E74: und | F74: 6 | G74: 0.247 | H74: 1 | I74: 8 | J74: 0.18525
A75: 9.3 | B75: CAIXA RETANGULAR 4" X 2" ALTA (2,00 M DO PISO), PVC, INSTALADA EM PAREDE - FORNECIMENTO E INSTALAÇÃO. AF_12/2015 | C75: SINAPI | D75: 91939 | E75: und | F75: 10 | G75: 0.519 | H75: 1 | I75: 8 | J75: 0.64875
A76: 9.4 | B76: TOMADA BAIXA DE EMBUTIR (1 MÓDULO), 2P+T 10 A, INCLUINDO SUPORTE E PLACA - FORNECIMENTO E INSTALAÇÃO. AF_12/2015 | C76: SINAPI | D76: 92000 | E76: und | F76: 14 | G76: 0.235 | H76: 1 | I76: 8 | J76: 0.41125
A77: 9.5 | B77: TOMADA BAIXA DE EMBUTIR (2 MÓDULOS), 2P+T 10 A, INCLUINDO SUPORTE E PLACA - FORNECIMENTO E INSTALAÇÃO. AF_12/2015 | C77: SINAPI | D77: 92008 | E77: und | F77: 4 | G77: 0.409 | H77: 1 | I77: 8 | J77: 0.2045
A78: 9.6 | B78: TOMADA MÉDIA DE EMBUTIR (1 MÓDULO), 2P+T 10 A, INCLUINDO SUPORTE E PLACA - FORNECIMENTO E INSTALAÇÃO. AF_12/2015 | C78: SINAPI | D78: 91996 | E78: und | F78: 3 | G78: 0.308 | H78: 1 | I78: 8 | J78: 0.1155
A79: 9.7 | B79: TOMADA MÉDIA DE EMBUTIR (2 MÓDULOS), 2P+T 10 A, INCLUINDO SUPORTE E PLACA - FORNECIMENTO E INSTALAÇÃO. AF_12/2015 | C79: SINAPI | D79: 92004 | E79: und | F79: 1 | G79: 0.555 | H79: 1 | I79: 8 | J79: 0.069375
A80: 9.8 | B80: TOMADA ALTA DE EMBUTIR (1 MÓDULO), 2P+T 10 A, INCLUINDO SUPORTE E PLACA - FORNECIMENTO E INSTALAÇÃO. AF_12/2015 | C80: SINAPI | D80: 91992 | E80: und | F80: 5 | G80: 0.496 | H80: 1 | I80: 8 | J80: 0.31
A81: 9.9 | B81: INTERRUPTOR SIMPLES (1 MÓDULO), 10A/250V, INCLUINDO SUPORTE E PLACA -FORNECIMENTO E INSTALAÇÃO. AF_12/2015 | C81: SINAPI | D81: 91953 | E81: und | F81: 1 | G81: 0.225 | H81: 1 | I81: 8 | J81: 0.028125
A82: 9.10 | B82: INTERRUPTOR SIMPLES (2 MÓDULOS), 10A/250V, INCLUINDO SUPORTE E PLACA -FORNECIMENTO E INSTALAÇÃO. AF_12/2015 | C82: SINAPI | D82: 91959 | E82: und | F82: 1 | G82: 0.39 | H82: 1 | I82: 8 | J82: 0.04875
A83: 9.11 | B83: Luminária de embutir no forro, c/ lâmpada LED 10w, formato tradicional, Forncecimento e Instalação (Laterais Plateia) | C83: COMPOSIÇÃO | D83: 112 | E83: und | F83: 18 | G83: 0.7 | H83: 1 | I83: 8 | J83: 1.575
A84: 9.12 | B84: Luminária de embutir aberta c/ 2 lâmpadas tubo led T8 2 x 18/20 w Base G13 (Palco e Camarim) | C84: COMPOSIÇÃO | D84: 113 | E84: und | F84: 19 | G84: 1 | H84: 1 | I84: 8 | J84: 2.375
A85: 9.13 | B85: Lâmpada LED Tubular T8 Bivolt 1,20m 18/20W, Base G13 (Iluminação indireta Platéia) | C85: COMPOSIÇÃO | D85: 114 | E85: und | F85: 168 | G85: 0.1 | H85: 1 | I85: 8 | J85: 2.1
A86: 9.14 | B86: Luminária tipo Arandela LED 6W com foco bidirecional para cima e para baixo com caixa em alumínio e pintura epóxidica na cor pereta - Fornecimento (luz amarela) | C86: COMPOSIÇÃO | D86: 115 | E86: und | F86: 2 | G86: 0.1 | H86: 1 | I86: 8 | J86: 0.025
A87: 9.15 | B87: CABO DE COBRE FLEXÍVEL ISOLADO, 1,5 MM², ANTI-CHAMA 0,6/1,0 KV, PARA CIRCUITOS TERMINAIS - FORNECIMENTO E INSTALAÇÃO. AF_12/2015 (AZUL CLARO) | C87: SINAPI | D87: 91925 | E87: m | F87: 65.8 | G87: 0.024 | H87: 1 | I87: 8 | J87: 0.1974
A88: 9.16 | B88: CABO DE COBRE FLEXÍVEL ISOLADO, 1,5 MM², ANTI-CHAMA 0,6/1,0 KV, PARA CIRCUITOS TERMINAIS - FORNECIMENTO E INSTALAÇÃO. AF_12/2015 (BRANCO) | C88: SINAPI | D88: 91925 | E88: m | F88: =27.8+18.9 -> 46.7 | G88: 0.024 | H88: 1 | I88: 8 | J88: 0.1401
A89: 9.17 | B89: CABO DE COBRE FLEXÍVEL ISOLADO, 1,5 MM², ANTI-CHAMA 0,6/1,0 KV, PARA CIRCUITOS TERMINAIS - FORNECIMENTO E INSTALAÇÃO. AF_12/2015 (VERMELHO OU PRETO) | C89: SINAPI | D89: 91925 | E89: m | F89: 34.1 | G89: 0.024 | H89: 1 | I89: 8 | J89: 0.1023
A90: 9.18 | B90: CABO DE COBRE FLEXÍVEL ISOLADO, 2,5 MM², ANTI-CHAMA 0,6/1,0 KV, PARA CIRCUITOS TERMINAIS - FORNECIMENTO E INSTALAÇÃO. AF_12/2015 (AZUL CLARO) | C90: SINAPI | D90: 91927 | E90: m | F90: 691.6 | G90: 0.03 | H90: 1 | I90: 8 | J90: 2.5935
A91: 9.19 | B91: CABO DE COBRE FLEXÍVEL ISOLADO, 2,5 MM², ANTI-CHAMA 0,6/1,0 KV, PARA CIRCUITOS TERMINAIS - FORNECIMENTO E INSTALAÇÃO. AF_12/2015 (BRANCO) | C91: SINAPI | D91: 91927 | E91: m | F91: =203.6+4.3 -> 207.9 | G91: 0.03 | H91: 1 | I91: 8 | J91: 0.779625
A92: 9.20 | B92: CABO DE COBRE FLEXÍVEL ISOLADO, 2,5 MM², ANTI-CHAMA 0,6/1,0 KV, PARA CIRCUITOS TERMINAIS - FORNECIMENTO E INSTALAÇÃO. AF_12/2015 (VERMELHO OU PRETO) | C92: SINAPI | D92: 91927 | E92: m | F92: =389.8+369.5 -> 759.3 | G92: 0.03 | H92: 1 | I92: 8 | J92: 2.847375
A93: 9.21 | B93: CABO DE COBRE FLEXÍVEL ISOLADO, 2,5 MM², ANTI-CHAMA 0,6/1,0 KV, PARA CIRCUITOS TERMINAIS - FORNECIMENTO E INSTALAÇÃO. AF_12/2015 (VERDE OU VERDE-AMARELO) | C93: SINAPI | D93: 91927 | E93: m | F93: 306.2 | G93: 0.03 | H93: 1 | I93: 8 | J93: 1.14825
A94: 9.22 | B94: CABO DE COBRE FLEXÍVEL ISOLADO, 4 MM², ANTI-CHAMA 0,6/1,0 KV, PARA CIRCUITOS TERMINAIS - FORNECIMENTO E INSTALAÇÃO. AF_12/2015 (AZUL CLARO) | C94: SINAPI | D94: 91929 | E94: m | F94: 40.5 | G94: 0.04 | H94: 1 | I94: 8 | J94: 0.2025
A95: 9.23 | B95: CABO DE COBRE FLEXÍVEL ISOLADO, 4 MM², ANTI-CHAMA 0,6/1,0 KV, PARA CIRCUITOS TERMINAIS - FORNECIMENTO E INSTALAÇÃO. AF_12/2015 (VERMELHO OU PRETO) | C95: SINAPI | D95: 91929 | E95: m | F95: =22.1+18.4 -> 40.5 | G95: 0.04 | H95: 1 | I95: 8 | J95: 0.2025
A96: 9.24 | B96: CABO DE COBRE FLEXÍVEL ISOLADO, 4 MM², ANTI-CHAMA 0,6/1,0 KV, PARA CIRCUITOS TERMINAIS - FORNECIMENTO E INSTALAÇÃO. AF_12/2015 (VERDE OU VERDE-AMARELO) | C96: SINAPI | D96: 91929 | E96: m | F96: 40.5 | G96: 0.04 | H96: 1 | I96: 8 | J96: 0.2025
A97: 9.25 | B97: CABO DE COBRE FLEXÍVEL ISOLADO, 6 MM², ANTI-CHAMA 0,6/1,0 KV, PARA CIRCUITOS TERMINAIS - FORNECIMENTO E INSTALAÇÃO. AF_12/2015 (AZUL CLARO) | C97: SINAPI | D97: 91931 | E97: m | F97: 0.9 | G97: 0.052 | H97: 1 | I97: 8 | J97: 0.00585
A98: 9.26 | B98: CABO DE COBRE FLEXÍVEL ISOLADO, 6 MM², ANTI-CHAMA 0,6/1,0 KV, PARA CIRCUITOS TERMINAIS - FORNECIMENTO E INSTALAÇÃO. AF_12/2015 (VERMELHO OU PRETO) | C98: SINAPI | D98: 91931 | E98: m | F98: 2.7 | G98: 0.052 | H98: 1 | I98: 8 | J98: 0.01755
A99: 9.27 | B99: CABO DE COBRE FLEXÍVEL ISOLADO, 6 MM², ANTI-CHAMA 0,6/1,0 KV, PARA CIRCUITOS TERMINAIS - FORNECIMENTO E INSTALAÇÃO. AF_12/2015 (VERDE OU VERDE-AMARELO) | C99: SINAPI | D99: 91931 | E99: m | F99: 0.9 | G99: 0.052 | H99: 1 | I99: 8 | J99: =F99*G99/(H99*I99) -> 0.00585
A100: 9.28 | B100: CABO DE COBRE FLEXÍVEL ISOLADO, 16 MM², ANTI-CHAMA 0,6/1,0 KV, PARA CIRCUITOS TERMINAIS - FORNECIMENTO E INSTALAÇÃO. AF_12/2015 (AZUL CLARO) | C100: SINAPI | D100: 91935 | E100: m | F100: 1.3 | G100: 0.115 | H100: 1 | I100: 8 | J100: 0.0186875
A101: 9.29 | B101: CABO DE COBRE FLEXÍVEL ISOLADO, 16 MM², ANTI-CHAMA 0,6/1,0 KV, PARA CIRCUITOS TERMINAIS - FORNECIMENTO E INSTALAÇÃO. AF_12/2015 (VERMELHO OU PRETO) | C101: SINAPI | D101: 91935 | E101: m | F101: 3.9 | G101: 0.115 | H101: 1 | I101: 8 | J101: 0.0560625
A102: 9.30 | B102: CABO DE COBRE FLEXÍVEL ISOLADO, 16 MM², ANTI-CHAMA 0,6/1,0 KV, PARA CIRCUITOS TERMINAIS - FORNECIMENTO E INSTALAÇÃO. AF_12/2015 (VERDE OU VERDE-AMARELO) | C102: SINAPI | D102: 91935 | E102: m | F102: 1.3 | G102: 0.115 | H102: 1 | I102: 8 | J102: 0.0186875
A103: 9.31 | B103: ELETRODUTO FLEXÍVEL CORRUGADO, PVC, DN 25 MM (3/4"), PARA CIRCUITOS TERMINAIS, INSTALADO EM PAREDE - FORNECIMENTO E INSTALAÇÃO. AF_12/2015 | C103: SINAPI | D103: 91854 | E103: m | F103: 50 | G103: 0.144 | H103: 1 | I103: 8 | J103: 0.9
A104: 9.32 | B104: ELETRODUTO FLEXÍVEL CORRUGADO, PVC, DN 32 MM (1"), PARA CIRCUITOS TERMINAIS, INSTALADO EM PAREDE - FORNECIMENTO E INSTALAÇÃO. AF_12/2015 | C104: SINAPI | D104: 91856 | E104: m | F104: 20 | G104: 0.164 | H104: 1 | I104: 8 | J104: 0.41
A105: 9.33 | B105: ELETRODUTO RÍGIDO ROSCÁVEL, PVC, DN 40 MM (1 1/4"), PARA CIRCUITOS TERMINAIS, INSTALADO EM PAREDE - FORNECIMENTO E INSTALAÇÃO. AF_12/2015 | C105: SINAPI | D105: 91873 | E105: m | F105: 20 | G105: 0.221 | H105: 1 | I105: 8 | J105: 0.5525
A106: 9.34 | B106: DISJUNTOR MONOPOLAR TIPO DIN, CORRENTE NOMINAL DE 10A - FORNECIMENTO E INSTALAÇÃO. AF_04/2016 | C106: SINAPI | D106: 93653 | E106: und | F106: 17 | G106: 0.035 | H106: 1 | I106: 8 | J106: 0.074375
A107: 9.35 | B107: DISJUNTOR MONOPOLAR TIPO DIN, CORRENTE NOMINAL DE 16A - FORNECIMENTO E INSTALAÇÃO. AF_04/2016 | C107: SINAPI | D107: 93654 | E107: und | F107: 4 | G107: 0.048 | H107: 1 | I107: 8 | J107: 0.024
A108: 9.36 | B108: DISJUNTOR MONOPOLAR TIPO DIN, CORRENTE NOMINAL DE 20A - FORNECIMENTO E INSTALAÇÃO. AF_04/2016 | C108: SINAPI | D108: 93655 | E108: und | F108: 2 | G108: 0.066 | H108: 1 | I108: 8 | J108: 0.0165
A109: 9.37 | B109: DISJUNTOR TERMOMAGNÉTICO TRIPOLAR TIPO DIN, CORRENTE NOMINAL DE 16A - FORNECIMENTO E INSTALAÇÃO. AF_04/2016 | C109: SINAPI | D109: 93668 | E109: und | F109: 5 | G109: 0.143 | H109: 1 | I109: 8 | J109: 0.089375
A110: 9.38 | B110: DISJUNTOR TERMOMAGNÉTICO TRIPOLAR TIPO DIN, CORRENTE NOMINAL DE 20A - FORNECIMENTO E INSTALAÇÃO. AF_04/2016 | C110: SINAPI | D110: 93669 | E110: und | F110: 1 | G110: 0.199 | H110: 1 | I110: 8 | J110: =F110*G110/(H110*I110) -> 0.024875
A111: 9.39 | B111: Disjuntor termomagnetico tripolar 63 A, padrão DIN (Europeu - linha branca), curva C | C111: COMPOSIÇÃO | D111: 116 | E111: und | F111: 1 | G111: 1 | H111: 1 | I111: 8 | J111: =F111*G111/(H111*I111) -> 0.125
A112: 9.40 | B112: Disjuntor termomagnetico tripolar 100 A, padrão DIN (Europeu - linha branca), 10KA | C112: COMPOSIÇÃO | D112: 117 | E112: und | F112: 1 | G112: 2 | H112: 1 | I112: 8 | J112: =F112*G112/(H112*I112) -> 0.25
A113: 9.41 | B113: Dispositivo de proteção contra surto de tensão DPS 60kA - 275v | C113: COMPOSIÇÃO | D113: 118 | E113: und | F113: 4 | G113: 0.3 | H113: 1 | I113: 8 | J113: 0.15
A114: 9.42 | B114: QUADRO DE DISTRIBUICAO DE ENERGIA DE EMBUTIR, EM CHAPA METALICA, PARA 18 DISJUNTORES TERMOMAGNETICOS MONOPOLARES, COM BARRAMENTO TRIFASICO E NEUTRO, FORNECIMENTO E INSTALACAO | C114: SINAPI | D114: 74131/004 | E114: und | F114: 1 | G114: 2.5 | H114: 1 | I114: 8 | J114: 0.3125
A115: 9.43 | B115: QUADRO DE DISTRIBUICAO DE ENERGIA DE EMBUTIR, EM CHAPA METALICA, PARA 24 DISJUNTORES TERMOMAGNETICOS MONOPOLARES, COM BARRAMENTO TRIFASICO E NEUTRO, FORNECIMENTO E INSTALACAO | C115: SINAPI | D115: 74131/005 | E115: und | F115: 2 | G115: 3 | H115: 1 | I115: 8 | J115: 0.75
A116: 9.44 | B116: QUADRO DE DISTRIBUICAO DE ENERGIA DE EMBUTIR, EM CHAPA METALICA, PARA 50 DISJUNTORES TERMOMAGNETICOS MONOPOLARES, COM BARRAMENTO TRIFASICO E NEUTRO, FORNECIMENTO E INSTALACAO | C116: SINAPI | D116: 74131/008 | E116: und | F116: 1 | G116: 6 | H116: 1 | I116: 8 | J116: 0.75
A117: 9.45 | B117: LÂMPADA LED 6 W BIVOLT BRANCA, FORMATO TRADICIONAL (BASE E27) - FORNECIMENTO E INSTALAÇÃO (Espelhos camarim) | C117: SINAPI | D117: 93042 | E117: und | F117: 44 | G117: 2.5 | H117: 1 | I117: 8 | J117: =F117*G117/(H117*I117) -> 13.75
A118: 9.46 | B118: Soquete ou bocal de porcelana E27 de tempo, ref.MT-2233, marca Decorlux, similar ou de qualidade superior (Espelhos camarim) | C118: COMPOSIÇÃO | D118: 156 | E118: und | F118: =F117 -> 44 | G118: 3 | H118: 1 | I118: 8 | J118: 16.5
A119: 9.47 | B119: LAMPADA LED TUBULAR 9/10 W BASE G13 - FORNECIMENTO E INSTALACAO (Espelhos camarim) | C119: COMPOSIÇÃO | D119: 157 | E119: und | F119: 3 | G119: 6 | H119: 1 | I119: 8 | J119: 2.25
A121: 10 | B121: INSTALAÇÕES HIDRO-SANITÁRIAS | J121: =SUM(J122:J148) -> 6.9549125 | K121: =ROUND(J121/30,1) -> 0.2
A122: 10.1 | B122: Água Fria:
A123: 10.1.1 | B123: TUBO, PVC, SOLDÁVEL, DN 32MM, INSTALADO EM RAMAL DE DISTRIBUIÇÃO DE ÁGUA - FORNECIMENTO E INSTALAÇÃO. AF_12/2014_P | C123: SINAPI | D123: 89403 | E123: m | F123: =2+1.05+21.45+30.1 -> 54.6 | G123: 0.134 | H123: 1 | I123: 8 | J123: 0.91455
A124: 10.1.2 | B124: TUBO, PVC, SOLDÁVEL, DN 25MM, INSTALADO EM RAMAL OU SUB-RAMAL DE ÁGUA - FORNECIMENTO E INSTALAÇÃO. AF_12/2014_P | C124: SINAPI | D124: 89356 | E124: m | F124: =2.7+1.4 -> 4.1 | G124: 0.369 | H124: 1 | I124: 8 | J124: 0.1891125
A125: 10.1.3 | B125: REGISTRO DE GAVETA COM CANOPLA Ø 25MM (1) - FORNECIMENTO E INSTALAÇÃO | C125: SINAPI | D125: 89353 | E125: und | F125: 1 | G125: 0.2 | H125: 1 | I125: 8 | J125: 0.025
A126: 10.1.4 | B126: JOELHO 90 GRAUS, PVC, SOLDÁVEL, DN 25MM, INSTALADO EM RAMAL OU SUB-RAMAL DE ÁGUA - FORNECIMENTO E INSTALAÇÃO. AF_12/2014_P | C126: SINAPI | D126: 89362 | E126: und | F126: 1 | G126: 0.15 | H126: 1 | I126: 8 | J126: 0.01875
A127: 10.1.5 | B127: JOELHO 90 GRAUS COM BUCHA DE LATÃO, PVC, SOLDÁVEL, DN 25MM, X 3/4" INSTALADO EM RAMAL OU SUB-RAMAL DE ÁGUA - FORNECIMENTO E INSTALAÇÃO. AF_12/2014_P | C127: SINAPI | D127: 89366 | E127: und | F127: 1 | G127: 0.15 | H127: 1 | I127: 8 | J127: 0.01875
A128: 10.1.6 | B128: JOELHO 90 GRAUS, PVC, SOLDÁVEL, DN 32MM, INSTALADO EM RAMAL DE DISTRIBUIÇÃO DE ÁGUA - FORNECIMENTO E INSTALAÇÃO. AF_12/2014_P | C128: SINAPI | D128: 89413 | E128: und | F128: 3 | G128: 0.107 | H128: 1 | I128: 8 | J128: 0.040125
A129: 10.1.7 | B129: TÊ COM BUCHA DE LATÃO NA BOLSA CENTRAL, PVC, SOLDÁVEL, DN 25 MM X 3/4 , INSTALADO EM RESERVAÇÃO DE ÁGUA DE EDIFICAÇÃO QUE POSSUA RESERVATÓRIO DE FIBRA/FIBROCIMENTO FORNECIMENTO E INSTALAÇÃO. AF_06/2016 | C129: SINAPI | D129: 94689 | E129: und | F129: 1 | G129: 0.159 | H129: 1 | I129: 8 | J129: 0.019875
A130: 10.1.8 | B130: LUVA DE REDUÇÃO, PVC, SOLDÁVEL, DN 32MM X 25MM, INSTALADO EM RAMAL OU SUB-RAMAL DE ÁGUA - FORNECIMENTO E INSTALAÇÃO. AF_12/2014 | C130: SINAPI | D130: 89380 | E130: und | F130: 1 | G130: 0.1 | H130: 1 | I130: 8 | J130: 0.0125
A131: 10.1.9 | B131: ADAPTADOR CURTO COM BOLSA E ROSCA PARA REGISTRO, PVC, SOLDÁVEL, DN 25MM X 3/4, INSTALADO EM RAMAL OU SUB-RAMAL DE ÁGUA - FORNECIMENTO E INSTALAÇÃO. AF_12/2014 TALAÇÃO. AF_12/2014 | C131: SINAPI | D131: 89383 | E131: und | F131: 2 | G131: 0.1 | H131: 1 | I131: 8 | J131: 0.025
A132: 10.1.10 | B132: ADAPTADOR COM FLANGE E ANEL DE VEDAÇÃO, PVC, SOLDÁVEL, DN 32 MM X 1 , INSTALADO EM RESERVAÇÃO DE ÁGUA DE EDIFICAÇÃO QUE POSSUA RESERVATÓRIO DE FIBRA/FIBROCIMENTO FORNECIMENTO E INSTALAÇÃO. AF_06/2016 | C132: SINAPI | D132: 94704 | E132: und | F132: 1 | G132: 0.136 | H132: 1 | I132: 8 | J132: 0.017
A133: 10.1.11 | B133: REGISTRO DE ESFERA, PVC, SOLDÁVEL, DN 32 MM, INSTALADO EM RESERVAÇÃO DE ÁGUA DE EDIFICAÇÃO QUE POSSUA RESERVATÓRIO DE FIBRA/FIBROCIMENTO FORNECIMENTO E INSTALAÇÃO. AF_06/2016 | C133: SINAPI | D133: 94490 | E133: und | F133: 1 | G133: 0.159 | H133: 1 | I133: 8 | J133: 0.019875
A134: 10.2 | B134: Louças, Metais e Acessórios:
A135: 10.2.1 | B135: Cuba de embutir oval em louça branca, 35 x 50cm ou equivalente, incluso válvula em metal cromado e sifão flexível em pvc - fornecimento e instalação. af_12/2013 | C135: SINAPI | D135: 86937 | E135: und | F135: 2 | G135: 0.85 | H135: 1 | I135: 8 | J135: 0.2125
A136: 10.2.2 | B136: ENGATE FLEXÍVEL EM PLÁSTICO BRANCO, 1/2" X 30CM - FORNECIMENTO E INSTALAÇÃO. AF_12/2013 | C136: SINAPI | D136: 86884 | E136: und | F136: 2 | G136: 0.15 | H136: 1 | I136: 8 | J136: 0.0375
A137: 10.2.3 | B137: TORNEIRA CROMADA DE MESA, 1/2" OU 3/4", PARA LAVATÓRIO, PADRÃO MÉDIO - FORNECIMENTO E INSTALAÇÃO. | C137: SINAPI | D137: 86915 | E137: und | F137: 2 | G137: 0.1 | H137: 1 | I137: 8 | J137: 0.025
A138: 10.2.4 | B138: Fornecimento e colocação de gancho com bucha 4,4 x 70 - 8mm | C138: COMPOSIÇÃO | D138: 154 | E138: und | F138: 9 | G138: 0.2 | H138: 1 | I138: 8 | J138: 0.225
A139: 10.2.5 | B139: Barra de apoio em aço inox polido, l=50, d=38.1 mm | C139: ORSE | D139: 2391 | E139: und | F139: 1 | H139: 1 | I139: 8 | J139: 0
A140: 10.2.6 | B140: Bancada em granito branco fortaleza, e = 2cm | C140: COMPOSIÇÃO | D140: 121 | E140: m² | F140: =1.3*0.5 -> 0.65 | G140: 1 | H140: 1 | I140: 8 | J140: 0.08125
A141: 10.2.7 | B141: Testeira em granito branco fortaleza, l=10cm (colado), esp.=2cm - fornecimento e colocação | C141: ORSE | D141: 11825 | E141: m | F141: 1.3 | G141: 1 | H141: 1 | I141: 8 | J141: 0.1625
A142: 10.3 | B142: Esgoto e Água Pluvial:
A143: 10.3.1 | B143: JOELHO 90 GRAUS, PVC, SERIE NORMAL, ESGOTO PREDIAL, DN 40 MM, JUNTA SOLDÁVEL, FORNECIDO E INSTALADO EM RAMAL DE DESCARGA OU RAMAL DE ESGOTO SANITÁRIO. AF_12/2014_P | C143: SINAPI | D143: 89724 | E143: und | F143: =2+1+1+1 -> 5 | G143: 0.1 | H143: 1 | I143: 8 | J143: 0.0625
A144: 10.3.2 | B144: TUBO PVC, SERIE NORMAL, ESGOTO PREDIAL, DN 40 MM, FORNECIDO E INSTALADO EM RAMAL DE DESCARGA OU RAMAL DE ESGOTO SANITÁRIO. AF_12/2014_P | C144: SINAPI | D144: 89711 | E144: m | F144: =0.6+0.6+6.11+5.5 -> 12.81 | G144: 0.3 | H144: 1 | I144: 8 | J144: 0.480375
A145: 10.3.3 | B145: TUBO PVC, SERIE NORMAL, ESGOTO PREDIAL, DN 50 MM, FORNECIDO E INSTALADO EM RAMAL DE DESCARGA OU RAMAL DE ESGOTO SANITÁRIO. AF_12/2014_P | C145: SINAPI | D145: 89712 | E145: m | F145: 66.4 | G145: 0.38 | H145: 1 | I145: 8 | J145: 3.154
A146: 10.3.4 | B146: RALO SIFONADO, PVC, DN 100 X 40 MM, JUNTA SOLDÁVEL, FORNECIDO E INSTALADO EM RAMAL DE DESCARGA OU EM RAMAL DE ESGOTO SANITÁRIO. AF_12/2014_P | C146: SINAPI | D146: 89709 | E146: und | F146: 1 | G146: 0.07 | H146: 1 | I146: 8 | J146: 0.00875
A147: 10.3.5 | B147: CAIXA DE INSPEÇÃO EM ALVENARIA DE TIJOLO MACIÇO 60X60X60CM, REVESTIDA INTERNAMENTO COM BARRA LISA (CIMENTO E AREIA, TRAÇO 1:4) E=2,0CM, COMTAMPA PRÉ-MOLDADA DE CONCRETO E FUNDO DE CONCRETO 15MPA TIPO C - ESCAVAÇÃO E CONFECÇÃO | C147: SINAPI | D147: 74104/001 | E147: und | F147: 5 | G147: 1.9 | H147: 1 | I147: 8 | J147: 1.1875
A148: 10.3.6 | B148: JUNÇÃO SIMPLES, PVC, SERIE NORMAL, ESGOTO PREDIAL, DN 40 MM, JUNTA SOLDÁVEL, FORNECIDO E INSTALADO EM RAMAL DE DESCARGA OU RAMAL DE ESGOTO SANITÁRIO. AF_12/2014 | C148: SINAPI | D148: 89783 | E148: und | F148: 1 | G148: 0.14 | H148: 1 | I148: 8 | J148: 0.0175
A150: 11 | B150: IMPERMEABILIZAÇÃO | J150: =SUM(J151:J152) -> 22.1125 | K150: =ROUND(J150/30,1) -> 0.7
A151: 11.1 | B151: IMPERMEABILIZACAO DE SUPERFICIE COM MANTA ASFALTICA (COM POLIMEROS TIPO APP), E=4 MM (Laje e Calhas) | C151: SINAPI | D151: 83738 | E151: m² | F151: 122 | G151: 0.45 | H151: 1 | I151: 8 | J151: =F151*G151/(H151*I151) -> 6.8625
A152: 11.2 | B152: PISO CIMENTADO TRACO 1:3 (CIMENTO E AREIA) ACABAMENTO LISO ESPESSURA 3,0CM, PREPARO MANUAL DA ARGAMASSA | C152: SINAPI | D152: 73922/005 | E152: m² | F152: 122 | G152: 1 | H152: 1 | I152: 8 | J152: 15.25
A154: 12 | B154: INSTALAÇÃO DE COMBATE E INCÊNDIO E PÂNICO | J154: =SUM(J155:J168) -> 5.815819 | K154: =ROUND(J154/30,1) -> 0.2
A155: 12.1 | B155: EXTINTOR DE PQS 12KG, CLASSE BC - FORNECIMENTO E INSTALACAO | C155: COMPOSIÇÃO | D155: 144 | E155: und | F155: 2 | G155: 0.5 | H155: 1 | I155: 8 | J155: 0.125
A156: 12.2 | B156: EXTINTOR INCENDIO AGUA-PRESSURIZADA 10L INCL SUPORTE PAREDE, SINALIZAÇÃO, FORNECIMENTO E COLOCACÃO | C156: COMPOSIÇÃO | D156: 145 | E156: und | F156: 2 | G156: 0.5 | H156: 1 | I156: 8 | J156: 0.125
A157: 12.3 | B157: Luminária de emergência 2 x 8w, G-LIGHT, similar ou qualidade superior | C157: COMPOSIÇÃO | D157: 146 | E157: und | F157: 7 | G157: 0.5 | H157: 1 | I157: 8 | J157: 0.4375
A158: 12.4 | B158: Porta corta fogo, de abrir, 02 folhas, em chapa de aço galvanizado nº24, batente em chapa nº18, classe 90, isolante em manta cerâmica incombustível e=5cm, dobradiças tipo helicoidal em aço 1010/1020, e fechadura reversível sem chave | C158: COMPOSIÇÃO | D158: 147 | E158: m² | F158: 5.04 | G158: 2.38 | H158: 1 | I158: 8 | J158: 1.4994
A159: 12.5 | B159: Barra antipânico simples sem chave para uma porta ref. MH2585, similar ou qualidade superior | C159: COMPOSIÇÃO | D159: 148 | E159: und | F159: 4 | G159: 0.3 | H159: 1 | I159: 8 | J159: 0.15
A160: 12.6 | B160: Detector de fumaça óptico endereçável, modelo VRE-F, marca VERIN, similar ou de qualidade superior | C160: COMPOSIÇÃO | D160: 149 | E160: und | F160: 10 | G160: 0.5 | H160: 1 | I160: 8 | J160: 0.625
A161: 12.7 | B161: Central de alarme e detecção de incendio, capacidade: 8 laços, com 2 linhas, mod.VR-8L, Verin, similar ou de qualidade superior | C161: COMPOSIÇÃO | D161: 150 | E161: und | F161: 1 | G161: 6.5 | H161: 1 | I161: 8 | J161: 0.8125
A162: 12.8 | B162: Acionador manual (botoeira) tipo quebra-vidro, p/instal. Incendio | C162: COMPOSIÇÃO | D162: 151 | E162: und | F162: 2 | G162: 0.5 | H162: 1 | I162: 8 | J162: 0.125
A163: 12.9 | B163: Avisador sonoro tipo sirene para incêndio - Fornecimento | C163: ORSE | D163: 10446 | E163: und | F163: 2 | H163: 1 | I163: 8 | J163: 0
A164: 12.10 | B164: ELETRODUTO DE AÇO GALVANIZADO, CLASSE LEVE, DN 25 MM (1), APARENTE INSTALADO EM TETO - FORNECIMENTO E INSTALAÇÃO. AF_11/2016_P | C164: SINAPI | D164: 95746 | E164: m | F164: 84.56 | G164: 0.0867 | H164: 1 | I164: 8 | J164: 0.916419
A165: 12.11 | B165: Extintor de incêndio de Pó ABC 12Kg capacidade extintora 6A-40BC | C165: COTAÇÃO | D165: 2 | E165: und | F165: 2 | G165: 0.5 | H165: 1 | I165: 8 | J165: 0.125
A166: 12.12 | B166: Placa direção saída de emergência Fotoluminescente Sinalize Seta Reta P/ Direita 30x15cm | C166: COTAÇÃO | D166: 3 | E166: und | F166: 8 | G166: 0.5 | H166: 1 | I166: 8 | J166: 0.5
A167: 12.13 | B167: Placa direção saída de emergência Fotoluminescente Sinalize Seta Reta P/ Esquerda 30x15cm | C167: COTAÇÃO | D167: 4 | E167: und | F167: 4 | G167: 0.5 | H167: 1 | I167: 8 | J167: 0.25
A168: 12.14 | B168: Placa sinalizadora saída de emergência - Final Fotoluminescente 30x15cm | C168: COTAÇÃO | D168: 5 | E168: und | F168: 2 | G168: 0.5 | H168: 1 | I168: 8 | J168: 0.125
A170: 13 | B170: REVESTIMENTOS | J170: =SUM(J171:J177) -> 96.96548875 | K170: =ROUND(J170/30,1) -> 3.2
A171: 13.1 | B171: Paredes:
A172: 13.1.1 | B172: Revestimento para parede em MDF com revestimento melamínico mdeirado, tipo lambri, colado, superfície polida | C172: COMPOSIÇÃO | D172: 136 | E172: m² | F172: 137.41 | G172: 0.6 | H172: 1 | I172: 8 | J172: 10.30575
A173: 13.1.2 | B173: Painel acústico constituído de gradeamento em compensado naval 18mm, preenchido com lã de pet acústica 15mm dens = 15kg/m3 e acabamento em tecido ortofônico e alisar em madeira maciça 40mmx15mm boleada nas bordas tratada com seladora - aplicado | C173: ORSE (Insumos) | D173: 12779 | E173: m² | F173: 67.78 | G173: 1 | H173: 1 | I173: 8 | J173: 8.4725
A174: 13.1.3 | B174: CHAPISCO APLICADO EM ALVENARIA (COM PRESENÇA DE VÃOS) E ESTRUTURAS DE CONCRETO DE FACHADA, COM COLHER DE PEDREIRO. ARGAMASSA TRAÇO 1:3 COM PREPARO EM BETONEIRA 400L. AF_06/2014 | C174: SINAPI | D174: 87905 | E174: m² | F174: 12.47 | G174: 0.183 | H174: 1 | I174: 8 | J174: =F174*G174/(H174*I174) -> 0.28525125
A175: 13.1.4 | B175: MASSA ÚNICA, PARA RECEBIMENTO DE PINTURA, EM ARGAMASSA TRAÇO 1:2:8, PREPARO MECÂNICO COM BETONEIRA 400L, APLICADA MANUALMENTE EM FACES INTERNAS DE PAREDES, ESPESSURA DE 20MM, COM EXECUÇÃO DE TALISCAS. AF_06/2014 | C175: SINAPI | D175: 87529 | E175: m² | F175: 12.47 | G175: 0.47 | H175: 1 | I175: 8 | J175: 0.7326125
A176: 13.2 | B176: Teto:
A177: 13.2.1 | B177: Forro de gesso acartonado, acabamento em pintura PVA Latex na cor branco, com isolamento em lã de vidro 25mm, placa 625 x 625mm e perfil T, instalado | C177: COMPOSIÇÃO | D177: 137 | E177: m² | F177: 411.57 | G177: 1.5 | H177: 1 | I177: 8 | J177: 77.169375
A179: 14 | B179: PINTURA | J179: =SUM(J180:J185) -> 35.7484352 | K179: =ROUND(J179/30,1) -> 1.2
A180: 14.1 | B180: Emassamento de superfície, com aplicação de 02 demãos de massa corrida, lixamento e retoques (teto camarim, varanda e todo forro de gesso do auditório, inclusive sala de som) | C180: COMPOSIÇÃO | D180: 141 | E180: m² | F180: =(1.65*17)+(2.27*4.4)+411.57 -> 449.608 | G180: 0.3 | H180: 1 | I180: 8 | J180: 16.8603
A181: 14.2 | B181: Emassamento de superfície, com aplicação de 02 demãos de massa acrílica, lixamento e retoques (parede) | C181: COMPOSIÇÃO | D181: 142 | E181: m² | F181: =(23.44*3.47)-4.8+F184+12.47 -> 111.9318 | G181: 0.35 | H181: 1 | I181: 8 | J181: 4.89701625
A182: 14.3 | B182: APLICAÇÃO MANUAL DE PINTURA COM TINTA LÁTEX PVA EM TETO, DUAS DEMÃOS AF_06/2014 | C182: SINAPI | D182: 88486 | E182: m² | F182: =(1.65*17)+(2.27*4.4)+411.57 -> 449.608 | G182: 0.17 | H182: 1 | I182: 8 | J182: 9.55417
A183: 14.4 | B183: APLICAÇÃO MANUAL DE PINTURA COM TINTA LÁTEX ACRÍLICA EM PAREDES, DUAS DEMÃOS (Camarim e alvenarias executadas). | C183: SINAPI | D183: 88489 | E183: m² | F183: =(23.44*3.47)-4.8+12.47 -> 89.0068 | G183: 0.187 | H183: 1 | I183: 8 | J183: 2.08053395
A184: 14.5 | B184: Aplicação manual de pintura com tinta texturizada acrílica em paredes externas (Fachada) | C184: SINAPI | D184: 88423 | E184: m² | F184: =(1.75+4.8)*3.5 -> 22.925 | G184: 0.176 | H184: 1 | I184: 8 | J184: =F184*G184/(H184*I184) -> 0.50435
A185: 14.6 | B185: APLICAÇÃO DE FUNDO SELADOR LÁTEX PVA EM TETO, UMA DEMÃO. AF_06/2014 (Forro de gesso acartonado) | C185: SINAPI | D185: 88482 | E185: m² | F185: 411.57 | G185: 0.036 | H185: 1 | I185: 8 | J185: 1.852065
A187: 15 | B187: CLIMATIZAÇÃO/REFRIGERAÇÃO | J187: =SUM(J188:J190) -> 3.5 | K187: =ROUND(J187/30,3) -> 0.117
A188: 15.1 | B188: Condicionador de ar tipo split high wall, 9000 btu - FORNECIMENTO E INSTALACAO | C188: COMPOSIÇÃO | D188: 158 | E188: und | F188: 1 | G188: 4 | H188: 1 | I188: 8 | J188: =F188*G188/(H188*I188) -> 0.5
A189: 15.2 | B189: Condicionador de ar tipo split piso-teto, 30000 btu - FORNECIMENTO E INSTALACAO | C189: COMPOSIÇÃO | D189: 159 | E189: und | F189: 2 | G189: 4 | H189: 1 | I189: 8 | J189: 1
A190: 15.3 | B190: Condicionador de ar tipo split piso-teto, 60000 btu - FORNECIMENTO E INSTALACAO | C190: COMPOSIÇÃO | D190: 160 | E190: und | F190: 4 | G190: 4 | H190: 1 | I190: 8 | J190: 2
A192: 16 | B192: PISO | J192: =SUM(J193:J200) -> 82.5189525 | K192: =ROUND(J192/30,1) -> 2.8
A193: 16.1 | B193: Piso em assoalho de madeira lei (Pau D´Arco, similar ou de qualidade superior) - Extra, réguas macho e fêmea 20cm x 3cm, elevado instalado em barrotes de madeira (palco em madeira) | C193: COMPOSIÇÃO | D193: 138 | E193: m² | F193: 129 | G193: 1.5 | H193: 1 | I193: 8 | J193: =F193*G193/(H193*I193) -> 24.1875
A194: 16.2 | B194: CONTRAPISO EM ARGAMASSA TRAÇO 1:4 (CIMENTO E AREIA), PREPARO MECÂNICO COM BETONEIRA 400 L, APLICADO EM ÁREAS MOLHADAS SOBRE LAJE, ADERIDO, ESPESSURA 2CM. AF_06/2014 (piso da varanda do auditório e camarim) | C194: SINAPI | D194: 87735 | E194: m² | F194: =26.43+21.34 -> 47.77 | G194: 0.59 | H194: 1 | I194: 8 | J194: =F194*G194/(H194*I194) -> 3.5230375
A195: 16.3 | B195: Restauro - Restauração de forro de madeira compreendendo substituição de peças de apoio até 20%, raspagem, calafetagem, enceramento e parquetagem (obs: usar para substituição as peças da área de ampliação do palco ) (restauro do piso da platéia) | C195: COMPOSIÇÃO | D195: 140 | E195: m² | F195: 232.5 | G195: 1.3 | H195: 1 | I195: 8 | J195: 37.78125
A196: 16.4 | B196: Piso tátil direcional e/ou alerta, em borracha, p/deficientes visuais, dimensões 25x25cm, aplicado, rejuntado, exclusive regularização de base | C196: ORSE | D196: 7323 | E196: m² | F196: =(1.31+1.31+1.75+0.6+10.2+0.6+1.5+1.1+1.5+1.5+2.15+0.8+1.45+1.5+1.25)*0.25 -> 7.13 | G196: 1 | H196: 1 | I196: 8 | J196: 0.89125
A197: 16.5 | B197: Imunização de madeira contra cupim, com aplicação de 01 demão de Pentox, similar ou qualidade superior | C197: COMPOSIÇÃO | D197: 139 | E197: m² | F197: =F193 -> 129 | G197: 0.4 | H197: 1 | I197: 8 | J197: 6.45
A198: 16.6 | B198: PISO EM GRANILITE, MARMORITE OU GRANITINA ESPESSURA 8 MM, INCLUSO JUNTAS DE DILATACAO PLASTICAS (Piso do corredor executar na mesma cor do piso existente e piso do camarim) | C198: SINAPI | D198: 84191 | E198: m² | F198: =21.81+F200 -> 74.966 | G198: 0.6 | H198: 1 | I198: 8 | J198: 5.62245
A199: 16.7 | B199: RODAPE EM GRANILITE/MARMORITE, ALTURA 10CM | C199: SINAPI | D199: 73850/001 | E199: m | F199: 21.4 | G199: 0.6 | H199: 1 | I199: 8 | J199: 1.605
A200: 16.8 | B200: Contrapiso em argamassa traço 1:4 (cimento e areia), preparo manual, aplicado em áreas secas sobre bloco de EPS, aderido, espessura 6cm. af_06/2014 (ELEVAÇÃO DO PISO DO CORREDOR) | C200: COMPOSIÇÃO | D200: 153 | E200: m² | F200: =2.5*18.92+2.4*2.44 -> 53.156 | G200: 0.37 | H200: 1 | I200: 8 | J200: 2.458465
A202: 17 | B202: SERVIÇOS COMPLEMENTARES | J202: =SUM(J203:J216) -> 156.0764469 | K202: =ROUND(J202/30,1) -> 5.2
A203: 17.1 | B203: Bancada de madeira MDF revestida em laminado melamínico (Sala de Som e Camarim) | C203: COMPOSIÇÃO | D203: 131 | E203: m² | F203: =2+2.53 -> 4.53 | G203: 2 | H203: 1 | I203: 8 | J203: 1.1325
A204: 17.2 | B204: Letra em alumínio com pintura eletrostática a pó na cor preto 20 x 20cm - instalado | C204: COMPOSIÇÃO | D204: 132 | E204: und | F204: 24 | G204: 0.25 | H204: 1 | I204: 8 | J204: 0.75
A205: 17.3 | B205: ESPELHO CRISTAL ESPESSURA 4MM, COM MOLDURA EM ALUMINIO E CHAPA DE EPS 10MM (Camarim, parede do lavatório) | C205: COMPOSIÇÃO | D205: 133 | E205: m² | F205: 6 | G205: 1.8 | H205: 1 | I205: 8 | J205: 1.35
A206: 17.4 | B206: ESPELHO CRISTAL ESPESSURA 4MM, COM MOLDURA EM MDF E CHAPA DE EPS 10MM (Camarim, parede da bancada de maquiagem) | C206: COMPOSIÇÃO | D206: 134 | E206: m² | F206: 4.58 | G206: 1.8 | H206: 1 | I206: 8 | J206: 1.0305
A207: 17.5 | B207: Armário de madeira MDF revestida em laminado melamínico | C207: COMPOSIÇÃO | D207: 135 | E207: m² | F207: 12.79 | G207: 2 | H207: 1 | I207: 8 | J207: 3.1975
A208: 17.6 | B208: Tubo de aço inox 1 1/2" esp.1,50mm | C208: COMPOSIÇÃO | D208: 142 | E208: m | F208: 6.03 | G208: 0.5 | H208: 1 | I208: 8 | J208: 0.376875
A209: 17.7 | B209: Fornecimento e montagem de Cortinas em tecido oxford com trilho em alumínio (Cortina para as portas P6 P7, conforme especificado em projeto arquitetônico) | C209: Cotação Painel de Preços | D209: 1 | E209: m² | F209: 54.57 | G209: 0.5 | H209: 1 | I209: 8 | J209: =F209*G209/(H209*I209) -> 3.410625
A210: 17.8 | B210: Tecido em algodão natural (largura de aproximadamente 1,0m) (para execução do provador) | C210: ORSE | D210: 3103 | E210: m | F210: 6.3 | G210: 0.1 | H210: 1 | I210: 8 | J210: =F210*G210/(H210*I210) -> 0.07875
A211: 17.9 | B211: Recuperação das cadeiras de madeira, c/ aproveitamento de 75% | C211: COMPOSIÇÃO | D211: 152 | E211: und | F211: 311 | G211: 3 | H211: 1 | I211: 8 | J211: 116.625
A212: 17.10 | B212: PINTURA VERNIZ POLIURETANO BRILHANTE EM MADEIRA, TRES DEMAOS (Pintura das cadeiras) | C212: COMPOSIÇÃO | D212: 155 | E212: m² | F212: 311 | G212: 0.4 | H212: 1 | I212: 8 | J212: =F212*G212/(H212*I212) -> 15.55
A213: 17.11 | B213: LIMPEZA FINAL DA OBRA | C213: SINAPI | D213: 9537 | E213: m² | F213: 514.5 | G213: 0.14 | H213: 1 | I213: 8 | J213: 9.00375
A214: 17.12 | B214: Remoção de entulho da obra - carga e tranporte | C214: COMPOSIÇÃO | D214: 162 | E214: m³ | F214: =1.25*(F16+F17*0.008+F18*0.05+F19*0.03+F20*0.002+F21*0.008+F22*0.005+F28*0.03) -> 27.967575 | G214: 1 | H214: 1 | I214: 8 | J214: 3.495946875
A215: 17.13 | B215: Placa de inauguração de obra em alumínio 0,60 x 0,80 m | C215: COMPOSIÇÃO | D215: 163 | E215: m³ | F215: 1 | G215: 0.6 | H215: 1 | I215: 8 | J215: =F215*G215/(H215*I215) -> 0.075
A217: TOTAL de Tempo sem sorebor serviços | J217: =SUM(J9:J216)/2 -> 606.6023746 | K217: =ROUND(J217/30,1) -> 20.2
B218: Prazo de 606,60 dias ou 20,20 meses, sendo cada etapa começando após a conclusão da anterior, ou seja, sem a execução de mais de uma etapa ao mesmo tempo
B219: O prazo total da obra deve considerar os serviços que podem ser executados concomitantemente. Dessa forma, o prazo da obra será menor que o prazo na Tabela acima.
